{"text_format":"1","workbook":"xlsx","n_sheets":4,"sheets":["Cedula6B","Enviar","Carreras","Prompt"],"not_rendered":{"charts":0,"images":4,"macros":1,"external_links":0,"defined_names":5,"comments":1,"pivot_tables":0},"unopened":[],"bounds":{"document_bytes":16777216,"sheet_cells":100000,"rows_first":2000,"rows_last":500,"rows_between":2000,"halvings":0,"cell_chars":16384,"cell_head_chars":4096},"cells_cut":0,"cells_raw":0,"read":"whole","date_system":"1900"}

{"sheet":"Cedula6B","index":0,"n_rows":431,"n_cols":42,"rows_kept":431,"cut":false,"hidden":true,"merged":[[321,4,321,9],[299,6,299,7],[334,4,334,9],[335,4,335,9],[336,4,336,9],[337,4,337,9],[305,3,306,9],[341,3,342,9],[328,4,328,9],[329,4,329,9],[330,4,330,9],[331,4,331,9],[332,4,332,9],[333,4,333,9],[322,4,322,9],[323,4,323,9],[324,4,324,9],[325,4,325,9],[326,4,326,9],[327,4,327,9],[338,4,338,9],[312,4,312,9],[313,4,313,9],[314,4,314,9],[276,17,276,23],[277,17,277,23],[277,10,277,16],[278,10,278,16],[278,17,278,23],[265,14,265,16],[183,14,183,16],[184,14,184,16],[185,14,185,16],[186,14,186,16],[187,14,187,16],[188,14,188,16],[211,14,211,16],[266,14,266,16],[262,14,262,16],[263,14,263,16],[264,14,264,16],[267,14,267,16],[259,23,259,24],[195,14,195,16],[196,14,196,16],[197,14,197,16],[198,14,198,16],[275,17,275,22],[358,28,359,29],[358,30,359,31],[358,32,359,33],[358,34,359,35],[284,17,284,23],[279,10,279,16],[279,17,279,23],[280,10,280,16],[280,17,280,23],[281,10,281,16],[281,17,281,23],[290,17,290,23],[359,24,359,25],[285,17,285,23],[288,10,288,16],[288,17,288,23],[286,17,286,23],[287,17,287,23],[282,10,282,16],[282,17,282,23],[283,10,283,16],[283,17,283,23],[284,10,284,16],[289,17,289,23],[358,36,359,37],[359,12,359,13],[359,14,359,15],[359,16,359,17],[359,18,359,19],[359,20,359,21],[341,34,342,35],[341,36,342,37],[342,12,342,13],[342,14,342,15],[342,16,342,17],[342,18,342,19],[342,20,342,21],[342,22,342,23],[342,24,342,25],[341,18,341,21],[341,22,341,25],[341,26,342,27],[341,28,342,29],[341,30,342,31],[341,32,342,33],[341,12,341,17],[358,18,358,21],[358,22,358,25],[305,36,306,37],[306,12,306,13],[306,14,306,15],[306,16,306,17],[306,18,306,19],[306,20,306,21],[306,22,306,23],[306,24,306,25],[305,22,305,25],[305,26,306,27],[305,28,306,29],[305,30,306,31],[305,32,306,33],[305,34,306,35],[305,12,305,17],[305,18,305,21],[0,22,0,24],[26,23,26,24],[26,25,26,26],[38,25,38,26],[252,5,252,6],[228,3,230,6],[228,7,229,8],[229,9,229,10],[259,21,259,22],[217,5,218,6],[250,5,251,9],[259,17,259,18],[259,19,259,20],[229,15,229,16],[250,3,252,4],[258,14,260,16],[258,17,258,24],[259,3,260,3],[178,14,178,16],[179,14,179,16],[180,14,180,16],[181,14,181,16],[182,14,182,16],[200,14,200,16],[376,10,376,13],[377,10,377,13],[378,10,378,13],[379,10,379,13],[380,10,380,13],[381,10,381,13],[353,4,353,9],[370,4,370,9],[381,4,381,9],[376,4,376,9],[380,4,380,9],[379,4,379,9],[377,4,377,9],[378,4,378,9],[150,3,151,3],[149,14,151,16],[317,4,317,9],[296,6,296,7],[297,6,297,7],[319,4,319,9],[320,4,320,9],[294,6,295,7],[307,5,307,8],[309,4,309,9],[310,4,310,9],[311,4,311,9],[316,4,316,9],[318,4,318,9],[298,6,298,7],[315,4,315,9],[189,14,189,16],[190,14,190,16],[191,14,191,16],[192,14,192,16],[193,14,193,16],[194,14,194,16],[207,14,207,16],[208,14,208,16],[218,23,218,24],[218,17,218,18],[268,14,268,16],[269,14,269,16],[153,14,153,16],[154,14,154,16],[177,14,177,16],[155,14,155,16],[156,14,156,16],[157,14,157,16],[229,13,229,14],[258,3,258,13],[259,4,260,13],[254,5,254,6],[254,7,254,9],[218,9,218,10],[253,7,253,9],[171,14,171,16],[172,14,172,16],[209,14,209,16],[210,14,210,16],[201,14,201,16],[202,14,202,16],[203,14,203,16],[275,4,275,8],[204,14,204,16],[205,14,205,16],[12,7,12,9],[48,3,50,6],[120,17,120,18],[120,19,120,20],[119,3,121,6],[119,7,120,8],[120,9,120,10],[120,11,120,12],[109,9,109,10],[109,11,109,12],[120,13,120,14],[120,15,120,16],[109,13,109,14],[109,15,109,16],[109,19,109,20],[108,7,109,8],[97,11,97,12],[26,9,26,10],[38,13,38,14],[26,13,26,14],[78,14,80,16],[74,7,74,9],[87,14,87,16],[88,14,88,16],[289,4,289,9],[290,4,290,9],[270,14,270,16],[271,14,271,16],[286,10,286,16],[287,4,287,9],[287,10,287,16],[285,4,285,9],[279,4,279,9],[289,10,289,16],[285,10,285,16],[276,10,276,16],[280,4,280,9],[276,4,276,9],[277,4,277,9],[278,4,278,9],[284,4,284,9],[281,4,281,9],[282,4,282,9],[288,4,288,9],[275,10,275,15],[150,4,151,13],[26,27,26,28],[49,15,49,16],[78,17,78,24],[49,21,49,22],[49,17,49,18],[49,19,49,20],[79,3,80,3],[14,7,14,23],[26,21,26,22],[37,7,38,8],[38,9,38,10],[37,3,39,6],[26,17,26,18],[26,19,26,20],[79,21,79,22],[79,23,79,24],[25,3,27,6],[70,3,72,4],[25,7,26,8],[70,5,71,9],[73,5,73,6],[74,5,74,6],[73,7,73,9],[49,11,49,12],[216,15,216,24],[217,17,217,24],[218,21,218,22],[218,19,218,20],[109,17,109,18],[150,17,150,18],[150,19,150,20],[206,14,206,16],[163,14,163,16],[164,14,164,16],[165,14,165,16],[166,14,166,16],[167,14,167,16],[168,14,168,16],[217,7,217,14],[218,7,218,8],[149,17,149,24],[150,21,150,22],[146,7,146,9],[199,14,199,16],[150,23,150,24],[217,15,218,16],[149,3,149,13],[146,5,146,6],[97,9,97,10],[141,3,143,4],[145,7,145,9],[97,19,97,20],[49,27,49,28],[90,14,90,16],[91,14,91,16],[38,17,38,18],[38,15,38,16],[38,21,38,22],[84,14,84,16],[85,14,85,16],[38,23,38,24],[38,27,38,28],[49,23,49,24],[49,25,49,26],[79,4,80,13],[78,3,78,13],[97,13,97,14],[97,15,97,16],[97,17,97,18],[38,19,38,20],[49,13,49,14],[108,3,110,6],[75,5,75,6],[75,7,75,9],[145,5,145,6],[89,14,89,16],[82,14,82,16],[83,14,83,16],[141,5,142,9],[144,5,144,6],[144,7,144,9],[86,14,86,16],[96,3,98,6],[96,7,97,8],[26,11,26,12],[158,14,158,16],[385,15,385,20],[343,5,343,8],[345,4,345,9],[346,4,346,9],[347,4,347,9],[352,4,352,9],[354,4,354,9],[355,4,355,9],[358,3,359,9],[348,4,348,9],[349,4,349,9],[350,4,350,9],[351,4,351,9],[376,18,376,21],[377,14,377,17],[378,14,378,17],[218,11,218,12],[79,17,79,18],[216,5,216,14],[218,13,218,14],[376,14,376,17],[377,18,377,21],[1,22,3,24],[12,22,12,23],[16,7,16,23],[301,6,301,7],[300,6,300,7],[4,8,4,21],[159,14,159,16],[160,14,160,16],[161,14,161,16],[162,14,162,16],[1,8,1,19],[2,8,2,19],[3,8,3,19],[283,4,283,9],[169,14,169,16],[170,14,170,16],[38,11,38,12],[26,15,26,16],[79,19,79,20],[229,11,229,12],[48,7,49,8],[49,9,49,10],[72,5,72,6],[143,5,143,6],[387,10,387,14],[387,15,387,20],[387,3,387,9],[388,3,388,9],[388,10,388,14],[388,15,388,20],[388,21,388,24],[387,21,387,24],[385,10,385,14],[385,21,385,24],[386,10,386,14],[386,15,386,20],[386,21,386,24],[385,3,385,9],[386,3,386,9],[358,26,359,27],[364,4,364,9],[358,10,359,11],[358,12,358,17],[359,22,359,23],[372,4,372,9],[173,14,173,16],[174,14,174,16],[175,14,175,16],[176,14,176,16],[360,5,360,8],[290,10,290,16],[286,4,286,9],[362,4,362,9],[363,4,363,9],[365,4,365,9],[366,4,366,9],[367,4,367,9],[368,4,368,9],[369,4,369,9],[371,4,371,9],[255,5,255,6],[255,7,255,9],[253,5,253,6],[378,18,378,21],[376,22,376,24],[377,22,377,24],[378,22,378,24],[379,22,379,24],[381,14,381,17],[381,18,381,21],[379,18,379,21],[380,18,380,21],[380,22,380,24],[381,22,381,24],[379,14,379,17],[380,14,380,17]]}
[null,null,null,null,null,null,null,null,null,null,null,null,null,null,null,null,null,null,null,null,null,null,"CÉDULA"]
[null,null,null,null,null,null,null,null,"CENSO EDUCATIVO 2022",null,null,null,null,null,null,null,null,null,null,null,null,null,"6B"]
[null,null,null,null,null,null,null,null,"EDUCACIÓN SUPERIOR"]
[null,null,null,null,null,null,null,null,"TECNOLÓGICA"]
[null,null,null,"Versión :",2]
[null,null,null,"INSTRUCCIONES DEL FORMATO ELECTRÓNICO "]
[]
[]
[]
[null,null,null,"IDENTIFICACIÓN DEL SERVICIO EDUCATIVO"]
[]
[]
[null,null,null,"1. CÓDIGO MODULAR :",null,null,null,null,null,null,null,null,null,null,null,null,null,"2. CÓDIGO DE LOCAL EDUCATIVO :"]
[]
[null,null,null,"3. NOMBRE DEL SERVICIO :",null,null,null,""]
[]
[null,null,null,"4. DISTRITO :",null,null,null,""]
[]
[null,null,null,"TIPO DE INSTITUCIÓN EDUCATIVA : ",null,null,null,null,null,null,"Instituto de Educación Superior Tecnólogico",null,null,null,null,null,null,null,"Escuela de Educación Superior Tecnólogica"]
[]
[]
[null,null,null,"100. RESULTADO DEL EJERCICIO EDUCATIVO"]
[null,null,null,"Complete y remita esta sección entre diciembre del año 2022 y enero del año 2023."]
[null,null,null,"(PARA PROGRAMAS DE ESTUDIOS DE CUATRO A MÁS AÑOS)"]
[null,null,null,"101. MATRICULADOS, APROBADOS, DESAPROBADOS, RETIRADOS Y FALLECIDOS EN EL SEMESTRE 2022-I, EN PROGRAMAS DE ESTUDIOS DE CUATRO A MÁS AÑOS , POR CICLO Y SEXO. (Sumar todos los turnos)"]
[null,null,null,"SITUACIÓN",null,null,null,"TOTAL",null,"CICLO Y SEXO"]
[null,null,null,null,null,null,null,null,null,"I",null,"II",null,"III",null,"IV",null,"V",null,"VI",null,"VII",null,"VIII",null,"IX",null,"X"]
[null,null,null,null,null,null,null,"H","M","H","M","H","M","H","M","H","M","H","M","H","M","H","M","H","M","H","M","H","M"]
["00",null,null,"Matriculados",null,null,"1/",{"$f":"SUM(H30:H33)","v":0},{"$f":"SUM(I30:I33)","v":0},{"$f":"SUM(J30:J33)","v":0},{"$f":"SUM(K30:K33)","v":0},{"$f":"SUM(L30:L33)","v":0},0,0,0,0,0,0,0,0,0,0,0,{"$f":"SUM(X30:X33)","v":0},0,0,0,{"$f":"SUM(AB30:AB33)","v":0},{"$f":"SUM(AC30:AC33)","v":0}]
["01",null,null,"Aprobados",null,null,null,{"$f":"SUM(J30,L30,N30,P30,R30,T30,V30,X30,Z30,AB30)","v":0},0]
["02",null,null,"Desaprobados",null,null,null,0,0]
["03",null,null,"Retirados",null,null,null,0,0]
["04",null,null,"Fallecidos",null,null,null,0,0]
[null,null,null,"1/ La matrícula debe ser la suma de todos los rubros."]
[]
[]
[null,null,null,"102. MATRICULADOS, APROBADOS, DESAPROBADOS, RETIRADOS Y FALLECIDOS EN EL SEMESTRE 2022-II, EN PROGRAMAS DE ESTUDIOS DE CUATRO A MÁS AÑOS, POR CICLO Y SEXO. (Sumar todos los turnos)"]
[null,null,null,"SITUACIÓN",null,null,null,"TOTAL",null,"CICLO Y SEXO"]
[null,null,null,null,null,null,null,null,null,"I",null,"II",null,"III",null,"IV",null,"V",null,"VI",null,"VII",null,"VIII",null,"IX",null,"X"]
[null,null,null,null,null,null,null,"H","M","H","M","H","M","H","M","H","M","H","M","H","M","H","M","H","M","H","M","H","M"]
["00",null,null,"Matriculados",null,null,"1/",{"$f":"SUM(H42:H45)","v":0},{"$f":"SUM(I42:I45)","v":0},{"$f":"SUM(J42:J45)","v":0},{"$f":"SUM(K42:K45)","v":0},{"$f":"SUM(L42:L45)","v":0},0,0,0,0,0,0,0,0,0,0,0,0,0,0,0,{"$f":"SUM(AB42:AB45)","v":0},{"$f":"SUM(AC42:AC45)","v":0}]
["01",null,null,"Aprobados",null,null,null,{"$f":"SUM(J42,L42,N42,P42,R42,T42,V42,X42)","v":0},0]
["02",null,null,"Desaprobados",null,null,null,0,0]
["03",null,null,"Retirados",null,null,null,0,0]
["04",null,null,"Fallecidos",null,null,null,0,0]
[null,null,null,"1/ La matrícula debe ser la suma de todos los rubros.",null,null,null,null,null,"I","II","III","IV","I","VI","VII","VIII","IX","X"]
[]
[null,null,null,"103. RETIRADOS POR CICLO Y SEXO EN PROGRAMAS DE ESTUDIOS DE CUATRO A MÁS AÑOS , SEGÚN MOTIVO (al 30/11/2022). EN LOS SEMESTRES 2022-I y II"]
[null,null,null,"MOTIVO",null,null,null,"TOTAL",null,"CICLO Y SEXO"]
[null,null,null,null,null,null,null,null,null,"I",null,"II",null,"III",null,"IV",null,"V",null,"VI",null,"VII",null,"VIII",null,"IX",null,"X"]
[null,null,null,null,null,null,null,"H","M","H","M","H","M","H","M","H","M","H","M","H","M","H","M","H","M","H","M"]
["00",null,null,"TOTAL RETIRADOS",null,null,null,{"$f":"SUM(H53:H66)","v":0},0,0,0,0,0,0,0,0,0,0,0,0,0,0,0,{"$f":"SUM(X53:X66)","v":0},0,0,0,{"$f":"SUM(AB53:AB66)","v":0},{"$f":"SUM(AC53:AC66)","v":0}]
["01",null,null,"Situación económica",null,null,null,{"$f":"SUM(J53,L53,N53,P53,R53,T53,V53,X53,Z53,AB53)","v":0},{"$f":"SUM(K53,M53,O53,Q53,S53,U53,W53,Y53,AA53,AC53)","v":0}]
["02",null,null,"Ingreso a la universidad",null,null,null,{"$f":"SUM(J54,L54,N54,P54,R54,T54,V54,X54,Z54,AB54)","v":0},{"$f":"SUM(K54,M54,O54,Q54,S54,U54,W54,Y54,AA54,AC54)","v":0}]
["03",null,null,"Elección de otra carrera / especialidad",null,null,null,0,0]
["04",null,null,"Enfermedad-Mental",null,null,null,0,0]
["05",null,null,"Enfermedad-Cancer",null,null,null,0,0]
["06",null,null,"Enfermedad-COVID19",null,null,null,0,0]
["07",null,null,"Otra enfermedad",null,null,null,0,0]
["08",null,null,"Adicción-Consumo de drogas",null,null,null,0,0]
["09",null,null,"Adicción-Consumo de alcohol",null,null,null,0,0]
["10",null,null,"Otro tipo de adicción",null,null,null,0,0]
["11",null,null,"Conducta delictiva",null,null,null,0,0]
["12",null,null,"Embarazo",null,null,null,0,0]
["13",null,null,"Migración",null,null,null,0,0]
["14",null,null,"Otro motivo de retiro",null,null,null,0,0]
[null,null,null,"Nota: Los totales de esta tabla deben ser iguales a la suma de lo reportado en el rubro “Retirados” de la tabla 101 y 102"]
[]
[null,null,null,"104. ¿CUÁNTOS ESTUDIANTES PARA PROGRAMA DE ESTUDIO DE CUATRO A MÁS AÑOS, QUE INGRESARON A ESTA INSTITUCIÓN EN EL CICLO I"]
[null,null,null,"DEL PERIODO 2022, SON EGRESADOS DEL 5º AÑO DE EDUCACIÓN SECUNDARIA DEL PERIODO 2021?"]
[null,null,null,"SEMESTRE",null,"Número de Estudiantes ingresantes al primer ciclo en el periodo 2022, que egresaron en el 5º de Secundaria del 2021"]
[]
[null,null,null,null,null,"H",null,null,"M"]
["00",{"$f":"F74+H74","v":0},null,"TOTAL",null,{"$f":"F75+F76","v":0},null,{"$f":"H75+H76","v":0}]
["01",{"$f":"F75+H75","v":0},null,"2022 - I"]
["02",{"$f":"F76+H76","v":0},null,"2022 - II"]
[null,null,null,"105. MATRÍCULADOS, RETIRADOS, EGRESADOS Y TITULADOS EN 2022, POR DURACIÓN DEL PROGRAMA DE ESTUDIOS CUATRO A MÁS AÑOS Y SEXO,"]
[null,null,null,"SEGÚN DENOMINACIÓN DE LA CARRERA EN LOS SEMESTRES 2022-I Y II"]
[null,null,null,"CARRERAS",null,null,null,null,null,null,null,null,null,null,"TIPO DE MODALIDAD",null,null,"PROGRAMAS DE ESTUDIOS DE CUATRO AÑOS"]
[{"$f":"SUM(R82:Y82)","v":0},null,null,"CODIGO","DENOMINACIÓN",null,null,null,null,null,null,null,null,null,null,null,null,"Matriculados",null,"Retirados",null,"Egresados",null,"Titulados"]
[null,null,null,null,null,null,null,null,null,null,null,null,null,null,null,null,null,"H","M","H","M","H","M","H","M"]
[{"$f":"SUM(A83:A92)","v":0},{"$f":"SUM(B83:B92)","v":0},null,"0000000000","TOTAL",null,null,null,null,null,null,null,null,null,null,null,null,{"$f":"SUM(R83:R92)","v":0},0,0,0,0,0,0,0]
[{"$f":"IF(AND(E83<>\"\",SUM(R83:Y83)=0),1,IF(AND(E83=\"\",SUM(R83:Y83)>0),2,IF(AND(E83<>\"\",SUM(R83:Y83)>0),3,0)))","v":0},{"$f":"IF(AND(E83<>\"\",O83<>\"\"),1,0)","v":0},null,null,{"$f":"IF($D83<>\"\",IF(ISERROR(VLOOKUP($D83,CARRPROF,2,FALSE)),\"\",VLOOKUP($D83,CARRPROF,2,FALSE)),\"\")","v":""}]
[{"$f":"IF(AND(E84<>\"\",SUM(R84:Y84)=0),1,IF(AND(E84=\"\",SUM(R84:Y84)>0),2,IF(AND(E84<>\"\",SUM(R84:Y84)>0),3,0)))","v":0},{"$f":"IF(AND(E84<>\"\",O84<>\"\"),1,0)","v":0},null,null,{"$f":"IF($D84<>\"\",IF(ISERROR(VLOOKUP($D84,CARRPROF,2,FALSE)),\"\",VLOOKUP($D84,CARRPROF,2,FALSE)),\"\")","v":""}]
[0,0,null,null,""]
[0,0,null,null,""]
[0,0,null,null,""]
[0,0,null,null,""]
[0,0,null,null,""]
[0,0,null,null,""]
[0,0,null,null,""]
[0,0,null,null,""]
[]
["01: Presencial",null,null,"(PARA PROGRAMAS DE ESTUDIOS DE TRES AÑOS)"]
["02: Semipresencial",null,null,"106. MATRICULADOS, APROBADOS, DESAPROBADOS, RETIRADOS Y FALLECIDOS EN EL SEMESTRE 2022-I, EN PROGRAMAS DE ESTUDIOS DE TRES AÑOS, POR CICLO Y SEXO"]
["03: Distancia",null,null,"   (Sumar todos los turnos)"]
[null,null,null,"SITUACIÓN",null,null,null,"TOTAL",null,"CICLO Y SEXO"]
[null,null,null,null,null,null,null,null,null,"I",null,"II",null,"III",null,"IV",null,"V",null,"VI"]
[null,null,null,null,null,null,null,"H","M","H","M","H","M","H","M","H","M","H","M","H","M"]
["00",null,null,"Matriculados",null,null,"1/",{"$f":"SUM(H101:H104)","v":0},{"$f":"SUM(I101:I104)","v":0},{"$f":"SUM(J101:J104)","v":0},{"$f":"SUM(K101:K104)","v":0},{"$f":"SUM(L101:L104)","v":0},0,0,0,0,0,0,0,0,0]
["01",null,null,"Aprobados",null,null,null,{"$f":"SUM(J101,L101,N101,P101,R101,T101,V101,X101)","v":0},0]
["02",null,null,"Desaprobados",null,null,null,0,0]
["03",null,null,"Retirados",null,null,null,0,0]
["04",null,null,"Fallecidos",null,null,null,0,0]
[null,null,null,"1/ La matrícula debe ser la suma de todos los rubros."]
[]
[null,null,null,"107. MATRICULADOS, APROBADOS, DESAPROBADOS, RETIRADOS Y FALLECIDOS EN EL SEMESTRE 2022-II, EN PROGRAMAS DE ESTUDIOS DE TRES AÑOS, POR CICLO Y SEXO"]
[null,null,null,"   (Sumar todos los turnos)"]
[null,null,null,"SITUACIÓN",null,null,null,"TOTAL",null,"CICLO Y SEXO"]
[null,null,null,null,null,null,null,null,null,"I",null,"II",null,"III",null,"IV",null,"V",null,"VI"]
[null,null,null,null,null,null,null,"H","M","H","M","H","M","H","M","H","M","H","M","H","M"]
["00",null,null,"Matriculados",null,null,"1/",{"$f":"SUM(H113:H116)","v":0},{"$f":"SUM(I113:I116)","v":0},{"$f":"SUM(J113:J116)","v":0},{"$f":"SUM(K113:K116)","v":0},{"$f":"SUM(L113:L116)","v":0},0,0,0,0,0,0,0,0,0]
["01",null,null,"Aprobados",null,null,null,{"$f":"SUM(J113,L113,N113,P113,R113,T113,V113,X113)","v":0},0]
["02",null,null,"Desaprobados",null,null,null,0,0]
["03",null,null,"Retirados",null,null,null,0,0]
["04",null,null,"Fallecidos",null,null,null,0,0]
[null,null,null,"1/ La matrícula debe ser la suma de todos los rubros."]
[]
[null,null,null,"108. RETIRADOS POR CICLO Y SEXO EN PROGRAMAS DE ESTUDIOS DE TRES AÑOS, SEGÚN MOTIVO (al 30/11/2022). EN LOS SEMESTRES 2022-I y II"]
[null,null,null,"MOTIVO",null,null,null,"TOTAL",null,"CICLO Y SEXO"]
[null,null,null,null,null,null,null,null,null,"I",null,"II",null,"III",null,"IV",null,"V",null,"VI"]
[null,null,null,null,null,null,null,"H","M","H","M","H","M","H","M","H","M","H","M","H","M"]
["00",null,null,"TOTAL RETIRADOS",null,null,null,{"$f":"SUM(H124:H137)","v":0},0,0,0,0,0,0,0,0,0,0,0,0,0]
["01",null,null,"Situación económica",null,null,null,{"$f":"SUM(J124,L124,N124,P124,R124,T124,V124,X124)","v":0},{"$f":"SUM(K124,M124,O124,Q124,S124,U124,W124,Y124)","v":0}]
["02",null,null,"Ingreso a la universidad",null,null,null,0,0]
["03",null,null,"Elección de otra carrera / especialidad",null,null,null,0,0]
["04",null,null,"Enfermedad-Mental",null,null,null,0,0]
["05",null,null,"Enfermedad-Cancer",null,null,null,0,0]
["06",null,null,"Enfermedad-COVID19",null,null,null,0,0]
["07",null,null,"Otra enfermedad",null,null,null,0,0]
["08",null,null,"Adicción-Consumo de drogas",null,null,null,0,0]
["09",null,null,"Adicción-Consumo de alcohol",null,null,null,0,0]
["10",null,null,"Otro tipo de adicción",null,null,null,0,0]
["11",null,null,"Conducta delictiva",null,null,null,0,0]
["12",null,null,"Embarazo",null,null,null,0,0]
["13",null,null,"Migración",null,null,null,0,0]
["14",null,null,"Otro motivo",null,null,null,{"$f":"SUM(J137,L137,N137,P137,R137,T137,V137,X137)","v":0},{"$f":"SUM(K137,M137,O137,Q137,S137,U137,W137,Y137)","v":0}]
[null,null,null,"Nota: Los totales de esta tabla deben ser iguales a la suma de lo reportado en el rubro “Retirados” de la tabla 101 y 102"]
[]
[null,null,null,"109. ¿CUÁNTOS ESTUDIANTES PARA PROGRAMA DE ESTUDIO DE TRES AÑOS, QUE INGRESARON A ESTA INSTITUCIÓN EN EL CICLO I"]
[null,null,null,"DEL PERIODO 2022, SON EGRESADOS DEL 5º AÑO DE EDUCACIÓN SECUNDARIA DEL PERIODO 2021?"]
[null,null,null,"SEMESTRE",null,"Número de Estudiantes ingresantes al primer ciclo en el periodo 2022, que egresaron en el 5º de Secundaria del 2021"]
[]
[null,null,null,null,null,"H",null,null,"M"]
["00",{"$f":"F145+H145","v":0},null,"TOTAL",null,{"$f":"F146+F147","v":0},null,{"$f":"H146+H147","v":0}]
["01",{"$f":"F146+H146","v":0},null,"2022 - I"]
["02",{"$f":"F147+H147","v":0},null,"2022 - II"]
[null,null,null,"110. MATRÍCULADOS, RETIRADOS, EGRESADOS Y TITULADOS EN 2022, POR DURACIÓN DEL PROGRAMA DE ESTUDIOS TRES AÑOS Y SEXO,"]
[null,null,null,"SEGÚN DENOMINACIÓN DEL PROGRAMA DE ESTUDIOS EN LOS SEMESTRES 2022-I Y II"]
[null,null,null,"CARRERAS",null,null,null,null,null,null,null,null,null,null,"TIPO DE MODALIDAD",null,null,"PROGRAMAS DE ESTUDIOS DE TRES AÑOS"]
[{"$f":"SUM(R153:Y153)","v":0},null,null,"CODIGO","DENOMINACIÓN",null,null,null,null,null,null,null,null,null,null,null,null,"Matriculados",null,"Retirados",null,"Egresados",null,"Titulados"]
[null,null,null,null,null,null,null,null,null,null,null,null,null,null,null,null,null,"H","M","H","M","H","M","H","M"]
[{"$f":"SUM(A154:A212)","v":0},{"$f":"SUM(B154:B212)","v":0},null,"0000000000","TOTAL",null,null,null,null,null,null,null,null,null,null,null,null,{"$f":"SUM(R154:R212)","v":0},0,0,0,0,0,0,0]
[{"$f":"IF(AND(E154<>\"\",SUM(R154:Y154)=0),1,IF(AND(E154=\"\",SUM(R154:Y154)>0),2,IF(AND(E154<>\"\",SUM(R154:Y154)>0),3,0)))","v":0},{"$f":"IF(AND(E154<>\"\",O154<>\"\"),1,0)","v":0},null,null,{"$f":"IF($D154<>\"\",IF(ISERROR(VLOOKUP($D154,CARRPROT,2,FALSE)),\"\",VLOOKUP($D154,CARRPROT,2,FALSE)),\"\")","v":""}]
[0,0,null,null,{"$f":"IF($D155<>\"\",IF(ISERROR(VLOOKUP($D155,CARRPROT,2,FALSE)),\"\",VLOOKUP($D155,CARRPROT,2,FALSE)),\"\")","v":""}]
[0,0,null,null,""]
[0,0,null,null,""]
[0,0,null,null,""]
[0,0,null,null,""]
[0,0,null,null,""]
[0,0,null,null,""]
[0,0,null,null,""]
[0,0,null,null,""]
[0,0,null,null,""]
[0,0,null,null,""]
[0,0,null,null,""]
[0,0,null,null,""]
[0,0,null,null,""]
[0,0,null,null,""]
[0,0,null,null,""]
[0,0,null,null,""]
[0,0,null,null,""]
[0,0,null,null,""]
[0,0,null,null,""]
[0,0,null,null,""]
[0,0,null,null,""]
[0,0,null,null,""]
[0,0,null,null,""]
[{"$f":"IF(AND(E179<>\"\",SUM(R179:Y179)=0),1,IF(AND(E179=\"\",SUM(R179:Y179)>0),2,IF(AND(E179<>\"\",SUM(R179:Y179)>0),3,0)))","v":0},{"$f":"IF(AND(E179<>\"\",O179<>\"\"),1,0)","v":0}]
[0,0]
[0,0]
[0,0]
[0,0]
[0,0]
[0,0]
[0,0]
[0,0]
[0,0]
[0,0]
[0,0]
[0,0]
[0,0]
[0,0]
[0,0]
[0,0]
[0,0]
[0,0]
[0,0]
[0,0]
[0,0]
[0,0]
[0,0]
[0,0]
[0,0]
[0,0]
[0,0]
[0,0]
[0,0]
[0,0]
[0,0]
[0,0]
[0,0,null,null,{"$f":"IF($D212<>\"\",IF(ISERROR(VLOOKUP($D212,CARRPROT,2,FALSE)),\"\",VLOOKUP($D212,CARRPROT,2,FALSE)),\"\")","v":""}]
[]
[null,null,null,"(PARA PROGRAMAS DE ESTUDIOS DE DOS AÑOS)"]
[null,null,null,"111. MATRICULADOS, APROBADOS, DESAPROBADOS, RETIRADOS Y FALLECIDOS EN EL SEMESTRE 2022-I Y II, EN PROGRAMAS DE ESTUDIOS DE DOS AÑOS, POR CICLO Y SEXO"]
[null,null,null,"   (Sumar todos los turnos)"]
[null,null,null,"SITUACIÓN",null,"SEMESTRE ACADÉMICO I",null,null,null,null,null,null,null,null,null,"SEMESTRE ACADÉMICO II"]
[null,null,null,null,null,"TOTAL SEM-I",null,"CICLO Y SEXO",null,null,null,null,null,null,null,"TOTAL SEM-II",null,"CICLO Y SEXO"]
[null,null,null,null,null,null,null,"I",null,"II",null,"III",null,"IV",null,null,null,"I",null,"II",null,"III",null,"IV"]
[null,null,null,null,null,"H","M","H","M","H","M","H","M","H","M","H","M","H","M","H","M","H","M","H","M"]
["00",null,null,"Matriculados 1/",null,{"$f":"SUM(F222:F225)","v":0},0,0,0,0,0,0,0,0,0,0,0,0,0,0,0,0,0,0,0]
["01",null,null,"Aprobados",null,{"$f":"SUM(H222,J222,L222,N222)","v":0},0,null,null,null,null,null,null,null,null,{"$f":"SUM(R222,T222,V222,X222)","v":0},0]
["02",null,null,"Desaprobados",null,0,0,null,null,null,null,null,null,null,null,0,0]
["03",null,null,"Retirados",null,0,0,null,null,null,null,null,null,null,null,0,0]
["04",null,null,"Fallecidos",null,0,0,null,null,null,null,null,null,null,null,0,0]
[null,null,null,"1/ La matrícula debe ser la suma de todos los rubros."]
[]
[null,null,null,"112. RETIRADOS POR CICLO Y SEXO EN PROGRAMAS DE ESTUDIOS DE DOS AÑOS Y MÁS, SEGÚN MOTIVO (al 30/11/2022). EN LOS SEMESTRES 2022-I y II"]
[null,null,null,"MOTIVO",null,null,null,"TOTAL",null,"CICLO Y SEXO"]
[null,null,null,null,null,null,null,null,null,"I",null,"II",null,"III",null,"IV"]
[null,null,null,null,null,null,null,"H","M","H","M","H","M","H","M","H","M"]
["00",null,null,"TOTAL RETIRADOS",null,null,null,{"$f":"SUM(H233:H246)","v":0},0,0,0,0,0,0,0,0,0]
["01",null,null,"Situación económica",null,null,null,{"$f":"SUM(J233,L233,N233,P233,R233,T233,V233,X233)","v":0},{"$f":"SUM(K233,M233,O233,Q233,S233,U233,W233,Y233)","v":0}]
["02",null,null,"Ingreso a la universidad",null,null,null,0,0]
["03",null,null,"Elección de otra carrera / especialidad",null,null,null,0,0]
["04",null,null,"Enfermedad-Mental",null,null,null,0,0]
["05",null,null,"Enfermedad-Cancer",null,null,null,0,0]
["06",null,null,"Enfermedad-COVID19",null,null,null,0,0]
["07",null,null,"Otra enfermedad",null,null,null,0,0]
["08",null,null,"Adicción-Consumo de drogas",null,null,null,0,0]
["09",null,null,"Adicción-Consumo de alcohol",null,null,null,0,0]
["10",null,null,"Otro tipo de adicción",null,null,null,0,0]
["11",null,null,"Conducta delictiva",null,null,null,0,0]
["12",null,null,"Embarazo",null,null,null,0,0]
["13",null,null,"Migración",null,null,null,0,0]
["14",null,null,"Otro motivo",null,null,null,{"$f":"SUM(J246,L246,N246,P246,R246,T246,V246,X246)","v":0},{"$f":"SUM(K246,M246,O246,Q246,S246,U246,W246,Y246)","v":0}]
[null,null,null,"Nota: Los totales de esta tabla deben ser iguales a la suma de lo reportado en el rubro “Retirados” de la tabla 111 de ambos semestres"]
[]
[null,null,null,"113. ¿CUÁNTOS ESTUDIANTES PARA PROGRAMA DE ESTUDIO DE DOS AÑOS, QUE INGRESARON A ESTA INSTITUCIÓN EN EL CICLO I"]
[null,null,null,"DEL PERIODO 2022, SON EGRESADOS DEL 5º AÑO DE EDUCACIÓN SECUNDARIA DEL PERIODO 2021?"]
[null,null,null,"SEMESTRE",null,"Número de Estudiantes ingresantes al primer ciclo en el periodo 2022, que egresaron en el 5º de Secundaria del 2021"]
[]
[null,null,null,null,null,"H",null,null,"M"]
["00",{"$f":"F254+H254","v":0},null,"TOTAL",null,{"$f":"F255+F256","v":0},null,{"$f":"H255+H256","v":0}]
["01",{"$f":"F255+H255","v":0},null,"2022 - I"]
["02",{"$f":"F256+H256","v":0},null,"2022 - II"]
[null,null,null,"114. MATRÍCULADOS, RETIRADOS, EGRESADOS Y TITULADOS EN 2022, POR DURACIÓN DEL PROGRAMA DE ESTUDIOS DOS AÑOS Y SEXO,"]
[null,null,null,"SEGÚN DENOMINACIÓN DEL PROGRAMA DE ESTUDIOS EN LOS SEMESTRES 2022-I Y II"]
[null,null,null,"CARRERAS",null,null,null,null,null,null,null,null,null,null,"TIPO DE MODALIDAD",null,null,"PROGRAMAS DE ESTUDIOS DE DOS AÑOS"]
[{"$f":"SUM(R262:Y262)","v":0},null,null,"CODIGO","DENOMINACIÓN",null,null,null,null,null,null,null,null,null,null,null,null,"Matriculados",null,"Retirados",null,"Egresados",null,"Titulados"]
[null,null,null,null,null,null,null,null,null,null,null,null,null,null,null,null,null,"H","M","H","M","H","M","H","M"]
[{"$f":"SUM(A263:A272)","v":0},{"$f":"SUM(B263:B272)","v":0},null,"0000000000","TOTAL",null,null,null,null,null,null,null,null,null,null,null,null,{"$f":"SUM(R263:R272)","v":0},0,0,0,0,0,0,0]
[{"$f":"IF(AND(E263<>\"\",SUM(R263:Y263)=0),1,IF(AND(E263=\"\",SUM(R263:Y263)>0),2,IF(AND(E263<>\"\",SUM(R263:Y263)>0),3,0)))","v":0},{"$f":"IF(AND(E263<>\"\",O263<>\"\"),1,0)","v":0},null,null,{"$f":"IF($D263<>\"\",IF(ISERROR(VLOOKUP($D263,CARRTEC,2,FALSE)),\"\",VLOOKUP($D263,CARRTEC,2,FALSE)),\"\")","v":""}]
[0,0,null,null,{"$f":"IF($D264<>\"\",IF(ISERROR(VLOOKUP($D264,CARRTEC,2,FALSE)),\"\",VLOOKUP($D264,CARRTEC,2,FALSE)),\"\")","v":""}]
[0,0,null,null,""]
[0,0,null,null,""]
[0,0,null,null,""]
[0,0,null,null,""]
[0,0,null,null,""]
[0,0,null,null,""]
[0,0,null,null,""]
[0,0,null,null,""]
[]
[null,null,null,"(PARA TODOS LOS PROGRAMAS DE ESTUDIOS)"]
[null,null,null,"115. DESCRIPCIÓN DE OTROS - COMPLEMENTO Y DESCRIPCIÓN DEL TIPO DE RETIRADOS EN LA INSTITUCIÓN EDUCATIVA"]
[{"$f":"SUM(A277:A291)","v":0},null,null,"NRO.","OTRA ENFERMEDAD",null,null,null,null,{"$f":"COUNTA(E277:J291)","v":0},"OTRO TIPO DE ADICCIÓN",null,null,null,null,null,{"$f":"COUNTA(K277:Q291)","v":0},"OTROS MOTIVOS DE RETIRO",null,null,null,null,null,{"$f":"COUNTA(R277:X291)","v":0}]
[{"$f":"IF(OR(E277<>\"\",K277<>\"\",R277<>\"\"),1,0)","v":0},null,null,"01"]
[{"$f":"IF(OR(E278<>\"\",K278<>\"\",R278<>\"\"),1,0)","v":0},null,null,"02"]
[0,null,null,"03"]
[0,null,null,"04"]
[0,null,null,"05"]
[0,null,null,"06"]
[0,null,null,"07"]
[0,null,null,"08"]
[0,null,null,"09"]
[0,null,null,"10"]
[0,null,null,"11"]
[0,null,null,"12"]
[0,null,null,"13"]
[0,null,null,"14"]
[0,null,null,"15"]
[null,null,null,"Nota: No se registran cantidades, debe especificar el nombre de lo reportado en los rubros “Otra enfermedad”, “Otro tipo de adicción” y “Otro” de las tablas 103, 106 y 112."]
[]
[null,null,null,"116. EGRESADOS, BACHILLER TÉCNICO Y TITULADOS, POR EDAD, SEGÚN SEXO, EN LOS SEMESTRES ACADÉMICOS 2022 I Y II."]
[null,null,null,"SITUACIÓN",null,null,"TOTAL",null,null,"EDAD EN AÑOS CUMPLIDOS AL 31 DE MARZO DE 2022 / SEMESTRE 2022 - I Y II"]
[{"$f":"SUM(G297:H302)","v":0},null,null,null,null,null,null,null,"19 y menos",20,21,22,23,24,25,26,27,28,29,30,"31-35","36-40","41-45","46-50","51 y más"]
["01",null,null,"Egresados - Hombres",null,null,{"$f":"SUM(I297:Y297)","v":0}]
["02",null,null,"Egresados - Mujeres",null,null,0]
["03",null,null,"Bachilleres Técnicos - Hombres",null,null,0]
["04",null,null,"Bachilleres Técnicos - Mujeres",null,null,0]
["05",null,null,"Titulados - Hombres",null,null,0]
["06",null,null,"Titulados - Mujeres",null,null,0]
[null,null,null,"Nota: Los totales de esta tabla deben ser iguales a los reportados en la columna “Egresados y Titulados por género” de la tabla 106 de ambos semestres."]
[]
[null,null,null,"117. EGRESADOS POR SEXO, SEGÚN TIPO DE DISCAPACIDAD U OTRA CONDICIÓN"]
[null,null,null,"CARRERAS Y/O PROGRAMAS DE ESTUDIOS",null,null,null,null,null,null,"TOTAL",null,"Discapacidad Intelectual",null,null,null,null,null,"Discapacidad Auditiva",null,null,null,"Discapacidad Visual",null,null,null,"Discapacidad Física o Motora",null,"Trastorno del Espectro Autista",null,"Sordoceguera",null,"Multidis-capacidad",null,"Otra discapacidad u otra condición",null," Ninguna  discapacidad"]
[null,null,null,null,null,null,null,null,null,null,null,null,"Leve",null,"Moderada",null,"Severa",null,"Hipoacusia",null,"Sordera",null,"Baja visión",null,"Ceguera"]
[{"$f":"SUM(A310:A339)","v":0},null,null,"CÓDIGO",null,"DENOMINACIÓN",null,null,null,null,"H","M","H","M","H","M","H","M","H","M","H","M","H","M","H","M","H","M","H","M","H","M","H","M","H","M","H","M"]
[null,null,null,"0000000000","TOTAL",null,null,null,null,null,{"$f":"SUM(K310:K339)","v":0},0,0,0,0,0,0,0,0,0,0,0,0,0,0,0,0,0,0,0,{"$f":"SUM(AE310:AE339)","v":0},0,0,0,0,0,{"$f":"SUM(AK310:AK339)","v":0},{"$f":"SUM(AL310:AL339)","v":0}]
[{"$f":"IF(AND(E310<>\"\",SUM(M310:AL310)=0),1,IF(AND(E310=\"\",SUM(M310:AL310)>0),2,IF(AND(E310<>\"\",SUM(M310:AL310)>0),3,0)))","v":0},null,null,null,{"$f":"CONCATENATE(AN310,AO310,AP310)","v":""},null,null,null,null,null,{"$f":"SUM(M310,O310,Q310,S310,U310,W310,Y310,AA310,AC310,AE310,AG310,AI310,AK310)","v":0},{"$f":"SUM(N310,P310,R310,T310,V310,X310,Z310,AB310,AD310,AF310,AH310,AJ310,AL310)","v":0},null,null,null,null,null,null,null,null,null,null,null,null,null,null,null,null,null,null,null,null,null,null,null,null,null,null,null,{"$f":" IF(ISERROR(VLOOKUP($D310,CARRPROF,2,FALSE)),\"\",VLOOKUP($D310,CARRPROF,2,FALSE))","v":""},{"$f":" IF(ISERROR(VLOOKUP($D310,CARRPROT,2,FALSE)),\"\",VLOOKUP($D310,CARRPROT,2,FALSE))","v":""},{"$f":" IF(ISERROR(VLOOKUP($D310,CARRTEC,2,FALSE)),\"\",VLOOKUP($D310,CARRTEC,2,FALSE))","v":""}]
[0,null,null,null,{"$f":"CONCATENATE(AN311,AO311,AP311)","v":""},null,null,null,null,null,{"$f":"SUM(M311,O311,Q311,S311,U311,W311,Y311,AA311,AC311,AE311,AG311,AI311,AK311)","v":0},{"$f":"SUM(N311,P311,R311,T311,V311,X311,Z311,AB311,AD311,AF311,AH311,AJ311,AL311)","v":0},null,null,null,null,null,null,null,null,null,null,null,null,null,null,null,null,null,null,null,null,null,null,null,null,null,null,null,{"$f":" IF(ISERROR(VLOOKUP($D311,CARRPROF,2,FALSE)),\"\",VLOOKUP($D311,CARRPROF,2,FALSE))","v":""},{"$f":" IF(ISERROR(VLOOKUP($D311,CARRPROT,2,FALSE)),\"\",VLOOKUP($D311,CARRPROT,2,FALSE))","v":""},{"$f":" IF(ISERROR(VLOOKUP($D311,CARRTEC,2,FALSE)),\"\",VLOOKUP($D311,CARRTEC,2,FALSE))","v":""}]
[0,null,null,null,"",null,null,null,null,null,0,0,null,null,null,null,null,null,null,null,null,null,null,null,null,null,null,null,null,null,null,null,null,null,null,null,null,null,null,"","",""]
[0,null,null,null,"",null,null,null,null,null,0,0,null,null,null,null,null,null,null,null,null,null,null,null,null,null,null,null,null,null,null,null,null,null,null,null,null,null,null,"","",""]
[0,null,null,null,"",null,null,null,null,null,0,0,null,null,null,null,null,null,null,null,null,null,null,null,null,null,null,null,null,null,null,null,null,null,null,null,null,null,null,"","",""]
[0,null,null,null,"",null,null,null,null,null,0,0,null,null,null,null,null,null,null,null,null,null,null,null,null,null,null,null,null,null,null,null,null,null,null,null,null,null,null,"","",""]
[0,null,null,null,"",null,null,null,null,null,0,0,null,null,null,null,null,null,null,null,null,null,null,null,null,null,null,null,null,null,null,null,null,null,null,null,null,null,null,"","",""]
[0,null,null,null,"",null,null,null,null,null,0,0,null,null,null,null,null,null,null,null,null,null,null,null,null,null,null,null,null,null,null,null,null,null,null,null,null,null,null,"","",""]
[0,null,null,null,"",null,null,null,null,null,{"$f":"SUM(M318,O318,Q318,S318,U318,W318,Y318,AA318,AC318,AE318,AG318,AI318,AK318)","v":0},{"$f":"SUM(N318,P318,R318,T318,V318,X318,Z318,AB318,AD318,AF318,AH318,AJ318,AL318)","v":0},null,null,null,null,null,null,null,null,null,null,null,null,null,null,null,null,null,null,null,null,null,null,null,null,null,null,null,"","",""]
[0,null,null,null,"",null,null,null,null,null,0,0,null,null,null,null,null,null,null,null,null,null,null,null,null,null,null,null,null,null,null,null,null,null,null,null,null,null,null,"","",""]
[{"$f":"IF(AND(E320<>\"\",SUM(M320:AL320)=0),1,IF(AND(E320=\"\",SUM(M320:AL320)>0),2,IF(AND(E320<>\"\",SUM(M320:AL320)>0),3,0)))","v":0},null,null,null,{"$f":"CONCATENATE(AN320,AO320,AP320)","v":""},null,null,null,null,null,{"$f":"SUM(M320,O320,Q320,S320,U320,W320,Y320,AA320,AC320,AE320,AG320,AI320,AK320)","v":0},{"$f":"SUM(N320,P320,R320,T320,V320,X320,Z320,AB320,AD320,AF320,AH320,AJ320,AL320)","v":0},null,null,null,null,null,null,null,null,null,null,null,null,null,null,null,null,null,null,null,null,null,null,null,null,null,null,null,"","",""]
[0,null,null,null,"",null,null,null,null,null,0,0,null,null,null,null,null,null,null,null,null,null,null,null,null,null,null,null,null,null,null,null,null,null,null,null,null,null,null,"","",""]
[0,null,null,null,"",null,null,null,null,null,0,0,null,null,null,null,null,null,null,null,null,null,null,null,null,null,null,null,null,null,null,null,null,null,null,null,null,null,null,"","",""]
[0,null,null,null,"",null,null,null,null,null,0,0,null,null,null,null,null,null,null,null,null,null,null,null,null,null,null,null,null,null,null,null,null,null,null,null,null,null,null,"","",""]
[0,null,null,null,"",null,null,null,null,null,0,0,null,null,null,null,null,null,null,null,null,null,null,null,null,null,null,null,null,null,null,null,null,null,null,null,null,null,null,"","",""]
[0,null,null,null,"",null,null,null,null,null,0,0,null,null,null,null,null,null,null,null,null,null,null,null,null,null,null,null,null,null,null,null,null,null,null,null,null,null,null,"","",""]
[0,null,null,null,"",null,null,null,null,null,0,0,null,null,null,null,null,null,null,null,null,null,null,null,null,null,null,null,null,null,null,null,null,null,null,null,null,null,null,"","",""]
[0,null,null,null,"",null,null,null,null,null,0,0,null,null,null,null,null,null,null,null,null,null,null,null,null,null,null,null,null,null,null,null,null,null,null,null,null,null,null,"","",""]
[0,null,null,null,"",null,null,null,null,null,0,0,null,null,null,null,null,null,null,null,null,null,null,null,null,null,null,null,null,null,null,null,null,null,null,null,null,null,null,"","",""]
[0,null,null,null,"",null,null,null,null,null,0,0,null,null,null,null,null,null,null,null,null,null,null,null,null,null,null,null,null,null,null,null,null,null,null,null,null,null,null,"","",""]
[0,null,null,null,"",null,null,null,null,null,0,0,null,null,null,null,null,null,null,null,null,null,null,null,null,null,null,null,null,null,null,null,null,null,null,null,null,null,null,"","",""]
[0,null,null,null,"",null,null,null,null,null,0,0,null,null,null,null,null,null,null,null,null,null,null,null,null,null,null,null,null,null,null,null,null,null,null,null,null,null,null,"","",""]
[0,null,null,null,"",null,null,null,null,null,0,0,null,null,null,null,null,null,null,null,null,null,null,null,null,null,null,null,null,null,null,null,null,null,null,null,null,null,null,"","",""]
[0,null,null,null,"",null,null,null,null,null,0,0,null,null,null,null,null,null,null,null,null,null,null,null,null,null,null,null,null,null,null,null,null,null,null,null,null,null,null,"","",""]
[0,null,null,null,"",null,null,null,null,null,0,0,null,null,null,null,null,null,null,null,null,null,null,null,null,null,null,null,null,null,null,null,null,null,null,null,null,null,null,"","",""]
[0,null,null,null,"",null,null,null,null,null,0,0,null,null,null,null,null,null,null,null,null,null,null,null,null,null,null,null,null,null,null,null,null,null,null,null,null,null,null,"","",""]
[0,null,null,null,"",null,null,null,null,null,0,0,null,null,null,null,null,null,null,null,null,null,null,null,null,null,null,null,null,null,null,null,null,null,null,null,null,null,null,"","",""]
[0,null,null,null,"",null,null,null,null,null,0,0,null,null,null,null,null,null,null,null,null,null,null,null,null,null,null,null,null,null,null,null,null,null,null,null,null,null,null,"","",""]
[0,null,null,null,{"$f":"CONCATENATE(AN338,AO338,AP338)","v":""},null,null,null,null,null,{"$f":"SUM(M338,O338,Q338,S338,U338,W338,Y338,AA338,AC338,AE338,AG338,AI338,AK338)","v":0},{"$f":"SUM(N338,P338,R338,T338,V338,X338,Z338,AB338,AD338,AF338,AH338,AJ338,AL338)","v":0},null,null,null,null,null,null,null,null,null,null,null,null,null,null,null,null,null,null,null,null,null,null,null,null,null,null,null,"","",""]
[0,null,null,null,{"$f":"CONCATENATE(AN339,AO339,AP339)","v":""},null,null,null,null,null,0,0,null,null,null,null,null,null,null,null,null,null,null,null,null,null,null,null,null,null,null,null,null,null,null,null,null,null,null,"","",""]
[]
[null,null,null,"118. TITULADOS POR SEXO, SEGÚN TIPO DE DISCAPACIDAD U OTRA CONDICIÓN"]
[null,null,null,"CARRERAS Y/O PROGRAMAS DE ESTUDIOS",null,null,null,null,null,null,"TOTAL",null,"Discapacidad Intelectual",null,null,null,null,null,"Discapacidad Auditiva",null,null,null,"Discapacidad Visual",null,null,null,"Discapacidad Física o Motora",null,"Trastorno del Espectro Autista",null,"Sordoceguera",null,"Multidis-capacidad",null,"Otra discapacidad u otra condición",null," Ninguna  discapacidad"]
[null,null,null,null,null,null,null,null,null,null,null,null,"Leve",null,"Moderada",null,"Severa",null,"Hipoacusia",null,"Sordera",null,"Baja visión",null,"Ceguera"]
[{"$f":"SUM(A346:A356)","v":0},null,null,"CÓDIGO",null,"DENOMINACIÓN",null,null,null,null,"H","M","H","M","H","M","H","M","H","M","H","M","H","M","H","M","H","M","H","M","H","M","H","M","H","M","H","M"]
[null,null,null,"0000000000","TOTAL",null,null,null,null,null,{"$f":"SUM(K346:K356)","v":0},0,0,0,0,0,0,0,0,0,0,0,0,0,0,0,0,0,0,0,{"$f":"SUM(AE346:AE356)","v":0},0,0,0,0,0,{"$f":"SUM(AK346:AK356)","v":0},{"$f":"SUM(AL346:AL356)","v":0}]
[{"$f":"IF(AND(E346<>\"\",SUM(M346:AL346)=0),1,IF(AND(E346=\"\",SUM(M346:AL346)>0),2,IF(AND(E346<>\"\",SUM(M346:AL346)>0),3,0)))","v":0},null,null,null,{"$f":"CONCATENATE(AN346,AO346,AP346)","v":""},null,null,null,null,null,{"$f":"SUM(M346,O346,Q346,S346,U346,W346,Y346,AA346,AC346,AE346,AG346,AI346,AK346)","v":0},{"$f":"SUM(N346,P346,R346,T346,V346,X346,Z346,AB346,AD346,AF346,AH346,AJ346,AL346)","v":0},null,null,null,null,null,null,null,null,null,null,null,null,null,null,null,null,null,null,null,null,null,null,null,null,null,null,null,{"$f":" IF(ISERROR(VLOOKUP($D346,CARRPROF,2,FALSE)),\"\",VLOOKUP($D346,CARRPROF,2,FALSE))","v":""},{"$f":" IF(ISERROR(VLOOKUP($D346,CARRPROT,2,FALSE)),\"\",VLOOKUP($D346,CARRPROT,2,FALSE))","v":""},{"$f":" IF(ISERROR(VLOOKUP($D346,CARRTEC,2,FALSE)),\"\",VLOOKUP($D346,CARRTEC,2,FALSE))","v":""}]
[0,null,null,null,"",null,null,null,null,null,{"$f":"SUM(M347,O347,Q347,S347,U347,W347,Y347,AA347,AC347,AE347,AG347,AI347,AK347)","v":0},{"$f":"SUM(N347,P347,R347,T347,V347,X347,Z347,AB347,AD347,AF347,AH347,AJ347,AL347)","v":0},null,null,null,null,null,null,null,null,null,null,null,null,null,null,null,null,null,null,null,null,null,null,null,null,null,null,null,{"$f":" IF(ISERROR(VLOOKUP($D347,CARRPROF,2,FALSE)),\"\",VLOOKUP($D347,CARRPROF,2,FALSE))","v":""},{"$f":" IF(ISERROR(VLOOKUP($D347,CARRPROT,2,FALSE)),\"\",VLOOKUP($D347,CARRPROT,2,FALSE))","v":""},{"$f":" IF(ISERROR(VLOOKUP($D347,CARRTEC,2,FALSE)),\"\",VLOOKUP($D347,CARRTEC,2,FALSE))","v":""}]
[0,null,null,null,"",null,null,null,null,null,0,0,null,null,null,null,null,null,null,null,null,null,null,null,null,null,null,null,null,null,null,null,null,null,null,null,null,null,null,"","",""]
[0,null,null,null,"",null,null,null,null,null,0,0,null,null,null,null,null,null,null,null,null,null,null,null,null,null,null,null,null,null,null,null,null,null,null,null,null,null,null,"","",""]
[0,null,null,null,"",null,null,null,null,null,0,0,null,null,null,null,null,null,null,null,null,null,null,null,null,null,null,null,null,null,null,null,null,null,null,null,null,null,null,"","",""]
[0,null,null,null,"",null,null,null,null,null,0,0,null,null,null,null,null,null,null,null,null,null,null,null,null,null,null,null,null,null,null,null,null,null,null,null,null,null,null,"","",""]
[0,null,null,null,"",null,null,null,null,null,0,0,null,null,null,null,null,null,null,null,null,null,null,null,null,null,null,null,null,null,null,null,null,null,null,null,null,null,null,"","",""]
[0,null,null,null,"",null,null,null,null,null,0,0,null,null,null,null,null,null,null,null,null,null,null,null,null,null,null,null,null,null,null,null,null,null,null,null,null,null,null,"","",""]
[0,null,null,null,"",null,null,null,null,null,{"$f":"SUM(M354,O354,Q354,S354,U354,W354,Y354,AA354,AC354,AE354,AG354,AI354,AK354)","v":0},{"$f":"SUM(N354,P354,R354,T354,V354,X354,Z354,AB354,AD354,AF354,AH354,AJ354,AL354)","v":0},null,null,null,null,null,null,null,null,null,null,null,null,null,null,null,null,null,null,null,null,null,null,null,null,null,null,null,"","",""]
[0,null,null,null,"",null,null,null,null,null,0,0,null,null,null,null,null,null,null,null,null,null,null,null,null,null,null,null,null,null,null,null,null,null,null,null,null,null,null,"","",""]
[0,null,null,null,"",null,null,null,null,null,0,0,null,null,null,null,null,null,null,null,null,null,null,null,null,null,null,null,null,null,null,null,null,null,null,null,null,null,null,"","",""]
[]
[null,null,null,"119. BACHILLER TÉCNICO POR SEXO, SEGÚN TIPO DE DISCAPACIDAD U OTRA CONDICIÓN"]
[null,null,null,"PROGRAMAS DE ESTUDIOS / OPCIÓN OCUPACIONAL",null,null,null,null,null,null,"TOTAL",null,"Discapacidad Intelectual",null,null,null,null,null,"Discapacidad Auditiva",null,null,null,"Discapacidad Visual",null,null,null,"Discapacidad Física o Motora",null,"Trastorno del Espectro Autista",null,"Sordoceguera",null,"Multidis-capacidad",null,"Otra discapacidad u otra condición",null," Ninguna  discapacidad"]
[null,null,null,null,null,null,null,null,null,null,null,null,"Leve",null,"Moderada",null,"Severa",null,"Hipoacusia",null,"Sordera",null,"Baja visión",null,"Ceguera"]
[{"$f":"SUM(A363:A373)","v":0},null,null,"CÓDIGO",null,"DENOMINACIÓN",null,null,null,null,"H","M","H","M","H","M","H","M","H","M","H","M","H","M","H","M","H","M","H","M","H","M","H","M","H","M","H","M"]
[null,null,null,"0000000000","TOTAL",null,null,null,null,null,{"$f":"SUM(K363:K373)","v":0},0,0,0,0,0,0,0,0,0,0,0,0,0,0,0,0,0,0,0,{"$f":"SUM(AE363:AE373)","v":0},0,0,0,0,0,{"$f":"SUM(AK363:AK373)","v":0},{"$f":"SUM(AL363:AL373)","v":0}]
[{"$f":"IF(AND(E363<>\"\",SUM(M363:AL363)=0),1,IF(AND(E363=\"\",SUM(M363:AL363)>0),2,IF(AND(E363<>\"\",SUM(M363:AL363)>0),3,0)))","v":0},null,null,null,{"$f":"CONCATENATE(AN363,AO363,AP363)","v":""},null,null,null,null,null,{"$f":"SUM(M363,O363,Q363,S363,U363,W363,Y363,AA363,AC363,AE363,AG363,AI363,AK363)","v":0},{"$f":"SUM(N363,P363,R363,T363,V363,X363,Z363,AB363,AD363,AF363,AH363,AJ363,AL363)","v":0},null,null,null,null,null,null,null,null,null,null,null,null,null,null,null,null,null,null,null,null,null,null,null,null,null,null,null,{"$f":" IF(ISERROR(VLOOKUP($D363,CARRPROF,2,FALSE)),\"\",VLOOKUP($D363,CARRPROF,2,FALSE))","v":""},{"$f":" IF(ISERROR(VLOOKUP($D363,CARRPROT,2,FALSE)),\"\",VLOOKUP($D363,CARRPROT,2,FALSE))","v":""},{"$f":" IF(ISERROR(VLOOKUP($D363,CARRTEC,2,FALSE)),\"\",VLOOKUP($D363,CARRTEC,2,FALSE))","v":""}]
[0,null,null,null,"",null,null,null,null,null,{"$f":"SUM(M364,O364,Q364,S364,U364,W364,Y364,AA364,AC364,AE364,AG364,AI364,AK364)","v":0},{"$f":"SUM(N364,P364,R364,T364,V364,X364,Z364,AB364,AD364,AF364,AH364,AJ364,AL364)","v":0},null,null,null,null,null,null,null,null,null,null,null,null,null,null,null,null,null,null,null,null,null,null,null,null,null,null,null,{"$f":" IF(ISERROR(VLOOKUP($D364,CARRPROF,2,FALSE)),\"\",VLOOKUP($D364,CARRPROF,2,FALSE))","v":""},{"$f":" IF(ISERROR(VLOOKUP($D364,CARRPROT,2,FALSE)),\"\",VLOOKUP($D364,CARRPROT,2,FALSE))","v":""},{"$f":" IF(ISERROR(VLOOKUP($D364,CARRTEC,2,FALSE)),\"\",VLOOKUP($D364,CARRTEC,2,FALSE))","v":""}]
[0,null,null,null,"",null,null,null,null,null,0,0,null,null,null,null,null,null,null,null,null,null,null,null,null,null,null,null,null,null,null,null,null,null,null,null,null,null,null,"","",""]
[0,null,null,null,"",null,null,null,null,null,0,0,null,null,null,null,null,null,null,null,null,null,null,null,null,null,null,null,null,null,null,null,null,null,null,null,null,null,null,"","",""]
[0,null,null,null,"",null,null,null,null,null,0,0,null,null,null,null,null,null,null,null,null,null,null,null,null,null,null,null,null,null,null,null,null,null,null,null,null,null,null,"","",""]
[0,null,null,null,"",null,null,null,null,null,0,0,null,null,null,null,null,null,null,null,null,null,null,null,null,null,null,null,null,null,null,null,null,null,null,null,null,null,null,"","",""]
[0,null,null,null,"",null,null,null,null,null,0,0,null,null,null,null,null,null,null,null,null,null,null,null,null,null,null,null,null,null,null,null,null,null,null,null,null,null,null,"","",""]
[0,null,null,null,"",null,null,null,null,null,0,0,null,null,null,null,null,null,null,null,null,null,null,null,null,null,null,null,null,null,null,null,null,null,null,null,null,null,null,"","",""]
[0,null,null,null,"",null,null,null,null,null,{"$f":"SUM(M371,O371,Q371,S371,U371,W371,Y371,AA371,AC371,AE371,AG371,AI371,AK371)","v":0},{"$f":"SUM(N371,P371,R371,T371,V371,X371,Z371,AB371,AD371,AF371,AH371,AJ371,AL371)","v":0},null,null,null,null,null,null,null,null,null,null,null,null,null,null,null,null,null,null,null,null,null,null,null,null,null,null,null,"","",""]
[0,null,null,null,"",null,null,null,null,null,0,0,null,null,null,null,null,null,null,null,null,null,null,null,null,null,null,null,null,null,null,null,null,null,null,null,null,null,null,"","",""]
[0,null,null,null,"",null,null,null,null,null,0,0,null,null,null,null,null,null,null,null,null,null,null,null,null,null,null,null,null,null,null,null,null,null,null,null,null,null,null,"","",""]
[]
[null,null,null,"120. ¿CUAL ES EL NUMERO DE PROYECTOS DESARROLLADOS POR INSTITUCIONES DE LA EDUCACION SUPERIOR QUE FUERON FINANCIADOS CON FONDOS PUBLICOS?"]
[null,null,null,"(Solo para tecnológico y pedagógicos públicos)"]
[{"$f":"SUM(A378:A382)","v":0},{"$f":"SUM(B378:B382)","v":0},null,"NRO","NOMBRE DEL PROYECTO",null,null,null,null,null,"INSTITUCIÓN PÚBLICA QUE FINANCIA",null,null,null,"PARTIDA PRESUPUESTAL",null,null,null,"FUENTE DE FINANCIAMIENTO",null,null,null,"MONTO COMPROMETIDO"]
[{"$f":"IF(AND(E378<>\"\",K378<>\"\",O378<>\"\",S378<>\"\",W378<>\"\"),1,0)","v":0},{"$f":"IF(OR(E378<>\"\",K378<>\"\",O378<>\"\",S378<>\"\",W378<>\"\"),1,0)","v":0},null,"01"]
[{"$f":"IF(AND(E379<>\"\",K379<>\"\",O379<>\"\",S379<>\"\",W379<>\"\"),1,0)","v":0},{"$f":"IF(OR(E379<>\"\",K379<>\"\",O379<>\"\",S379<>\"\",W379<>\"\"),1,0)","v":0},null,"02"]
[{"$f":"IF(AND(E380<>\"\",K380<>\"\",O380<>\"\",S380<>\"\",W380<>\"\"),1,0)","v":0},{"$f":"IF(OR(E380<>\"\",K380<>\"\",O380<>\"\",S380<>\"\",W380<>\"\"),1,0)","v":0},null,"03"]
[{"$f":"IF(AND(E381<>\"\",K381<>\"\",O381<>\"\",S381<>\"\",W381<>\"\"),1,0)","v":0},{"$f":"IF(OR(E381<>\"\",K381<>\"\",O381<>\"\",S381<>\"\",W381<>\"\"),1,0)","v":0},null,"04"]
[{"$f":"IF(AND(E382<>\"\",K382<>\"\",O382<>\"\",S382<>\"\",W382<>\"\"),1,0)","v":0},{"$f":"IF(OR(E382<>\"\",K382<>\"\",O382<>\"\",S382<>\"\",W382<>\"\"),1,0)","v":0},null,"05"]
[]
[null,null,null,"DATOS DEL DIRECTOR Y/O RESPONSABLE (S) DEL LLENADO DE LA CÉDULA"]
[]
[null,null,null,"NOMBRES Y APELLIDOS",null,null,null,null,null,null,"CARGO",null,null,null,null,"CORREO ELECTRÓNICO",null,null,null,null,null,"TELÉFONO"]
[1]
[2]
[3]
[]
[]
[]
["DIRECTOR(A)"]
["SUB DIRECTOR(A)"]
["DOCENTE"]
["COORDINADOR(A)"]
["ASESOR"]
["ADMINISTRATIVO"]
["ASISTENTE"]
["AUXILIAR"]
["SECRETARIA(O)"]
["ESTADÍSTICO"]
["ESPECIALISTA"]
["BIBLIOTECARIO"]
["CARE"]
["COMANDANTE PNP"]
["CONTADOR"]
["DAIP"]
["DIGITADOR(A)"]
["GERENTE"]
["JEFE ACADÉMICO"]
["JEFE ADMINISTRATIVO"]
["JEFE DE ÁREA"]
["JEFE DE LABORATORIO"]
["JEFE DE PERSONAL"]
["JEFE DE SEDE"]
["JEFE DE UNIDAD"]
["OFICINISTA"]
["OPERADOR DE SISTEMAS"]
["PERSONAL DE SERVICIO"]
["PROGRAMADOR"]
["PROMOTOR(A)"]
["PSICOLOGO"]
["REGISTRADOR(A)"]
["REPRESENTANTE LEGAL"]
["SOPORTE TECNOLOGICO"]
["TÉCNICO ADMINISTRATIVO"]
["TESORERO(A)"]
["TRABAJADOR SOCIAL"]
["TUTOR"]
["OTROS"]

{"sheet":"Enviar","index":1,"n_rows":9,"n_cols":3,"rows_kept":9,"cut":false,"hidden":true,"merged":[[0,0,0,3],[1,0,1,3]]}
["CENSO ESCOLAR 2022"]
["RESULTADO DEL EJERCICIO EDUCATIVO"]
[]
[]
[null,"Paso 1:","Realice el ENVÍO con su clave EOL."]
[]
[null,"Paso 2:","Una vez realizado el ENVÍO,  Revise su constancia de envio."]
[]
[null,"  ADVERTENCIA","Asegúrese de registrar toda la información del nivel informante"]

{"sheet":"Carreras","index":2,"n_rows":818,"n_cols":6,"rows_kept":818,"cut":false,"hidden":true,"merged":[]}
[null,"PROFESIONAL TÉCNICO  (3 AÑOS DE ESTUDIO)",null,null,"PROFESIONAL (4 AÑOS DE ESTUDIO)"]
[null,"CÓDIGO","CARRERA",null,"CÓDIGO","CARRERA"]
[null,"SPT4181094","ABASTECIMIENTO PROFESIONAL TÉCNICO",null,"SPF4130008","ADMINISTRACIÓN DE EMPRESAS PROFESIONAL"]
[null,"SPT2151064","ACTUACIÓN PROFESIONAL TÉCNICO",null,"SPF0140011","ADMINISTRACIÓN DE EMPRESAS TURÍSTICAS Y HOTELERAS PROFESIONAL"]
[null,"SPT8311319","ACUICULTURA PROFESIONAL TÉCNICO",null,"SPF4130009","ADMINISTRACIÓN DE EMPRESAS Y CONTABILIDAD PROFESIONAL"]
[null,"SPT4131095","ADMINISTRACIÓN PROFESIONAL TÉCNICO",null,"SPF0120012","ADMINISTRACIÓN DE HOTELES, RESTAURANTES Y AFINES PROFESIONAL"]
[null,"SPT4121096","ADMINISTRACIÓN BANCARIA PROFESIONAL TÉCNICO",null,"SPF0140211","ADMINISTRACIÓN DE INDUSTRIAS TURÍSTICAS Y HOTELERAS PROFESIONAL"]
[null,"SPT4121097","ADMINISTRACIÓN BANCARIA POR COMPETENCIAS PROFESIONAL TÉCNICO",null,"SPF4130010","ADMINISTRACIÓN DE NEGOCIOS PROFESIONAL"]
[null,"SPT4121098","ADMINISTRACIÓN BANCARIA Y FINANCIERA PROFESIONAL TÉCNICO",null,"SPF4136141","ADMINISTRACIÓN Y DIRECCIÓN DE NEGOCIOS PROFESIONAL"]
[null,"SPT4131099","ADMINISTRACIÓN DE AEROPUERTOS PROFESIONAL TÉCNICO",null,"SPF2116628","ANIMACIÓN DIGITAL PROFESIONAL"]
[null,"SPT4131100","ADMINISTRACIÓN DE AGENCIA DE VIAJES PROFESIONAL TÉCNICO",null,"SPF7310023","ARQUITECTURA DE INTERIORES PROFESIONAL"]
[null,"SPT4121101","ADMINISTRACIÓN DE BANCA Y FINANZAS PROFESIONAL TÉCNICO",null,"SPF2136130","ARTES PLÁSTICAS Y VISUALES PROFESIONAL"]
[null,"SPT0120015","ADMINISTRACIÓN DE BAR PROFESIONAL TÉCNICO",null,"SPF3220007","COMUNICACIÓN AUDIOVISUAL MULTIMEDIA PROFESIONAL"]
[null,"SPT6121185","ADMINISTRACIÓN DE CENTRO DE CÓMPUTO PROFESIONAL TÉCNICO",null,"SPF3226143","COMUNICACIÓN ESTRATÉGICA PROFESIONAL"]
[null,"SPT6126106","ADMINISTRACIÓN DE CENTROS DE CÓMPUTO PROFESIONAL TÉCNICO",null,"SPF4116162","CONTABILIDAD Y FINANZAS PROFESIONAL"]
[null,"SPT6116178","ADMINISTRACIÓN DE CENTROS DE CÓMPUTO CON MENCIÓN EN IMPLEMENTACIÓN, CONFIGURACIÓN Y REPARACIÓN DE COMPUTADORAS PROFESIONAL TÉCNICO",null,"SPF2110003","DIRECCIÓN DE ARTES GRÁFICAS Y PUBLICITARIAS PROFESIONAL"]
[null,"SPT4131102","ADMINISTRACIÓN DE EMPRESAS PROFESIONAL TÉCNICO",null,"SPF2116138","DIRECCIÓN DE PROYECTOS VISUALES Y FOTOGRAFÍA PROFESIONAL"]
[null,"SPT4136597","ADMINISTRACIÓN DE EMPRESAS CON MENCIÓN EN AGRONEGOCIOS PROFESIONAL TÉCNICO",null,"SPF2110004","DIRECCIÓN Y DISEÑO GRÁFICO PROFESIONAL"]
[null,"SPT4136137","ADMINISTRACIÓN DE EMPRESAS CON MENCIÓN EN EMPRESAS INDUSTRIALES PROFESIONAL TÉCNICO",null,"SPF2110005","DIRECCIÓN Y DISEÑO PUBLICITARIO PROFESIONAL"]
[null,"SPT4136145","ADMINISTRACIÓN DE EMPRESAS CON MENCIÓN EN FINANZAS PROFESIONAL TÉCNICO",null,"SPF2136117","DISEÑO DE PRODUCTO E INNOVACIÓN TECNOLÓGICA PROFESIONAL"]
[null,"SPT4136136","ADMINISTRACIÓN DE EMPRESAS CON MENCIÓN EN GESTIÓN EMPRESARIAL PROFESIONAL TÉCNICO",null,"SPF2116629","DISEÑO DE VIDEOJUEGOS Y ENTRETENIMIENTO DIGITAL PROFESIONAL"]
[null,"SPT4131103","ADMINISTRACIÓN DE EMPRESAS DE TRANSPORTES PROFESIONAL TÉCNICO",null,"SPF2116076","DISEÑO GRÁFICO PROFESIONAL"]
[null,"SPT0120206","ADMINISTRACIÓN DE EMPRESAS HOTELERAS PROFESIONAL TÉCNICO",null,"SPF2116630","DISEÑO Y COMUNICACIÓN VISUAL PROFESIONAL"]
[null,"SPT0141121","ADMINISTRACIÓN DE EMPRESAS TURÍSTICAS PROFESIONAL TÉCNICO",null,"SPF2120072","DISEÑO Y GESTIÓN DE LA MODA PROFESIONAL"]
[null,"SPT0141122","ADMINISTRACIÓN DE EMPRESAS TURÍSTICAS Y HOTELERAS PROFESIONAL TÉCNICO",null,"SPF2136631","DISEÑO Y GESTIÓN DE MARCAS PROFESIONAL"]
[null,"SPT4130105","ADMINISTRACIÓN DE EMPRESAS Y CONTABILIDAD PROFESIONAL TÉCNICO",null,"SPF2116573","FOTOGRAFÍA E IMAGEN DIGITAL PROFESIONAL"]
[null,"SPT4136542","ADMINISTRACIÓN DE EMPRESAS Y GESTIÓN DE EQUIPOS PROFESIONAL TÉCNICO",null,"SPF4126632","GESTIÓN BANCARIA Y FINANCIERA PROFESIONAL"]
[null,"SPT4136543","ADMINISTRACIÓN DE EMPRESAS Y GESTIÓN DE MARKETING PROFESIONAL TÉCNICO",null,"SPF4116633","GESTIÓN CONTABLE, FINANCIERA Y TRIBUTARIA PROFESIONAL"]
[null,"SPT4136544","ADMINISTRACIÓN DE EMPRESAS Y GESTIÓN DE RECURSOS HUMANOS PROFESIONAL TÉCNICO",null,"SPF4136634","GESTIÓN DE LA CADENA DE SUMINISTROS PROFESIONAL"]
[null,"SPT4136545","ADMINISTRACIÓN DE EMPRESAS Y GESTIÓN FINANCIERA PROFESIONAL TÉCNICO",null,"SPF6126635","GESTIÓN DE SISTEMAS DE INFORMACIÓN PROFESIONAL"]
[null,"SPT0121123","ADMINISTRACIÓN DE HOSTELERÍA PROFESIONAL TÉCNICO",null,"SPF4146636","GESTIÓN ESTRATÉGICA DE MARKETING PROFESIONAL"]
[null,"SPT0121124","ADMINISTRACIÓN DE HOTELES Y RESTAURANTES PROFESIONAL TÉCNICO",null,"SPF4166637","GESTIÓN ESTRATÉGICA DE NEGOCIOS INTERNACIONALES PROFESIONAL"]
[null,"SPT0121125","ADMINISTRACIÓN DE HOTELES, RESTAURANTES Y AFINES PROFESIONAL TÉCNICO",null,"SPF6116163","INGENIERÍA DE SISTEMAS DE INFORMACIÓN PROFESIONAL"]
[null,"SPT0140035","ADMINISTRACIÓN DE INDUSTRIAS TURÍSTICAS Y HOTELERAS PROFESIONAL TÉCNICO",null,"SPF6130015","INGENIERÍA DE TELECOMUNICACIONES PROFESIONAL"]
[null,"SPT4131104","ADMINISTRACIÓN DE NEGOCIOS PROFESIONAL TÉCNICO",null,"SPF6130016","INGENIERÍA DE TELEMÁTICA PROFESIONAL"]
[null,"SPT4131301","ADMINISTRACIÓN DE NEGOCIOS AGROPECUARIOS PROFESIONAL TÉCNICO",null,"SPF2210001","LITERATURA BÍBLICA PROFESIONAL"]
[null,"SPT4120222","ADMINISTRACIÓN DE NEGOCIOS BANCARIOS Y FINANCIEROS PROFESIONAL TÉCNICO",null,"SPF4146142","MARKETING E INNOVACIÓN PROFESIONAL"]
[null,"SPT4126546","ADMINISTRACIÓN DE NEGOCIOS BANCARIOS Y MICROFINANZAS PROFESIONAL TÉCNICO",null,"SPF4146118","MARKETING ESTRATÉGICO E INNOVACIÓN PROFESIONAL"]
[null,"SPT4126547","ADMINISTRACIÓN DE NEGOCIOS BANCARIOS, FINANCIEROS Y BANCA DIGITAL PROFESIONAL TÉCNICO",null,"SPF4140013","MARKETING INTEGRAL PROFESIONAL"]
[null,"SPT4126548","ADMINISTRACIÓN DE NEGOCIOS BANCARIOS, FINANCIEROS Y GESTIÓN DE EQUIPOS PROFESIONAL TÉCNICO",null,"SPF4136638","PLANIFICACIÓN DE PROCESOS ESTRATÉGICOS DE RECURSOS HUMANOS PROFESIONAL"]
[null,"SPT4161146","ADMINISTRACIÓN DE NEGOCIOS INTERNACIONALES PROFESIONAL TÉCNICO",null,"SPF2116639","PUBLICIDAD Y COMUNICACIÓN COMERCIAL PROFESIONAL"]
[null,"SPT0141127","ADMINISTRACIÓN DE NEGOCIOS INTERNACIONALES DE TURISMO PROFESIONAL TÉCNICO",null,"SPF4140196","PUBLICIDAD Y MARKETING DIGITAL PROFESIONAL"]
[null,"SPT4166549","ADMINISTRACIÓN DE NEGOCIOS INTERNACIONALES Y GESTIÓN DE FINANZAS INTERNACIONALES PROFESIONAL TÉCNICO",null,"SPF6120014","SISTEMAS INFORMÁTICOS PARA LA PRODUCTIVIDAD PROFESIONAL"]
[null,"SPT0140166","ADMINISTRACIÓN DE NEGOCIOS TURÍSTICOS PROFESIONAL TÉCNICO",null,"SPF6130079","TÉCNICAS DE INGENIERÍA DE TELECOMUNICACIONES PROFESIONAL"]
[null,"SPT4130115","ADMINISTRACIÓN DE NEGOCIOS Y DIRECCIÓN DE VENTAS PROFESIONAL TÉCNICO",null,"SPF6130080","TÉCNICAS DE INGENIERÍA DE TELEMÁTICA PROFESIONAL"]
[null,"SPT4130083","ADMINISTRACIÓN DE NEGOCIOS Y GESTIÓN DE EMPRENDIMIENTO PROFESIONAL TÉCNICO",null,"SPF7110018","TÉCNICAS DE INGENIERÍA ELÉCTRICA PROFESIONAL"]
[null,"SPT4131105","ADMINISTRACIÓN DE NEGOCIOS Y VENTAS PROFESIONAL TÉCNICO",null,"SPF7120019","TÉCNICAS DE INGENIERÍA ELECTRÓNICA PROFESIONAL"]
[null,"SPT4126146","ADMINISTRACIÓN DE OPERACIONES BANCARIAS Y FINANCIERAS PROFESIONAL TÉCNICO",null,"SPF7130020","TÉCNICAS DE INGENIERÍA MECÁNICA DE MANTENIMIENTO PROFESIONAL"]
[null,"SPT0146084","ADMINISTRACIÓN DE OPERACIONES TURÍSTICAS PROFESIONAL TÉCNICO",null,"SPF7130021","TÉCNICAS DE INGENIERÍA MECÁNICA DE PRODUCCIÓN PROFESIONAL"]
[null,"SPT7240130","ADMINISTRACIÓN DE OPERACIONES Y MINERÍA PROFESIONAL TÉCNICO",null,"SPF7116122","TÉCNICO EN INGENIERÍA ELÉCTRICA PROFESIONAL"]
[null,"SPT6116180","ADMINISTRACION DE PLATAFORMAS PROFESIONAL TÉCNICO",null,"SPF7126121","TÉCNICO EN INGENIERÍA ELECTRÓNICA PROFESIONAL"]
[null,"SPT6116105","ADMINISTRACIÓN DE PLATAFORMAS Y SERVICIOS WEB PROFESIONAL TÉCNICO",null,"SPF7136072","TÉCNICO EN INGENIERÍA MECÁNICA PROFESIONAL"]
[null,"SPT8210162","ADMINISTRACIÓN DE RECURSOS AGROPECUARIOS Y FORESTALES PROFESIONAL TÉCNICO",null,"SPF8110024","TECNOLOGÍA AGRÍCOLA PROFESIONAL"]
[null,"SPT8211316","ADMINISTRACIÓN DE RECURSOS FORESTALES PROFESIONAL TÉCNICO",null,"SPF7130017","TECNOLOGÍA DE LA PRODUCCIÓN PROFESIONAL"]
[null,"SPT4181158","ADMINISTRACIÓN DE RECURSOS HUMANOS PROFESIONAL TÉCNICO",null,"SPF7130022","TECNOLOGÍA MECÁNICA ELÉCTRICA PROFESIONAL"]
[null,"SPT6116165","ADMINISTRACIÓN DE REDES Y COMUNICACIÓN PROFESIONAL TÉCNICO",null,"SPF2210175","TEOLOGÍA PROFESIONAL"]
[null,"SPT6120215","ADMINISTRACIÓN DE REDES Y COMUNICACIONES PROFESIONAL TÉCNICO",null,"SPF2210002","TEOLOGÍA - EVANGÉLICA PROFESIONAL"]
[null,"SPT6126591","ADMINISTRACIÓN DE REDES Y COMUNICACIONES CON MENCIÓN EN VIRTUALIZACIÓN Y SEGURIDAD INFORMÁTICA PROFESIONAL TÉCNICO",null,"SPF3130006","TERAPIA PSICOANALÍTICA PROFESIONAL"]
[null,"SPT4121106","ADMINISTRACIÓN DE SEGUROS PROFESIONAL TÉCNICO"]
[null,"SPT0121126","ADMINISTRACIÓN DE SERVICIOS DE HOSTELERÍA PROFESIONAL TÉCNICO",null,"TÉCNICO  (2 AÑOS DE ESTUDIO)"]
[null,"SPT0126102","ADMINISTRACIÓN DE SERVICIOS DE HOSTELERÍA Y RESTAURANTES PROFESIONAL TÉCNICO",null,"CÓDIGO","CARRERA"]
[null,"SPT0126601","ADMINISTRACIÓN DE SERVICIOS DE HOSTELERÍA Y RESTAURANTES CON MENCIÓN EN GERENCIA DE LA HOSPITALIDAD INTERNACIONAL PROFESIONAL TÉCNICO",null,"STE6111395","ADMINISTRACIÓN DE BASE DE DATOS TÉCNICO"]
[null,"SPT4131159","ADMINISTRACIÓN DE SERVICIOS DE POSTALES PROFESIONAL TÉCNICO",null,"STE6126167","ADMINISTRACIÓN DE DATOS TÉCNICO"]
[null,"SPT0126071","ADMINISTRACIÓN DE SERVICIOS EN HOSTELERÍA PROFESIONAL TÉCNICO",null,"STE0121375","ADMINISTRACIÓN DE HOSTELERÍA TÉCNICO"]
[null,"SPT0120122","ADMINISTRACIÓN DE SERVICIOS TURÍSTICOS PROFESIONAL TÉCNICO",null,"STE0121376","ADMINISTRACIÓN DE HOTELES TÉCNICO"]
[null,"SPT0140177","ADMINISTRACIÓN DE SERVICIOS TURÍSTICOS Y HOTELES PROFESIONAL TÉCNICO",null,"STE7321441","ADMINISTRACIÓN DE LA CONSTRUCCIÓN TÉCNICO"]
[null,"SPT6126551","ADMINISTRACIÓN DE SISTEMAS PARA LA TRANSFORMACIÓN DIGITAL PROFESIONAL TÉCNICO",null,"STE4130068","ADMINISTRACIÓN DE PEQUEÑOS NEGOCIOS TÉCNICO"]
[null,"SPT6126552","ADMINISTRACIÓN DE SISTEMAS Y PRUEBAS DE SOLUCIONES MULTIPLATAFORMA PARA LA TRANSFORMACIÓN DIGITAL PROFESIONAL TÉCNICO",null,"STE6121396","ADMINISTRACIÓN DE REDES TÉCNICO"]
[null,"SPT6126553","ADMINISTRACIÓN DE SISTEMAS Y SOLUCIONES DE INTELIGENCIA DE NEGOCIOS PARA LA TRANSFORMACIÓN DIGITAL PROFESIONAL TÉCNICO",null,"STE0121377","ADMINISTRACIÓN DE RESTAURANTES TÉCNICO"]
[null,"SPT4131107","ADMINISTRACIÓN EJECUTIVA PROFESIONAL TÉCNICO",null,"STE4130077","ADMINISTRACIÓN DE SERVICIOS TÉCNICO"]
[null,"SPT4130154","ADMINISTRACIÓN EMPRESARIAL PROFESIONAL TÉCNICO",null,"STE0121378","ADMINISTRACIÓN TURÍSTICA TÉCNICO"]
[null,"SPT4110133","ADMINISTRACIÓN FINANCIERA Y CONTABLE PROFESIONAL TÉCNICO",null,"STE4136624","ALMACENAMIENTO E INVENTARIOS TÉCNICO"]
[null,"SPT0120039","ADMINISTRACIÓN HOSTELERA PROFESIONAL TÉCNICO",null,"STE8111455","ALTO RIESGO TÉCNICO"]
[null,"SPT0121128","ADMINISTRACIÓN HOTELERA PROFESIONAL TÉCNICO",null,"STE5426615","ANÁLISIS DE DATOS EMPRESARIALES TÉCNICO"]
[null,"SPT4131108","ADMINISTRACIÓN INDUSTRIAL PROFESIONAL TÉCNICO",null,"STE4146625","ANÁLISIS DE MERCADOS TÉCNICO"]
[null,"SPT6121186","ADMINISTRACIÓN INFORMÁTICA DE EMPRESAS PROFESIONAL TÉCNICO",null,"STE4126616","ASESORAMIENTO OPERATIVO Y COMERCIAL DE PRODUCTOS BANCARIOS Y FINANCIEROS TÉCNICO"]
[null,"SPT4131109","ADMINISTRACIÓN LOGÍSTICA PROFESIONAL TÉCNICO",null,"STE4181379","AVIACIÓN COMERCIAL TÉCNICO"]
[null,"SPT0310093","ADMINISTRACIÓN MILITAR PROFESIONAL TÉCNICO",null,"STE8111451","AVICULTURA Y CRIANZA DE ANIMALES MENORES TÉCNICO"]
[null,"SPT4171110","ADMINISTRACIÓN MUNICIPAL PROFESIONAL TÉCNICO",null,"STE0126617","BAR Y COCTELERÍA TÉCNICO"]
[null,"SPT0310100","ADMINISTRACIÓN NAVAL PROFESIONAL TÉCNICO",null,"STE0326175","CIENCIAS ADMINISTRATIVAS Y POLICIALES TÉCNICO"]
[null,"SPT4170045","ADMINISTRACIÓN PÚBLICA PROFESIONAL TÉCNICO",null,"STE0121381","COCINA TÉCNICO"]
[null,"SPT4131302","ADMINISTRACIÓN RURAL PROFESIONAL TÉCNICO",null,"STE0120121","COCINA Y RESTAURANTES TÉCNICO"]
[null,"SPT0120026","ADMINISTRACIÓN TURÍSTICA PROFESIONAL TÉCNICO",null,"STE4181392","COMERCIO TÉCNICO"]
[null,"SPT0120046","ADMINISTRACIÓN TURÍSTICA Y HOTELERA PROFESIONAL TÉCNICO",null,"STE4161388","COMERCIO INTERNACIONAL TÉCNICO"]
[null,"SPT0321362","ADMINISTRACIÓN Y CIENCIAS POLICIALES PROFESIONAL TÉCNICO",null,"STE4131389","COMERCIO Y PRODUCCIÓN TÉCNICO"]
[null,"SPT4110155","ADMINISTRACIÓN Y CONTABILIDAD PROFESIONAL TÉCNICO",null,"STE6116505","COMPUTACIÓN E INFORMÁTICA TÉCNICO"]
[null,"SPT4131113","ADMINISTRACIÓN Y FINANZAS PROFESIONAL TÉCNICO",null,"STE7241424","CONCENTRACIÓN DE MINERALES POR SEPARACIÓN FÍSICA TÉCNICO"]
[null,"SPT0121129","ADMINISTRACIÓN Y GERENCIA EN HOTELERÍA INTERNACIONAL PROFESIONAL TÉCNICO",null,"STE7211401","CONFITERÍA INDUSTRIAL TÉCNICO"]
[null,"SPT4131111","ADMINISTRACIÓN Y GESTIÓN COMERCIAL PROFESIONAL TÉCNICO",null,"STE3130029","CONSEJERÍA DE ORIENTACIÓN PSICOANALÍTICA TÉCNICO"]
[null,"SPT4136554","ADMINISTRACIÓN Y GESTIÓN COMERCIAL CON MENCIÓN EN FINANZAS PROFESIONAL TÉCNICO",null,"STE8111454","CONSERVACIÓN Y APROVECHAMIENTO RACIONAL DE RECURSOS FORESTALES TÉCNICO"]
[null,"SPT4136555","ADMINISTRACIÓN Y GESTIÓN COMERCIAL CON MENCIÓN EN RECURSOS HUMANOS PROFESIONAL TÉCNICO",null,"STE4111394","CONTABILIDAD TÉCNICO"]
[null,"SPT4130167","ADMINISTRACIÓN Y GESTIÓN DE EMPRESAS PROFESIONAL TÉCNICO",null,"STE4110069","CONTABILIDAD OPERATIVA TÉCNICO"]
[null,"SPT4131112","ADMINISTRACIÓN Y GESTIÓN EMPRESARIAL PROFESIONAL TÉCNICO",null,"STE0131363","DEPORTES TÉCNICO"]
[null,"SPT4131187","ADMINISTRACIÓN Y SISTEMAS PROFESIONAL TÉCNICO",null,"STE6120152","DESARROLLO DE REDES TÉCNICO"]
[null,"SPT4131160","ADMINISTRATIVO PROFESIONAL TÉCNICO",null,"STE6120150","DESARROLLO DE SOFTWARE TÉCNICO"]
[null,"SPT7321281","AEROFOTOGRAFÍA PROFESIONAL TÉCNICO",null,"STE7316089","DIBUJO DE ARQUITECTURA Y OBRAS CIVILES TÉCNICO"]
[null,"SPT7141240","AERONÁUTICA PROFESIONAL TÉCNICO",null,"STE7320030","DIBUJO DE CONSTRUCCIÓN CIVIL TÉCNICO"]
[null,"SPT4181161","AGENCIA DE DESARROLLO INTEGRAL PROFESIONAL TÉCNICO",null,"STE3220193","DIRECCIÓN DE RADIO Y TELEVISIÓN TÉCNICO"]
[null,"SPT8111223","AGROINDUSTRIAS PROFESIONAL TÉCNICO",null,"STE0130199","DIRECCIÓN TÉCNICA EN FÚTBOL TÉCNICO"]
[null,"SPT8110104","AGRONOMÍA PROFESIONAL TÉCNICO",null,"STE7111410","ELECTRICIDAD INDUSTRIAL TÉCNICO"]
[null,"SPT8111303","AGROPECUARIA PROFESIONAL TÉCNICO",null,"STE7121417","ELECTROMECÁNICA TÉCNICO"]
[null,"SPT6121188","ANÁLISIS DE SISTEMAS PROFESIONAL TÉCNICO",null,"STE7121413","ELECTRÓNICA DE CONSUMO TÉCNICO"]
[null,"SPT6121189","ANÁLISIS DE SISTEMAS Y MODELACIÓN DE BASE DE DATOS PROFESIONAL TÉCNICO",null,"STE7241425","EXPLOTACIÓN DE MINAS TÉCNICO"]
[null,"SPT7320025","ANÁLISIS DE SUELOS Y CONCRETO PROFESIONAL TÉCNICO",null,"STE7211403","EXTRACCIÓN DE ACEITES, GRASAS Y AZÚCAR TÉCNICO"]
[null,"SPT6120085","ANÁLISIS E IMPLEMENTACIÓN DE SERVICIOS WEB PROFESIONAL TÉCNICO",null,"STE7236503","FABRICACIÓN DE PRENDAS DE VESTIR TÉCNICO"]
[null,"SPT3111167","ANÁLISIS ECONÓMICO PROFESIONAL TÉCNICO",null,"STE9171456","FARMACIA TÉCNICO"]
[null,"SPT3121178","ANÁLISIS POLÍTICO PROFESIONAL TÉCNICO",null,"STE8110031","FRUTICULTURA TÉCNICO"]
[null,"SPT5311182","ANÁLISIS QUÍMICO PROFESIONAL TÉCNICO",null,"STE5326096","GEOLOGÍA Y EXPLORACIÓN TÉCNICO"]
[null,"SPT6121190","ANALISTA PROFESIONAL TÉCNICO",null,"STE4130171","GESTIÓN DE LOGÍSTICA Y DE ALMACENES TÉCNICO"]
[null,"SPT4110622","ANALISTA BANCARIO PROFESIONAL TÉCNICO",null,"STE4130179","GESTIÓN EMPRESARIAL TÉCNICO"]
[null,"SPT4114019","ANALISTA COMERCIAL PROFESIONAL TÉCNICO",null,"STE4130170","GESTIÓN Y ADMINISTRACIÓN DE PEQUEÑOS NEGOCIOS TÉCNICO"]
[null,"SPT4111818","ANALISTA DE RIESGOS PROFESIONAL TÉCNICO",null,"STE0141457","GUÍA DE TURISTAS TÉCNICO"]
[null,"SPT3110188","ANALISTA ECONÓMICO PROFESIONAL TÉCNICO",null,"STE8120032","HORTICULTURA TÉCNICO"]
[null,"SPT4111515","ANALISTA EN MERCADOTÉCNIA PROFESIONAL TÉCNICO",null,"STE0121383","HOSTELERÍA TÉCNICO"]
[null,"SPT5421479","ANALISTA ESTADÍSTICO PROFESIONAL TÉCNICO",null,"STE7231435","INDUSTRIA DEL VESTIDO TÉCNICO"]
[null,"SPT7324248","ANALISTA INMOBILIARIO PROFESIONAL TÉCNICO",null,"STE7116510","INSTALACIONES ELÉCTRICAS TÉCNICO"]
[null,"SPT3120189","ANALISTA POLÍTICO PROFESIONAL TÉCNICO",null,"STE7110099","INSTRUMENTACIÓN INDUSTRIAL TÉCNICO"]
[null,"SPT6121191","ANALISTA PROGRAMADOR PROFESIONAL TÉCNICO",null,"STE0320138","INVESTIGACIÓN PRIVADA TÉCNICO"]
[null,"SPT5426592","ANALÍTICA PROFESIONAL TÉCNICO",null,"STE8111453","JARDINERÍA Y FLORICULTURA TÉCNICO"]
[null,"SPT9120113","ANESTESIA PROFESIONAL TÉCNICO",null,"STE2211365","LITERATURA BÍBLICA TÉCNICO"]
[null,"SPT9121320","ANESTESIOLOGÍA PROFESIONAL TÉCNICO",null,"STE3211371","LOCUCIÓN Y COMUNICACIÓN DE RADIO Y TELEVISIÓN TÉCNICO"]
[null,"SPT2116066","ANIMACIÓN 3D Y EFECTOS ESPECIALES PROFESIONAL TÉCNICO",null,"STE4136168","LOGÍSTICA DIGITAL INTEGRADA TÉCNICO"]
[null,"SPT6116144","ANIMACIÓN 3D Y EFECTOS VISUALES PROFESIONAL TÉCNICO",null,"STE7136618","MANTENIMIENTO DE MAQUINARIAS Y REDES ELÉCTRICAS TÉCNICO"]
[null,"SPT2111035","ANIMACIÓN DIGITAL PROFESIONAL TÉCNICO",null,"STE7110204","MANTENIMIENTO DE MÁQUINAS Y REDES ELÉCTRICAS TÉCNICO"]
[null,"SPT6116556","ANIMACIÓN DIGITAL Y DISEÑO 3D PROFESIONAL TÉCNICO",null,"STE7136095","MANTENIMIENTO DE PLANTAS INDUSTRIALES TÉCNICO"]
[null,"SPT3231027","ARCHIVOS PROFESIONAL TÉCNICO",null,"STE7116619","MANTENIMIENTO DE SISTEMAS ELÉCTRICOS TÉCNICO"]
[null,"SPT0311350","ARMAS SUBMARINAS PROFESIONAL TÉCNICO",null,"STE7116097","MANTENIMIENTO ELÉCTRICO E INSTRUMENTACIÓN TÉCNICO"]
[null,"SPT6116557","ARQUITECTURA DE DATOS EMPRESARIALES CON MENCIÓN EN BIG DATA DEVELOPER PROFESIONAL TÉCNICO",null,"STE7116620","MANTENIMIENTO ELECTRÓNICO INDUSTRIAL TÉCNICO"]
[null,"SPT7311291","ARQUITECTURA DE INTERIORES PROFESIONAL TÉCNICO",null,"STE7131419","MATRICERÍA TÉCNICO"]
[null,"SPT6116107","ARQUITECTURA DE PLATAFORMA Y SERVICIOS DE TECNOLOGÍAS DE LA INFORMACIÓN PROFESIONAL TÉCNICO",null,"STE7131420","MECÁNICA AUTOMOTRIZ TÉCNICO"]
[null,"SPT6116149","ARQUITECTURA DE PLATAFORMAS Y SERVICIOS DE TECNOLOGÍA DE LA INFORMACION CON MENCIÓN EN PROGRAMACIÓN PROFESIONAL TÉCNICO",null,"STE7131421","MECÁNICA DE EQUIPOS PESADOS TÉCNICO"]
[null,"SPT6116176","ARQUITECTURA DE PLATAFORMAS Y SERVICIOS DE TECNOLOGÍAS DE INFORMACIÓN PROFESIONAL TÉCNICO",null,"STE7131422","MECÁNICA DE PLANTA TÉCNICO"]
[null,"SPT6116558","ARQUITECTURA DE PLATAFORMAS Y SERVICIOS DE TECNOLOGÍAS DE LA INFORMACIÓN CON MENCIÓN EN PROGRAMAS MULTIMEDIA PROFESIONAL TÉCNICO",null,"STE7131423","MECÁNICA DE PRODUCCIÓN TÉCNICO"]
[null,"SPT6120125","ARQUITECTURA DE SISTEMAS DE INFORMACIÓN PROFESIONAL TÉCNICO",null,"STE7130210","MECÁNICA INDUSTRIAL TÉCNICO"]
[null,"SPT0120159","ARTE CULINARIO PROFESIONAL TÉCNICO",null,"STE5216100","MEDIO AMBIENTE TÉCNICO"]
[null,"SPT2151065","ARTE DRAMÁTICO PROFESIONAL TÉCNICO",null,"STE2116169","MODELADO Y ANIMACIÓN DIGITAL TÉCNICO"]
[null,"SPT2111036","ARTES GRÁFICAS PROFESIONAL TÉCNICO",null,"STE7211405","MOLINERÍA Y PROCESAMIENTO DE GRANOS Y TUBÉRCULOS TÉCNICO"]
[null,"SPT2111037","ARTES GRÁFICAS Y PUBLICITARIAS PROFESIONAL TÉCNICO",null,"STE8311450","NAVEGACIÓN Y PESCA TÉCNICO"]
[null,"SPT2131032","ARTES PLÁSTICAS Y VISUALES PROFESIONAL TÉCNICO",null,"STE4161390","NEGOCIOS - COMERCIO INTERNACIONAL TÉCNICO"]
[null,"SPT2130064","ARTES VISUALES PROFESIONAL TÉCNICO",null,"STE4131391","NEGOCIOS - COMERCIO Y PRODUCCIÓN TÉCNICO"]
[null,"SPT2111038","ARTES Y CIENCIAS PUBLICITARIAS PROFESIONAL TÉCNICO",null,"STE3211372","OPERACIÓN DE EQUIPOS DE GRABACIÓN Y MEZCLA TÉCNICO"]
[null,"SPT2130120","ARTESANÍA PROFESIONAL TÉCNICO",null,"STE3211373","OPERACIÓN DE EQUIPOS DE RADIO Y TELEVISIÓN TÉCNICO"]
[null,"SPT0311351","ARTILLERÍA PROFESIONAL TÉCNICO",null,"STE7130090","OPERACIÓN DE MAQUINARIA PESADA TÉCNICO"]
[null,"SPT8310025","ASEGURAMIENTO DE LA CALIDAD DE PRODUCTOS HIDROBIOLÓGICOS PROFESIONAL TÉCNICO",null,"STE3211374","OPERACIÓN DE SISTEMAS DE DIFUSIÓN SONORA TÉCNICO"]
[null,"SPT4136161","ASISTENCIA ADMINISTRATIVA PROFESIONAL TÉCNICO",null,"STE4166626","OPERACIONES DE COMERCIO EXTERIOR TÉCNICO"]
[null,"SPT4156123","ASISTENCIA DE DIRECCIÓN Y GERENCIA PROFESIONAL TÉCNICO",null,"STE7241426","OPERACIONES DE PERFORACIÓN TÉCNICO"]
[null,"SPT4156127","ASISTENTE EJECUTIVA DE GERENCIA PROFESIONAL TÉCNICO",null,"STE2116621","ORGANIZACIÓN DE EVENTOS Y ESPECTÁCULOS TÉCNICO"]
[null,"SPT4151152","ASISTENTE EJECUTIVO PROFESIONAL TÉCNICO",null,"STE4170997","OTRO PROGRAMA EN ADMINISTRACIÓN PÚBLICA TÉCNICO"]
[null,"SPT2111091","AUDIOVISUAL MULTIMEDIA PROFESIONAL TÉCNICO",null,"STE3150997","OTRO PROGRAMA EN ANTROPOLOGÍA TÉCNICO"]
[null,"SPT7141241","AUTOTRÓNICA PROFESIONAL TÉCNICO",null,"STE7310997","OTRO PROGRAMA EN ARQUITECTURA Y URBANISMO TÉCNICO"]
[null,"SPT9131325","AUXILIAR DE ENFERMERÍA PROFESIONAL TÉCNICO",null,"STE2130997","OTRO PROGRAMA EN ARTE TÉCNICO"]
[null,"SPT7141242","AVIÓNICA PROFESIONAL TÉCNICO",null,"STE2140997","OTRO PROGRAMA EN ARTESANÍA Y MANUALIDADES TÉCNICO"]
[null,"SPT7146559","AVIÓNICA Y MECÁNICA AERONAÚTICA PROFESIONAL TÉCNICO",null,"STE9210997","OTRO PROGRAMA EN ASISTENCIA A ADULTOS MAYORES Y DISCAPACITADOS TÉCNICO"]
[null,"SPT4111170","BANCA Y FINANZAS PROFESIONAL TÉCNICO",null,"STE9220997","OTRO PROGRAMA EN ASISTENCIA A LA INFANCIA Y SERVICIOS PARA JÓVENES TÉCNICO"]
[null,"SPT6116166","BIG DATA Y CIENCIA DE DATOS PROFESIONAL TÉCNICO",null,"STE3230997","OTRO PROGRAMA EN BIBLIOTECOLOGÍA Y ARCHIVO TÉCNICO"]
[null,"SPT2111092","CÁMARA Y EDICIÓN CREATIVA PROFESIONAL TÉCNICO",null,"STE5110997","OTRO PROGRAMA EN BIOLOGÍA TÉCNICO"]
[null,"SPT0311352","CAPITANÍA Y GUARDACOSTAS PROFESIONAL TÉCNICO",null,"STE6110997","OTRO PROGRAMA EN CIENCIAS DE LA COMPUTACIÓN TÉCNICO"]
[null,"SPT0316160","CAPITANÍAS Y GUARDACOSTAS PROFESIONAL TÉCNICO",null,"STE3220997","OTRO PROGRAMA EN CIENCIAS DE LA COMUNICACIÓN TÉCNICO"]
[null,"SPT0320226","CIENCIAS ADMINISTRATIVAS Y POLICIALES PROFESIONAL TÉCNICO",null,"STE5320997","OTRO PROGRAMA EN CIENCIAS DE LA TIERRA TÉCNICO"]
[null,"SPT0326087","CIENCIAS ADMINISTRATIVAS Y POLICIALES CON MENCIÓN EN INVESTIGACIÓN CRIMINAL PROFESIONAL TÉCNICO",null,"STE3120997","OTRO PROGRAMA EN CIENCIAS POLÍTICAS TÉCNICO"]
[null,"SPT0326088","CIENCIAS ADMINISTRATIVAS Y POLICIALES CON MENCIÓN EN ORDEN Y SEGURIDAD PROFESIONAL TÉCNICO",null,"STE4180997","OTRO PROGRAMA EN COMPETENCIAS LABORALES TÉCNICO"]
[null,"SPT3221072","CIENCIAS DE LA COMUNICACIÓN PROFESIONAL TÉCNICO",null,"STE7320997","OTRO PROGRAMA EN CONSTRUCCIÓN E INGENIERÍA CIVIL TÉCNICO"]
[null,"SPT2111039","CIENCIAS PUBLICITARIAS PROFESIONAL TÉCNICO",null,"STE4110997","OTRO PROGRAMA EN CONTABILIDAD E IMPUESTOS TÉCNICO"]
[null,"SPT2156560","CINEMATOGRAFIA PROFESIONAL TÉCNICO",null,"STE0130997","OTRO PROGRAMA EN DEPORTE TÉCNICO"]
[null,"SPT2110105","CINEMATOGRAFÍA PROFESIONAL TÉCNICO",null,"STE4220997","OTRO PROGRAMA EN DERECHO PRIVADO TÉCNICO"]
[null,"SPT0121130","COCINA PROFESIONAL TÉCNICO",null,"STE4210997","OTRO PROGRAMA EN DERECHO PÚBLICO TÉCNICO"]
[null,"SPT4181162","COMERCIO PROFESIONAL TÉCNICO",null,"STE2120997","OTRO PROGRAMA EN DISEÑO INDUSTRIAL, DE MODAS E INTERIORES TÉCNICO"]
[null,"SPT4161147","COMERCIO EXTERIOR PROFESIONAL TÉCNICO",null,"STE5210997","OTRO PROGRAMA EN ECOLOGÍA Y MEDIO AMBIENTE TÉCNICO"]
[null,"SPT4161148","COMERCIO EXTERIOR ÁREA ARTESANÍA DEL VESTIR PROFESIONAL TÉCNICO",null,"STE3110997","OTRO PROGRAMA EN ECONOMÍA TÉCNICO"]
[null,"SPT4161149","COMERCIO EXTERIOR ÁREA FINANZAS PROFESIONAL TÉCNICO",null,"STE1610997","OTRO PROGRAMA EN EDUCACIÓN ARTÍSTICA TÉCNICO"]
[null,"SPT4161150","COMERCIO EXTERIOR ÁREA MARKETING PROFESIONAL TÉCNICO",null,"STE1410997","OTRO PROGRAMA EN EDUCACIÓN ESPECIAL TÉCNICO"]
[null,"SPT2151057","COMPOSICIÓN PROFESIONAL TÉCNICO",null,"STE1510997","OTRO PROGRAMA EN EDUCACIÓN FÍSICA TÉCNICO"]
[null,"SPT6111192","COMPUTACIÓN PROFESIONAL TÉCNICO",null,"STE1110997","OTRO PROGRAMA EN EDUCACIÓN INICIAL TÉCNICO"]
[null,"SPT6111193","COMPUTACIÓN E INFORMÁTICA PROFESIONAL TÉCNICO",null,"STE0310997","OTRO PROGRAMA EN EDUCACIÓN MILITAR Y DE DEFENSA TÉCNICO"]
[null,"SPT6121194","COMPUTACIÓN Y ADMINISTRACIÓN DE SISTEMAS PROFESIONAL TÉCNICO",null,"STE1120997","OTRO PROGRAMA EN EDUCACIÓN PRIMARIA TÉCNICO"]
[null,"SPT6121195","COMPUTACIÓN Y SISTEMAS PROFESIONAL TÉCNICO",null,"STE1210997","OTRO PROGRAMA EN EDUCACIÓN SECUNDARIA TÉCNICO"]
[null,"SPT6110051","COMPUTACIÓN Y SOLUCIONES INFORMÁTICAS PROFESIONAL TÉCNICO",null,"STE1310997","OTRO PROGRAMA EN EDUCACIÓN SUPERIOR Y TECNOLÓGICA TÉCNICO"]
[null,"SPT3221073","COMUNICACIÓN AUDIOVISUAL PROFESIONAL TÉCNICO",null,"STE7110997","OTRO PROGRAMA EN ELECTRICIDAD Y ENERGÍA TÉCNICO"]
[null,"SPT3221074","COMUNICACIÓN AUDIOVISUAL MULTIMEDIA PROFESIONAL TÉCNICO",null,"STE7120997","OTRO PROGRAMA EN ELECTRÓNICA Y AUTOMATIZACIÓN TÉCNICO"]
[null,"SPT3221075","COMUNICACIÓN ESCÉNICA PROFESIONAL TÉCNICO",null,"STE9130997","OTRO PROGRAMA EN ENFERMERÍA TÉCNICO"]
[null,"SPT3221076","COMUNICACIÓN INTEGRAL PROFESIONAL TÉCNICO",null,"STE5420997","OTRO PROGRAMA EN ESTADÍSTICA TÉCNICO"]
[null,"SPT3226134","COMUNICACIÓN PERIODÍSTICA PROFESIONAL TÉCNICO",null,"STE9170997","OTRO PROGRAMA EN FARMACIA TÉCNICO"]
[null,"SPT3221077","COMUNICACIÓN SOCIAL PROFESIONAL TÉCNICO",null,"STE2230997","OTRO PROGRAMA EN FILOSOFÍA Y ETICA TÉCNICO"]
[null,"SPT3226113","COMUNICACIÓN Y ARTE DIGITAL PROFESIONAL TÉCNICO",null,"STE5330997","OTRO PROGRAMA EN FÍSICA TÉCNICO"]
[null,"SPT3226561","COMUNICACIÓN Y MARKETING DE LA MODA PROFESIONAL TÉCNICO",null,"STE4120997","OTRO PROGRAMA EN GESTIÓN FINANCIERA, ADMINISTRACIÓN BANCARIA Y SEGUROS TÉCNICO"]
[null,"SPT7241264","CONCENTRACIÓN DE MINERALES PROFESIONAL TÉCNICO",null,"STE4130997","OTRO PROGRAMA EN GESTIÓN Y ADMINISTRACIÓN TÉCNICO"]
[null,"SPT8311295","CONDUCCIÓN DE EMBARCACIONES DE PESCA PROFESIONAL TÉCNICO",null,"STE1910997","OTRO PROGRAMA EN GESTIÓN Y CALIDAD EDUCATIVA TÉCNICO"]
[null,"SPT0141338","CONDUCCIÓN EN TURISMO PROFESIONAL TÉCNICO",null,"STE2220997","OTRO PROGRAMA EN HISTORIA Y ARQUEOLOGÍA TÉCNICO"]
[null,"SPT2221292","CONSERVACIÓN DE BIENES ARQUEOLÓGICOS PROFESIONAL TÉCNICO",null,"STE8120997","OTRO PROGRAMA EN HORTICULTURA TÉCNICO"]
[null,"SPT2131293","CONSERVACIÓN Y RESTAURACIÓN PROFESIONAL TÉCNICO",null,"STE0120997","OTRO PROGRAMA EN HOTELERÍA, RESTAURANTES Y GASTRONOMÍA TÉCNICO"]
[null,"SPT7320041","CONSTRUCCIÓN ARTÍSTICA EN MADERA PROFESIONAL TÉCNICO",null,"STE2310997","OTRO PROGRAMA EN IDIOMAS TÉCNICO"]
[null,"SPT7321282","CONSTRUCCIÓN CIVIL PROFESIONAL TÉCNICO",null,"STE7220997","OTRO PROGRAMA EN INDUSTRIA Y PRODUCTOS TRANSFORMADOS (EXCEPTO ALIMENTOS, TEXTIL, AGRO, MINAS Y PETRÓLEO) TÉCNICO"]
[null,"SPT2131033","CONSTRUCCIÓN DE ARTE EN MADERA PROFESIONAL TÉCNICO",null,"STE7210997","OTRO PROGRAMA EN INDUSTRIAS ALIMENTARIAS TÉCNICO"]
[null,"SPT7320213","CONSTRUCCIÓN Y TOPOGRAFÍA PROFESIONAL TÉCNICO",null,"STE7330997","OTRO PROGRAMA EN INGENIERÍA SANITARIA TÉCNICO"]
[null,"SPT2140028","CONSTRUCCIONES ARTÍSTICAS EN MADERA PROFESIONAL TÉCNICO",null,"STE5430997","OTRO PROGRAMA EN INVESTIGACIÓN OPERATIVA TÉCNICO"]
[null,"SPT7130200","CONSTRUCCIONES METÁLICAS PROFESIONAL TÉCNICO",null,"STE2320997","OTRO PROGRAMA EN LINGÜÍSTICA Y LITERATURA TÉCNICO"]
[null,"SPT4111171","CONTABILIDAD PROFESIONAL TÉCNICO",null,"STE4140997","OTRO PROGRAMA EN MARKETING Y PUBLICIDAD TÉCNICO"]
[null,"SPT4111172","CONTABILIDAD COMPUTARIZADA PROFESIONAL TÉCNICO",null,"STE5410997","OTRO PROGRAMA EN MATEMÁTICA TÉCNICO"]
[null,"SPT4116124","CONTABILIDAD CON MENCIÓN EN FINANZAS PROFESIONAL TÉCNICO",null,"STE7130997","OTRO PROGRAMA EN MECÁNICA Y METALÚRGICA TÉCNICO"]
[null,"SPT4116150","CONTABILIDAD CON MENCIÓN EN PROCESOS DE TRIBUTACIÓN PROFESIONAL TÉCNICO",null,"STE9120997","OTRO PROGRAMA EN MEDICINA TÉCNICO"]
[null,"SPT4116598","CONTABILIDAD CON MENCIÓN EN TRIBUTACIÓN PROFESIONAL TÉCNICO",null,"STE7240997","OTRO PROGRAMA EN MINERÍA Y EXTRACCIÓN TÉCNICO"]
[null,"SPT4116562","CONTABILIDAD Y AUDITORÍA PROFESIONAL TÉCNICO",null,"STE2150997","OTRO PROGRAMA EN MÚSICA Y ARTES ESCÉNICAS TÉCNICO"]
[null,"SPT4111173","CONTABILIDAD Y FINANZAS PROFESIONAL TÉCNICO",null,"STE4160997","OTRO PROGRAMA EN NEGOCIOS INTERNACIONALES TÉCNICO"]
[null,"SPT4116563","CONTABILIDAD Y FINANZAS CORPORATIVAS PROFESIONAL TÉCNICO",null,"STE9180997","OTRO PROGRAMA EN NUTRICIÓN TÉCNICO"]
[null,"SPT4116564","CONTABILIDAD Y TRIBUTACIÓN PROFESIONAL TÉCNICO",null,"STE9140997","OTRO PROGRAMA EN OBSTETRICIA TÉCNICO"]
[null,"SPT4110056","CONTABILIDAD, FINANZAS Y AUDITORÍA PROFESIONAL TÉCNICO",null,"STE9110997","OTRO PROGRAMA EN ODONTOLOGÍA TÉCNICO"]
[null,"SPT0316156","CONTROL DE TIRO PROFESIONAL TÉCNICO",null,"STE0110997","OTRO PROGRAMA EN PELUQUERÍA Y TRATAMIENTOS DE BELLEZA TÉCNICO"]
[null,"SPT6131210","CONTROL DE TRÁNSITO AÉREO PROFESIONAL TÉCNICO",null,"STE3210997","OTRO PROGRAMA EN PERIODISMO Y LOCUCIÓN TÉCNICO"]
[null,"SPT7120015","CONTROLISTA DE MÁQUINAS Y PROCESOS INDUSTRIALES PROFESIONAL TÉCNICO",null,"STE8310997","OTRO PROGRAMA EN PESCA TÉCNICO"]
[null,"SPT0111349","COSMÉTICA DERMATOLÓGICA PROFESIONAL TÉCNICO",null,"STE8110997","OTRO PROGRAMA EN PRODUCCIÓN AGRÍCOLA Y GANADERA TÉCNICO"]
[null,"SPT0110025","COSMETOLOGÍA PROFESIONAL TÉCNICO",null,"STE7230997","OTRO PROGRAMA EN PRODUCCIÓN TEXTIL Y CONFECCIONES TÉCNICO"]
[null,"SPT0116109","COSMIATRÍA PROFESIONAL TÉCNICO",null,"STE0320997","OTRO PROGRAMA EN PROTECCIÓN DE LAS PERSONAS Y DE PROPIEDAD TÉCNICO"]
[null,"SPT4111174","CRÉDITO SECTORIAL PROFESIONAL TÉCNICO",null,"STE3130997","OTRO PROGRAMA EN PSICOLOGÍA TÉCNICO"]
[null,"SPT4111175","CRÉDITOS PROFESIONAL TÉCNICO",null,"STE5310997","OTRO PROGRAMA EN QUÍMICA TÉCNICO"]
[null,"SPT9131326","CUIDADOS AUXILIARES DE ENFERMERÍA PROFESIONAL TÉCNICO",null,"STE5220997","OTRO PROGRAMA EN RECURSOS HÍDRICOS TÉCNICO"]
[null,"SPT2151055","DANZA PROFESIONAL TÉCNICO",null,"STE2210997","OTRO PROGRAMA EN RELIGIÓN Y TEOLOGÍA TÉCNICO"]
[null,"SPT0311353","DEFENSA AÉREA PROFESIONAL TÉCNICO",null,"STE0220997","OTRO PROGRAMA EN SALUD Y PROTECCIÓN LABORAL TÉCNICO"]
[null,"SPT6110182","DESARROLLO DE SOFTWARE E INTELIGENCIA DE NEGOCIOS PROFESIONAL TÉCNICO",null,"STE0210997","OTRO PROGRAMA EN SANEAMIENTO DE LA COMUNIDAD TÉCNICO"]
[null,"SPT6110153","DESARROLLO DE REDES Y GESTIÓN DE SERVICIOS PROFESIONAL TÉCNICO",null,"STE4150997","OTRO PROGRAMA EN SECRETARIADO Y TRABAJO DE OFICINA TÉCNICO"]
[null,"SPT6116085","DESARROLLO DE SISTEMAS DE INFORMACIÓN PROFESIONAL TÉCNICO",null,"STE0410997","OTRO PROGRAMA EN SERVICIOS DE TRANSPORTE TÉCNICO"]
[null,"SPT7126588","DESARROLLO DE SISTEMAS DE INFORMACIÓN CON MENCIÓN EN APLICATIVOS MÓVILES PROFESIONAL TÉCNICO",null,"STE8210997","OTRO PROGRAMA EN SILVICULTURA TÉCNICO"]
[null,"SPT7126587","DESARROLLO DE SISTEMAS DE INFORMACIÓN CON MENCIÓN EN INTELIGENCIA DE NEGOCIOS PROFESIONAL TÉCNICO",null,"STE6120997","OTRO PROGRAMA EN SISTEMAS Y CÓMPUTO TÉCNICO"]
[null,"SPT7126148","DESARROLLO DE SISTEMAS DE INFORMACIÓN CON MENCIÓN EN PROCESOS DE AUTOMATIZACIÓN PROFESIONAL TÉCNICO",null,"STE3140997","OTRO PROGRAMA EN SOCIOLOGÍA Y ESTUDIOS CULTURALES TÉCNICO"]
[null,"SPT6110220","DESARROLLO DE SISTEMAS DE INFORMACIÓN MENCIÓN EN SEGURIDAD INFORMÁTICA PROFESIONAL TÉCNICO",null,"STE2110997","OTRO PROGRAMA EN TÉCNICAS AUDIOVISUALES Y DE PRODUCCIÓN PARA MEDIOS DE COMUNICACIÓN TÉCNICO"]
[null,"SPT6110221","DESARROLLO DE SISTEMAS DE INFORMACIÓN MENCIÓN EN SOFTWARE EMPRESARIAL PROFESIONAL TÉCNICO",null,"STE9150997","OTRO PROGRAMA EN TECNOLOGÍA DE DIAGNÓSTICO Y TRATAMIENTO MÉDICO TÉCNICO"]
[null,"SPT6116164","DESARROLLO DE SISTEMAS DE LA INFORMACIÓN PROFESIONAL TÉCNIC",null,"STE6130997","OTRO PROGRAMA EN TELECOMUNICACIONES TÉCNICO"]
[null,"SPT6120165","DESARROLLO DE SOFTWARE PROFESIONAL TÉCNICO",null,"STE9160997","OTRO PROGRAMA EN TERAPIA Y REHABILITACIÓN TÉCNICO"]
[null,"SPT6110151","DESARROLLO DE SOFTWARE E INTELIGENCIA DE NEGOCIOS PROFESIONAL TÉCNICO",null,"STE9230997","OTRO PROGRAMA EN TRABAJO SOCIAL TÉCNICO"]
[null,"SPT6110156","DESARROLLO DE SOFTWARE Y APLICATIVOS MÓVILES PROFESIONAL TÉCNICO",null,"STE7140997","OTRO PROGRAMA EN VEHÍCULOS, BARCOS Y AERONAVES MOTORIZADAS TÉCNICO"]
[null,"SPT7320071","DIBUJO DE ARQUITECTURA Y OBRAS CIVILES PROFESIONAL TÉCNICO",null,"STE8410997","OTRO PROGRAMA EN VETERINARIA TÉCNICO"]
[null,"SPT7326172","DIBUJO DE LA ARQUITECTURA Y OBRAS CIVILES PROFESIONAL TÉCNICO",null,"STE0140997","OTRO PROGRAMA EN VIAJES, TURISMO Y ACTIVIDADES RECREATIVAS TÉCNICO"]
[null,"SPT7321283","DIBUJO EN CONSTRUCCIÓN CIVIL PROFESIONAL TÉCNICO",null,"STE4190997","OTROS PROGRAMAS EN ADMINISTRACIÓN Y COMERCIO TÉCNICO"]
[null,"SPT6116115","DIRECCIÓN DE ANIMACIÓN 3D Y VFX PROFESIONAL TÉCNICO",null,"STE1990997","OTROS PROGRAMAS EN EDUCACIÓN TÉCNICO"]
[null,"SPT2110145","DIRECCIÓN DE ARTES GRÁFICAS Y PUBLICITARIAS PROFESIONAL TÉCNICO",null,"STE0126502","OTROS PROGRAMAS EN HOSTELERÍA , RESTAURANTES Y GASTRONOMÍA TÉCNICO"]
[null,"SPT4181114","DIRECCIÓN DE EMPRESAS PROFESIONAL TÉCNICO",null,"STE9190997","OTROS PROGRAMAS EN SALUD TÉCNICO"]
[null,"SPT4181115","DIRECCIÓN DE EMPRESAS Y FINANZAS PROFESIONAL TÉCNICO",null,"STE7211406","PANADERÍA Y PASTELERÍA INDUSTRIAL TÉCNICO"]
[null,"SPT2151058","DIRECCIÓN MUSICAL PROFESIONAL TÉCNICO",null,"STE7211407","PANIFICACIÓN TÉCNICO"]
[null,"SPT0130194","DIRECCIÓN TÉCNICA EN FÚTBOL PROFESIONAL TÉCNICO",null,"STE0121384","PASTELERÍA TÉCNICO"]
[null,"SPT2111041","DIRECCIÓN Y DISEÑO GRÁFICO PROFESIONAL TÉCNICO",null,"STE7211386","PASTELERÍA Y TURISMO TÉCNICO"]
[null,"SPT2111042","DIRECCIÓN Y DISEÑO PUBLICITARIO PROFESIONAL TÉCNICO",null,"STE7320184","PLANEAMIENTO Y CONTROL DE PROYECTOS DE CONSTRUCCIÓN TÉCNICO"]
[null,"SPT3221078","DIRECCIÓN Y GUIONIZACIÓN PROFESIONAL TÉCNICO",null,"STE6116171","PLATAFORMAS Y SERVICIOS DE TECNOLOGÍAS DE LA INFORMACIÓN TÉCNICO"]
[null,"SPT3221079","DIRECCIÓN Y PRODUCCIÓN EN RADIO PROFESIONAL TÉCNICO",null,"STE0220141","PREVENCIÓN DE LA SEGURIDAD Y SALUD EN EL TRABAJO TÉCNICO"]
[null,"SPT3220164","DIRECCIÓN Y REALIZACIÓN DE CINE Y TELEVISIÓN PROFESIONAL TÉCNICO",null,"STE0226098","PREVENCIÓN DE RIESGO, SEGURIDAD Y SALUD OCUPACIONAL TÉCNICO"]
[null,"SPT3221080","DIRECCIÓN, REALIZACIÓN DE CINE Y TV PROFESIONAL TÉCNICO",null,"STE7241427","PROCESAMIENTO DE MINERALES TÉCNICO"]
[null,"SPT2120191","DISEÑO DE AMBIENTES PROFESIONAL TÉCNICO",null,"STE7136099","PROCESOS METALÚRGICOS Y QUÍMICOS TÉCNICO"]
[null,"SPT7130015","DISEÑO DE ESTRUCTURAS METÁLICAS Y DE CONSTRUCCIÓN PROFESIONAL TÉCNICO",null,"STE8116511","PRODUCCIÓN AGROPECUARIA TÉCNICO"]
[null,"SPT2121043","DISEÑO DE INTERIORES PROFESIONAL TÉCNICO",null,"STE2136627","PRODUCCIÓN GRÁFICA TÉCNICO"]
[null,"SPT2116565","DISEÑO DE MEDIOS INTERACTIVOS PROFESIONAL TÉCNICO",null,"STE7211408","PRODUCCIÓN INDUSTRIAL DE VINOS, PISCOS Y OTROS PRODUCTOS AFINES TÉCNICO"]
[null,"SPT2121271","DISEÑO DE MODAS PROFESIONAL TÉCNICO",null,"STE3221370","PRODUCCIÓN RADIAL Y TELEVISIVA TÉCNICO"]
[null,"SPT2121272","DISEÑO DE MODAS Y MODISTERÍA INDUSTRIAL PROFESIONAL TÉCNICO",null,"STE6126623","PROGRAMACIÓN DE SISTEMAS DE INFORMACIÓN TÉCNICO"]
[null,"SPT2126103","DISEÑO DE PRENDAS DE VESTIR PROFESIONAL TÉCNICO",null,"STE3131369","PSICOTERAPIA PSICOANALÍTICA TÉCNICO"]
[null,"SPT2121044","DISEÑO DE PRODUCTO PROFESIONAL TÉCNICO",null,"STE4141367","PUBLICIDAD Y MEDIOS DIGITALES TÉCNICO"]
[null,"SPT2130060","DISEÑO DE PRODUCTO Y ANIMACIÓN DIGITAL PROFESIONAL TÉCNICO",null,"STE7121415","REFRIGERACIÓN Y AIRE ACONDICIONADO TÉCNICO"]
[null,"SPT2120075","DISEÑO DE PRODUCTOS DE MADERA PROFESIONAL TÉCNICO",null,"STE7331429","SEGURIDAD MINERA E INDUSTRIAL TÉCNICO"]
[null,"SPT6110214","DISEÑO DE SOFTWARE E INTEGRACIÓN DE SISTEMAS PROFESIONAL TÉCNICO",null,"STE0220203","SEGURIDAD Y SALUD EN EL TRABAJO TÉCNICO"]
[null,"SPT2110217","DISEÑO DE VIDEO JUEGOS Y ENTRETENIMIENTO DIGITAL PROFESIONAL TÉCNICO",null,"STE7130205","SERVICIO DE MANTENIMIENTO DE EQUIPO PESADO TÉCNICO"]
[null,"SPT2110078","DISEÑO DE VIDEOJUEGOS PROFESIONAL TÉCNICO",null,"STE0121387","SERVICIO DE RESTAURANTE Y BAR TÉCNICO"]
[null,"SPT2130059","DISEÑO E INNOVACIÓN INDUSTRIAL PROFESIONAL TÉCNICO",null,"STE0120048","SERVICIOS HOTELEROS Y COCINA TÉCNICO"]
[null,"SPT2121045","DISEÑO ESCENOGRÁFICO PROFESIONAL TÉCNICO",null,"STE6130142","SISTEMAS DE TELECOMUNICACIONES DE VOZ Y DATOS TÉCNICO"]
[null,"SPT4146566","DISEÑO ESTRATÉGICO PARA LOS NEGOCIOS PROFESIONAL TÉCNICO",null,"STE2310106","TÉCNICO TRILINGÜE EN GESTIÓN EMPRESARIAL TÉCNICO"]
[null,"SPT2111046","DISEÑO GRÁFICO PROFESIONAL TÉCNICO",null,"STE2211366","TEOLOGÍA PASTORAL TÉCNICO"]
[null,"SPT2110225","DISEÑO GRÁFICO DIGITAL PROFESIONAL TÉCNICO",null,"STE7321444","TOPOGRAFÍA TÉCNICO"]
[null,"SPT2136567","DISEÑO GRÁFICO PUBLICITARIO PROFESIONAL TÉCNICO",null,"STE7321445","TOPOGRAFÍA CIVIL Y MINERA TÉCNICO"]
[null,"SPT2130085","DISEÑO GRÁFICO Y MULTIMEDIA PROFESIONAL TÉCNICO",null,"STE0411460","TRANSPORTES TERRESTRES Y OPERACIÓN DE EQUIPOS PESADOS TÉCNICO"]
[null,"SPT2111047","DISEÑO GRÁFICO Y PUBLICIDAD DIGITAL PROFESIONAL TÉCNICO",null,"STE8110033","VITICULTURA Y ENOLOGÍA TÉCNICO"]
[null,"SPT2111048","DISEÑO GRÁFICO Y PUBLICITARIO PROFESIONAL TÉCNICO"]
[null,"SPT2121049","DISEÑO INDUSTRIAL PROFESIONAL TÉCNICO"]
[null,"SPT2111050","DISEÑO PUBLICITARIO PROFESIONAL TÉCNICO"]
[null,"SPT2111051","DISEÑO TÉCNICO PROFESIONAL TÉCNICO"]
[null,"SPT7231273","DISEÑO TEXTIL PROFESIONAL TÉCNICO"]
[null,"SPT2111052","DISEÑO WEB Y MULTIMEDIA PROFESIONAL TÉCNICO"]
[null,"SPT2130086","DISEÑO Y DECORACIÓN DE INTERIORES PROFESIONAL TÉCNICO"]
[null,"SPT2116600","DISEÑO Y DESARROLLO DE SIMULADORES Y VIDEOJUEGOS PROFESIONAL TÉCNICO"]
[null,"SPT6126541","DISEÑO Y DESARROLLO DE SOFTWARE PROFESIONAL TÉCNICO"]
[null,"SPT6126568","DISEÑO Y DESARROLLO DE SOFTWARE Y PRUEBAS DE SOLUCIONES MULTIPLATAFORMA PROFESIONAL TÉCNICO"]
[null,"SPT6126569","DISEÑO Y DESARROLLO DE SOFTWARE Y SOLUCIONES DE INTELIGENCIA DE NEGOCIOS PROFESIONAL TÉCNICO"]
[null,"SPT6126570","DISEÑO Y DESARROLLO DE SOFTWARE Y SOLUCIONES MÓVILES PROFESIONAL TÉCNICO"]
[null,"SPT6126571","DISEÑO Y DESARROLLO DE SOFTWARE Y SOLUCIONES WEB PROFESIONAL TÉCNICO"]
[null,"SPT6126572","DISEÑO Y DESARROLLO DE SOFTWARE Y TÉCNICAS DE HACKING ÉTICO PROFESIONAL TÉCNICO"]
[null,"SPT2110143","DISEÑO Y DESARROLLO DE VIDEOJUEGOS PROFESIONAL TÉCNICO"]
[null,"SPT2110216","DISEÑO Y DESARROLLO PARA MEDIOS DIGITALES PROFESIONAL TÉCNICO"]
[null,"SPT6120185","DISEÑO Y DESARROLLO WEB PROFESIONAL TÉCNICO"]
[null,"SPT2120180","DISEÑO Y GESTIÓN DE LA MODA PROFESIONAL TÉCNICO"]
[null,"SPT7231274","DISEÑO Y PRODUCCIÓN DE TEXTILES PROFESIONAL TÉCNICO"]
[null,"SPT7230084","DISEÑO Y PRODUCCIÓN TEXTIL PROFESIONAL TÉCNICO"]
[null,"SPT6116079","DISEÑO Y PROGRAMACIÓN WEB PROFESIONAL TÉCNICO"]
[null,"SPT1310116","EBANISTERÍA PROFESIONAL TÉCNICO"]
[null,"SPT0141339","ECOLOGÍA TURÍSTICA PROFESIONAL TÉCNICO"]
[null,"SPT3111168","ECONOMÍA EMPRESARIAL PROFESIONAL TÉCNICO"]
[null,"SPT0141131","ECOTURISMO Y GESTIÓN AMBIENTAL PROFESIONAL TÉCNICO"]
[null,"SPT7321284","EDIFICACIONES PROFESIONAL TÉCNICO"]
[null,"SPT1611017","EDUCACIÓN ARTÍSTICA PROFESIONAL TÉCNICO"]
[null,"SPT1991022","EDUCACIÓN BÁSICA ALTERNATIVA PROFESIONAL TÉCNICO"]
[null,"SPT1611018","EDUCACIÓN DANZA PROFESIONAL TÉCNICO"]
[null,"SPT1211005","EDUCACIÓN EN COMPUTACIÓN E INFORMÁTICA PROFESIONAL TÉCNICO"]
[null,"SPT1611019","EDUCACIÓN EN DANZA CLÁSICA PROFESIONAL TÉCNICO"]
[null,"SPT1211006","EDUCACIÓN EN IDIOMAS - INGLÉS PROFESIONAL TÉCNICO"]
[null,"SPT1411015","EDUCACIÓN ESPECIAL AUDICIÓN PROFESIONAL TÉCNICO"]
[null,"SPT1411016","EDUCACIÓN ESPECIAL RETARDO PROFESIONAL TÉCNICO"]
[null,"SPT1511014","EDUCACIÓN FÍSICA PROFESIONAL TÉCNICO"]
[null,"SPT1111001","EDUCACIÓN INICIAL PROFESIONAL TÉCNICO"]
[null,"SPT1111002","EDUCACIÓN INICIAL (INTERCULTURAL Y BILINGÜE) PROFESIONAL TÉCNICO"]
[null,"SPT1611020","EDUCACIÓN MUSICAL PROFESIONAL TÉCNICO"]
[null,"SPT1211007","EDUCACIÓN PARA EL TRABAJO PROFESIONAL TÉCNICO"]
[null,"SPT1121003","EDUCACIÓN PRIMARIA PROFESIONAL TÉCNICO"]
[null,"SPT1121004","EDUCACIÓN PRIMARIA (INTERCULTURAL Y BILINGÜE) PROFESIONAL TÉCNICO"]
[null,"SPT1211008","EDUCACIÓN RELIGIOSA PROFESIONAL TÉCNICO"]
[null,"SPT1211009","EDUCACIÓN SECUNDARIA - CIENCIA, TECNOLOGÍA Y AMBIENTE PROFESIONAL TÉCNICO"]
[null,"SPT1211010","EDUCACIÓN SECUNDARIA - CIENCIAS SOCIALES PROFESIONAL TÉCNICO"]
[null,"SPT1211011","EDUCACIÓN SECUNDARIA - COMUNICACIÓN PROFESIONAL TÉCNICO"]
[null,"SPT1211012","EDUCACIÓN SECUNDARIA - MATEMÁTICA PROFESIONAL TÉCNICO"]
[null,"SPT1211013","EDUCACIÓN SECUNDARIA TÉCNICA PROFESIONAL TÉCNICO"]
[null,"SPT3111169","ELABORACIÓN Y EVALUACIÓN DE PROYECTOS PROFESIONAL TÉCNICO"]
[null,"SPT7111226","ELECTRICIDAD PROFESIONAL TÉCNICO"]
[null,"SPT7111227","ELECTRICIDAD INDUSTRIAL PROFESIONAL TÉCNICO"]
[null,"SPT7116083","ELECTRICIDAD INDUSTRIAL CON MENCIÓN EN SERVICIO NAVAL PROFESIONAL TÉCNICO"]
[null,"SPT7116589","ELECTRICIDAD INDUSTRIAL CON MENCIÓN EN SISTEMAS ELÉCTRICOS DE POTENCIA PROFESIONAL TÉCNICO"]
[null,"SPT7110025","ELECTRICISTA INDUSTRIAL PROFESIONAL TÉCNICO"]
[null,"SPT7121230","ELECTRÓNICA PROFESIONAL TÉCNICO"]
[null,"SPT7121231","ELECTRÓNICA AERONÁUTICA PROFESIONAL TÉCNICO"]
[null,"SPT7126170","ELECTRÓNICA CON MENCIÓN EN SERVICIO NAVAL PROFESIONAL TÉCNICO"]
[null,"SPT7121232","ELECTRÓNICA DE MICROCOMPUTADORAS PROFESIONAL TÉCNICO"]
[null,"SPT7121237","ELECTRÓNICA DE SISTEMAS COMPUTARIZADOS PROFESIONAL TÉCNICO"]
[null,"SPT7121233","ELECTRÓNICA DE SISTEMAS INDUSTRIALES PROFESIONAL TÉCNICO"]
[null,"SPT7121234","ELECTRÓNICA DIGITAL PROFESIONAL TÉCNICO"]
[null,"SPT7121235","ELECTRÓNICA INDUSTRIAL PROFESIONAL TÉCNICO"]
[null,"SPT7126125","ELECTRÓNICA INDUSTRIAL CON MENCIÓN EN AUTOMATIZACIÓN Y CONTROL INDUSTRIAL PROFESIONAL TÉCNICO"]
[null,"SPT7121236","ELECTRÓNICA Y AUTOMATIZACIÓN INDUSTRIAL PROFESIONAL TÉCNICO"]
[null,"SPT7120145","ELECTRÓNICO INDUSTRIAL PROFESIONAL TÉCNICO"]
[null,"SPT7120109","ELECTROTECNIA PROFESIONAL TÉCNICO"]
[null,"SPT7121228","ELECTROTECNIA INDUSTRIAL PROFESIONAL TÉCNICO"]
[null,"SPT7126126","ELECTROTÉCNIA INDUSTRIAL CON MENCIÓN EN ENERGIA RENOVABLES EN EFICIENCIA ENERGÉTICA PROFESIONAL TÉCNICO"]
[null,"SPT7126586","ELECTROTECNIA INDUSTRIAL CON MENCIÓN EN ENERGÍA RENOVABLES Y EFICIENCIA ENERGÉTICA PROFESIONAL TÉCNICO"]
[null,"SPT9130036","ENFERMERÍA PROFESIONAL TÉCNICO"]
[null,"SPT9130161","ENFERMERÍA PEDRIÁTICA PROFESIONAL TÉCNICO"]
[null,"SPT9131327","ENFERMERÍA TÉCNICA PROFESIONAL TÉCNICO"]
[null,"SPT9130044","ENFERMERÍA TÉCNICA INTERCULTURAL BILINGÜE AMAZÓNICA PROFESIONAL TÉCNICO"]
[null,"SPT0136128","ENTRENAMIENTO DEPORTIVO PROFESIONAL TÉCNICO"]
[null,"SPT0116078","ESTÉTICA, IMAGEN Y ESTILO PROFESIONAL TÉCNICO"]
[null,"SPT7246179","EXPLORACIÓN Y EXPLOTACIÓN MINERA PROFESIONAL TÉCNICO"]
[null,"SPT7240027","EXPLOTACIÓN DE MINAS PROFESIONAL TÉCNICO"]
[null,"SPT7241265","EXPLOTACIÓN MINERA PROFESIONAL TÉCNICO"]
[null,"SPT9171336","FARMACIA PROFESIONAL TÉCNICO"]
[null,"SPT9170148","FARMACIA TÉCNICA PROFESIONAL TÉCNICO"]
[null,"SPT4111176","FINANZAS PROFESIONAL TÉCNICO"]
[null,"SPT9161329","FISIOTERAPIA Y REHABILITACIÓN PROFESIONAL TÉCNICO"]
[null,"SPT9160195","FISIOTERAPIA Y REHABILITACIÓN FÍSICA PROFESIONAL TÉCNICO"]
[null,"SPT8211317","FORESTAL PROFESIONAL TÉCNICO"]
[null,"SPT8211318","FORESTAL (PARA ZONA DE SELVA) PROFESIONAL TÉCNICO"]
[null,"SPT8210163","FORESTALES PROFESIONAL TÉCNICO"]
[null,"SPT4110136","FORMACIÓN BANCARIA PROFESIONAL TÉCNICO"]
[null,"SPT2111093","FOTOGRAFÍA PROFESIONAL TÉCNICO"]
[null,"SPT2110197","FOTOGRAFÍA E IMAGEN DIGITAL PROFESIONAL TÉCNICO"]
[null,"SPT2116574","FOTOGRAFÍA Y PRODUCCIÓN DE IMAGEN PROFESIONAL TÉCNICO"]
[null,"SPT8111304","FRUTICULTURA PROFESIONAL TÉCNICO"]
[null,"SPT8111305","FRUTICULTURA Y OLIVICULTURA PROFESIONAL TÉCNICO"]
[null,"SPT0311354","FUERZAS ESPECIALES PROFESIONAL TÉCNICO"]
[null,"SPT0120076","GASTRONOMÍA PROFESIONAL TÉCNICO"]
[null,"SPT7211220","GASTRONOMÍA INDUSTRIAL PROFESIONAL TÉCNICO"]
[null,"SPT0121132","GASTRONOMÍA Y ARTE CULINARIO PROFESIONAL TÉCNICO"]
[null,"SPT5321266","GEOLOGÍA DE MINAS PROFESIONAL TÉCNICO"]
[null,"SPT7321285","GEOMÁTICA PROFESIONAL TÉCNICO"]
[null,"SPT4181116","GERENCIA PROFESIONAL TÉCNICO"]
[null,"SPT4136177","GESTIÓN ADMINISTRATIVA PROFESIONAL TÉCNICO"]
[null,"SPT4136184","GESTIÓN ADMINISTRATIVA CON MENCIÓN EN ADMINISTRACIÓN DE NEGOCIOS AGROPECUARIOS PROFESIONAL TÉCNICO"]
[null,"SPT4136082","GESTIÓN ADMINISTRATIVA CON MENCIÓN EN SERVICIO NAVAL PROFESIONAL TÉCNICO"]
[null,"SPT5210047","GESTIÓN AMBIENTAL PROFESIONAL TÉCNICO"]
[null,"SPT5210123","GESTIÓN AMBIENTAL Y DESARROLLO SOSTENIBLE PROFESIONAL TÉCNICO"]
[null,"SPT5210132","GESTIÓN AMBIENTAL Y RESPONSABILIDAD SOCIAL PROFESIONAL TÉCNICO"]
[null,"SPT4131117","GESTIÓN COMERCIAL PROFESIONAL TÉCNICO"]
[null,"SPT4136575","GESTIÓN COMERCIAL CON MENCIÓN EN ESPACIOS DE PUNTO DE VENTA PROFESIONAL TÉCNICO"]
[null,"SPT4120085","GESTIÓN COMERCIAL DE PRODUCTOS Y SERVICIOS BANCARIOS Y FINANCIEROS PROFESIONAL TÉCNICO"]
[null,"SPT9170223","GESTIÓN DE FARMACIAS PROFESIONAL TÉCNICO"]
[null,"SPT7210025","GESTIÓN DE INDUSTRIAS ALIMENTARIAS PROFESIONAL TÉCNICO"]
[null,"SPT7320146","GESTIÓN DE LA CONSTRUCCIÓN PROFESIONAL TÉCNICO"]
[null,"SPT7320074","GESTIÓN DE LA CONSTRUCCIÓN CIVIL PROFESIONAL TÉCNICO"]
[null,"SPT7230192","GESTIÓN DE LA EMPRESA DE MODA Y PRODUCCIONES PROFESIONAL TÉCNICO"]
[null,"SPT7230145","GESTIÓN DE LA INDUSTRIA TEXTIL PROFESIONAL TÉCNICO"]
[null,"SPT7236068","GESTIÓN DE LA MODA Y CONFECCIONES PROFESIONAL TÉCNICO"]
[null,"SPT7236094","GESTIÓN DE LA PRODUCCIÓN DE PRENDAS DE VESTIR PROFESIONAL TÉCNICO"]
[null,"SPT7321286","GESTIÓN DE LA PRODUCCIÓN EN LA INDUSTRIA DE LA CONSTRUCCIÓN PROFESIONAL TÉCNICO"]
[null,"SPT7231276","GESTIÓN DE LA PRODUCCIÓN EN LA INDUSTRIA DE LAS CONFECCIONES PROFESIONAL TÉCNICO"]
[null,"SPT4136038","GESTIÓN DE LOGÍSTICA PROFESIONAL TÉCNICO"]
[null,"SPT4136596","GESTIÓN DE LOGÍSTICA CON MENCIÓN EN COMERCIO INTERNACIONAL PROFESIONAL TÉCNICO"]
[null,"SPT4136595","GESTIÓN DE LOGÍSTICA CON MENCIÓN EN LA CADENA DE ABASTECIMIENTO PROFESIONAL TÉCNICO"]
[null,"SPT4140052","GESTIÓN DE MARKETING Y VENTAS PROFESIONAL TÉCNICO"]
[null,"SPT7231275","GESTIÓN DE MODAS Y CONFECCIONES PROFESIONAL TÉCNICO"]
[null,"SPT4136576","GESTIÓN DE PRODUCCIÓN DE PRENDAS DE VESTIR PROFESIONAL TÉCNICO"]
[null,"SPT4136594","GESTIÓN DE PRODUCCIÓN INDUSTRIAL PROFESIONAL TÉCNICO"]
[null,"SPT4133977","GESTIÓN DE PROYECTOS PROFESIONAL TÉCNICO"]
[null,"SPT8111306","GESTIÓN DE RECURSOS HÍDRICOS PROFESIONAL TÉCNICO"]
[null,"SPT4180128","GESTIÓN DE RECURSOS HUMANOS PROFESIONAL TÉCNICO"]
[null,"SPT9196577","GESTIÓN DE SALUD Y SEGURIDAD EN EL TRABAJO PROFESIONAL TÉCNICO"]
[null,"SPT6120205","GESTIÓN DE SISTEMAS DE INFORMACIÓN PROFESIONAL TÉCNICO"]
[null,"SPT6130149","GESTIÓN DE TELECOMUNICACIONES Y TRÁNSITO AÉREO PROFESIONAL TÉCNICO"]
[null,"SPT4136110","GESTIÓN DE TRANSPORTE Y DISTRIBUCIÓN PROFESIONAL TÉCNICO"]
[null,"SPT4181118","GESTIÓN DEL EMPRENDIMIENTO PROFESIONAL TÉCNICO"]
[null,"SPT4130295","GESTIÓN LOGÍSTICA PROFESIONAL TÉCNICO"]
[null,"SPT4130124","GESTIÓN LOGÍSTICA Y TRANSPORTE PROFESIONAL TÉCNICO"]
[null,"SPT4170172","GESTIÓN PÚBLICA PROFESIONAL TÉCNICO"]
[null,"SPT7231277","GESTIÓN TEXTIL PROFESIONAL TÉCNICO"]
[null,"SPT4131119","GESTIÓN Y ADMINISTRACIÓN DE NEGOCIOS PROFESIONAL TÉCNICO"]
[null,"SPT7136585","GESTIÓN Y MANTENIMIENTO DE MAQUINARIA INDUSTRIAL PROFESIONAL TÉCNICO"]
[null,"SPT7136540","GESTIÓN Y MANTENIMIENTO DE MAQUINARIA PESADA PROFESIONAL TÉCNICO"]
[null,"SPT0141340","GUÍA OFICIAL DE CAMINATA PROFESIONAL TÉCNICO"]
[null,"SPT0141341","GUÍA OFICIAL DE MONTAÑA PROFESIONAL TÉCNICO"]
[null,"SPT0141342","GUÍA OFICIAL DE TURISMO PROFESIONAL TÉCNICO"]
[null,"SPT5226159","HIDROGRAFÍA PROFESIONAL TÉCNICO"]
[null,"SPT8311180","HIDROGRAFÍA Y NAVEGACIÓN PROFESIONAL TÉCNICO"]
[null,"SPT8121307","HORTICULTURA PROFESIONAL TÉCNICO"]
[null,"SPT0121133","HOSTELERÍA PROFESIONAL TÉCNICO"]
[null,"SPT0120160","HOTELERÍA Y TURISMO PROFESIONAL TÉCNICO"]
[null,"SPT0121134","HOTELES Y RESTAURANTES PROFESIONAL TÉCNICO"]
[null,"SPT7231278","INDUSTRIA DEL CUERO PROFESIONAL TÉCNICO"]
[null,"SPT7231279","INDUSTRIA DEL VESTIDO PROFESIONAL TÉCNICO"]
[null,"SPT7220208","INDUSTRIAL Y SISTEMAS PROFESIONAL TÉCNICO"]
[null,"SPT7211221","INDUSTRIAS ALIMENTARIAS PROFESIONAL TÉCNICO"]
[null,"SPT7211222","INDUSTRIAS ALIMENTARIAS LÁCTEAS PROFESIONAL TÉCNICO"]
[null,"SPT0311355","INFANTERÍA DE MARINA PROFESIONAL TÉCNICO"]
[null,"SPT0141343","INFORMACIÓN TURÍSTICA PROFESIONAL TÉCNICO"]
[null,"SPT6121196","INFORMÁTICA PROFESIONAL TÉCNICO"]
[null,"SPT6126181","INFORMÁTICA EMPRESARIAL PROFESIONAL TÉCNICO"]
[null,"SPT6116073","INGENIERÍA DE DESARROLLO DE JUEGOS PROFESIONAL TÉCNICO"]
[null,"SPT6136067","INGENIERÍA DE REDES Y COMUNICACIONES PROFESIONAL TÉCNICO"]
[null,"SPT6116065","INGENIERÍA DE SISTEMAS DE INFORMACIÓN PROFESIONAL TÉCNICO"]
[null,"SPT6116064","INGENIERÍA DE SOFTWARE PROFESIONAL TÉCNICO"]
[null,"SPT6130025","INGENIERÍA DE TELECOMUNICACIONES PROFESIONAL TÉCNICO"]
[null,"SPT6130183","INGENIERÍA DE TELEMÁTICA PROFESIONAL TÉCNICO"]
[null,"SPT7140055","INSPECCIÓN Y MANTENIMIENTO AERONÁUTICO PROFESIONAL TÉCNICO"]
[null,"SPT0311356","INTELIGENCIA PROFESIONAL TÉCNICO"]
[null,"SPT2310112","INTERPRETACIÓN PROFESIONAL TÉCNICO"]
[null,"SPT2311024","INTERPRETACIÓN DE IDIOMAS PROFESIONAL TÉCNICO"]
[null,"SPT2151059","INTERPRETACIÓN MUSICAL PROFESIONAL TÉCNICO"]
[null,"SPT2151056","INTERPRETE EN DANZA CLÁSICA PROFESIONAL TÉCNICO"]
[null,"SPT0320139","INVESTIGACIÓN PRIVADA Y SEGURIDAD CIUDADANA PROFESIONAL TÉCNICO"]
[null,"SPT9131328","INYECTABLES Y PRIMEROS AUXILIOS PROFESIONAL TÉCNICO"]
[null,"SPT8121308","JARDINERÍA Y PAISAJISMO PROFESIONAL TÉCNICO"]
[null,"SPT9151330","LABORATORIO CLÍNICO PROFESIONAL TÉCNICO"]
[null,"SPT9156091","LABORATORIO CLÍNICO Y ANATOMÍA PATOLÓGICA PROFESIONAL TÉCNICO"]
[null,"SPT7321287","LABORATORIO DE SUELOS, CONCRETO Y ASFALTO PROFESIONAL TÉCNICO"]
[null,"SPT5311267","LABORATORIO QUÍMICO Y METALÚRGICO PROFESIONAL TÉCNICO"]
[null,"SPT2210015","LITERATURA BÍBLICA PROFESIONAL TÉCNICO"]
[null,"SPT3220186","LOCUCIÓN Y COMUNICACIÓN RADIAL Y TELEVISIVA PROFESIONAL TÉCNICO"]
[null,"SPT4161151","LOGÍSTICA DEL COMERCIO INTERNACIONAL PROFESIONAL TÉCNICO"]
[null,"SPT4130137","LOGÍSTICA INTEGRAL Y GESTIÓN COMERCIAL PROFESIONAL TÉCNICO"]
[null,"SPT4130082","LOGÍSTICA INTEGRAL Y GESTIÓN DE OPERACIONES PROFESIONAL TÉCNICO"]
[null,"SPT5221298","MANEJO DE CUENCAS Y GESTIÓN AMBIENTAL PROFESIONAL TÉCNICO"]
[null,"SPT8216116","MANEJO FORESTAL PROFESIONAL TÉCNICO"]
[null,"SPT0311357","MANIOBRAS PROFESIONAL TÉCNICO"]
[null,"SPT0310095","MANTENIMIENTO ELECTRONICO DE AERONAVES PROFESIONAL TÉCNICO"]
[null,"SPT7146108","MANTENIMIENTO AERONÁUTICO PROFESIONAL TÉCNICO"]
[null,"SPT7141243","MANTENIMIENTO DE AERONAVES PROFESIONAL TÉCNICO"]
[null,"SPT0310097","MANTENIMIENTO DE AERONAVES Y SUS SISTEMAS PROFESIONAL TÉCNICO"]
[null,"SPT7130045","MANTENIMIENTO DE EQUIPO PESADO PROFESIONAL TÉCNICO"]
[null,"SPT9191331","MANTENIMIENTO DE ESTABLECIMIENTOS DE SALUD PROFESIONAL TÉCNICO"]
[null,"SPT7131244","MANTENIMIENTO DE ESTRUCTURAS PROFESIONAL TÉCNICO"]
[null,"SPT0310096","MANTENIMIENTO DE ESTRUCTURAS DE AERONAVES PROFESIONAL TÉCNICO"]
[null,"SPT7131245","MANTENIMIENTO DE MAQUINARIA PROFESIONAL TÉCNICO"]
[null,"SPT7131246","MANTENIMIENTO DE MAQUINARIA DE PLANTA PROFESIONAL TÉCNICO"]
[null,"SPT7131247","MANTENIMIENTO DE MAQUINARIA PESADA PROFESIONAL TÉCNICO"]
[null,"SPT7130095","MANTENIMIENTO DE MAQUINARIA PESADA PARA CONSTRUCCIÓN PROFESIONAL TÉCNICO"]
[null,"SPT0310094","MANTENIMIENTO DE MOTORES DE AERONAVES PROFESIONAL TÉCNICO"]
[null,"SPT7141248","MANTENIMIENTO DE MOTORES, HÉLICES Y UNIDAD DE POTENCIA AUXILIAR PROFESIONAL TÉCNICO"]
[null,"SPT8116643","MANTENIMIENTO DE PLANTAS AGROINDUSTRIALES PROFESIONAL TÉCNICO"]
[null,"SPT7141249","MANTENIMIENTO DE VEHÍCULOS MOTORIZADOS Y EQUIPOS CONTRA INCENDIO PROFESIONAL TÉCNICO"]
[null,"SPT7136140","MANTENIMIENTO INDUSTRIAL PROFESIONAL TÉCNICO"]
[null,"SPT7130147","MANTENIMIENTO Y GESTIÓN DE EQUIPO PESADO PROFESIONAL TÉCNICO"]
[null,"SPT7131250","MANTENIMIENTO Y OPERACIÓN DE ARMAMENTO Y EQUIPOS AUXILIARES PROFESIONAL TÉCNICO"]
[null,"SPT7130157","MANTENIMIENTO Y OPERACIÓN DE MAQUINARIA PESADA PROFESIONAL TÉCNICO"]
[null,"SPT7130158","MANTENIMIENTO Y REPARACIÓN DE MAQUINARIA PESADA PROFESIONAL TÉCNICO"]
[null,"SPT7141251","MÁQUINAS NAVALES PROFESIONAL TÉCNICO"]
[null,"SPT4141138","MARKETING PROFESIONAL TÉCNICO"]
[null,"SPT4146593","MARKETING CON MENCIÓN EN COMERCIALIZACIÓN INTERNACIONAL PROFESIONAL TÉCNICO"]
[null,"SPT4146147","MARKETING CON MENCIÓN EN ENTORNOS DIGITALES PROFESIONAL TÉCNICO"]
[null,"SPT4146151","MARKETING CON MENCIÓN EN MEDIOS DIGITALES PROFESIONAL TÉCNICO"]
[null,"SPT4140054","MARKETING DIGITAL PROFESIONAL TÉCNICO"]
[null,"SPT4141139","MARKETING EMPRESARIAL PROFESIONAL TÉCNICO"]
[null,"SPT4141140","MARKETING INTEGRAL PROFESIONAL TÉCNICO"]
[null,"SPT4140165","MARKETING INTERNACIONAL PROFESIONAL TÉCNICO"]
[null,"SPT4141141","MARKETING VISUAL PROFESIONAL TÉCNICO"]
[null,"SPT3220034","MARKETING Y COMUNICACIÓN DE LA MODA PROFESIONAL TÉCNICO"]
[null,"SPT4140131","MARKETING Y GESTIÓN COMERCIAL PROFESIONAL TÉCNICO"]
[null,"SPT4146580","MARKETING Y GESTIÓN DE EQUIPOS PROFESIONAL TÉCNICO"]
[null,"SPT4146581","MARKETING Y GESTIÓN DE MEDIOS DIGITALES PROFESIONAL TÉCNICO"]
[null,"SPT4146582","MARKETING Y GESTIÓN DE MODA PROFESIONAL TÉCNICO"]
[null,"SPT4140207","MARKETING Y GESTIÓN DE VENTAS PROFESIONAL TÉCNICO"]
[null,"SPT4146133","MARKETING Y NUEVAS TECNOLOGÍAS PROFESIONAL TÉCNICO"]
[null,"SPT4141142","MARKETING Y PUBLICIDAD PROFESIONAL TÉCNICO"]
[null,"SPT4141143","MARKETING Y VENTAS PROFESIONAL TÉCNICO"]
[null,"SPT7130125","MATRICERÍA PROFESIONAL TÉCNICO"]
[null,"SPT7130190","MECÁNICA PROFESIONAL TÉCNICO"]
[null,"SPT7141252","MECÁNICA AERONÁUTICA PROFESIONAL TÉCNICO"]
[null,"SPT7141253","MECÁNICA AERONAVAL PROFESIONAL TÉCNICO"]
[null,"SPT7131254","MECÁNICA AGRÍCOLA PROFESIONAL TÉCNICO"]
[null,"SPT7131255","MECÁNICA AUTOMOTRIZ PROFESIONAL TÉCNICO"]
[null,"SPT7130070","MECÁNICA AUTOMOTRIZ Y AUTOTRÓNICA PROFESIONAL TÉCNICO"]
[null,"SPT7146153","MECÁNICA DE AVIACIÓN PROFESIONAL TÉCNICO"]
[null,"SPT7131483","MECÁNICA DE EQUIPO PESADO PROFESIONAL TÉCNICO"]
[null,"SPT7131256","MECÁNICA DE MANTENIMIENTO PROFESIONAL TÉCNICO"]
[null,"SPT7130202","MECÁNICA DE MAQUINARIA PESADA PROFESIONAL TÉCNICO"]
[null,"SPT7131257","MECÁNICA DE PRODUCCIÓN PROFESIONAL TÉCNICO"]
[null,"SPT7136092","MECÁNICA DE PRODUCCIÓN INDUSTRIAL PROFESIONAL TÉCNICO"]
[null,"SPT7131258","MECÁNICA HIDRÁULICA PROFESIONAL TÉCNICO"]
[null,"SPT7136152","MECÁNICA NAVAL PROFESIONAL TÉCNICO"]
[null,"SPT7130201","MECÁNICA Y ELECTRÓNICA DE EQUIPOS PESADOS PROFESIONAL TÉCNICO"]
[null,"SPT7136112","MECÁNICA Y ELECTRÓNICA DE VEHÍCULOS PESADOS PROFESIONAL TÉCNICO"]
[null,"SPT7130145","MECÁNICO AUTOMOTRIZ PROFESIONAL TÉCNICO"]
[null,"SPT7130195","MECÁNICO DE AUTOMOTORES DIESEL PROFESIONAL TÉCNICO"]
[null,"SPT7136644","MECÁNICO DE BUSES Y CAMIONES PROFESIONAL TÉCNICO"]
[null,"SPT7130215","MECÁNICO DE CONSTRUCCIONES METÁLICAS PROFESIONAL TÉCNICO"]
[null,"SPT7130155","MECÁNICO DE MANTENIMIENTO PROFESIONAL TÉCNICO"]
[null,"SPT7130225","MECÁNICO DE MANTENIMIENTO DE MAQUINARIA PESADA PROFESIONAL TÉCNICO"]
[null,"SPT7130235","MECÁNICO DE MAQUINARIA AGRÍCOLA PROFESIONAL TÉCNICO"]
[null,"SPT7130245","MECÁNICO DE MAQUINARIA PESADA PROFESIONAL TÉCNICO"]
[null,"SPT7130255","MECÁNICO DE MÁQUINAS HERRAMIENTAS PROFESIONAL TÉCNICO"]
[null,"SPT7130265","MECÁNICO ELECTRICISTA DE MANTENIMIENTO PROFESIONAL TÉCNICO"]
[null,"SPT7136069","MECATRÓNICA PROFESIONAL TÉCNICO"]
[null,"SPT7130053","MECATRÓNICA AUTOMOTRIZ PROFESIONAL TÉCNICO"]
[null,"SPT7130285","MECATRÓNICA DE BUSES Y CAMIONES PROFESIONAL TÉCNICO"]
[null,"SPT7130295","MECATRÓNICA DIGITAL PROFESIONAL TÉCNICO"]
[null,"SPT7130212","MECATRÓNICA INDUSTRIAL PROFESIONAL TÉCNICO"]
[null,"SPT7130315","MECATRÓNICO TEXTIL PROFESIONAL TÉCNICO"]
[null,"SPT5211299","MEDIO AMBIENTE PROFESIONAL TÉCNICO"]
[null,"SPT5211300","MEDIO AMBIENTE Y RECURSOS NATURALES PROFESIONAL TÉCNICO"]
[null,"SPT2136173","MEDIOS DIGITALES Y PUBLICIDAD PROFESIONAL TÉCNICO"]
[null,"SPT4141144","MERCADOTECNIA PROFESIONAL TÉCNICO"]
[null,"SPT7130117","METALMECÁNICA PROFESIONAL TÉCNICO"]
[null,"SPT7131268","METALURGIA PROFESIONAL TÉCNICO"]
[null,"SPT5211181","METEOROLOGÍA PROFESIONAL TÉCNICO"]
[null,"SPT6121197","MICROCOMPUTACIÓN E INFORMÁTICA PROFESIONAL TÉCNICO"]
[null,"SPT7240119","MINERÍA PROFESIONAL TÉCNICO"]
[null,"SPT7131269","MODELERÍA Y FUNDICIÓN PROFESIONAL TÉCNICO"]
[null,"SPT4181163","MONEDA EXTRANJERA PROFESIONAL TÉCNICO"]
[null,"SPT7131259","MOTORES PROFESIONAL TÉCNICO"]
[null,"SPT7146155","MOTORES DE AVIACIÓN PROFESIONAL TÉCNICO"]
[null,"SPT0310101","MOTORES NAVALES PROFESIONAL TÉCNICO"]
[null,"SPT2151060","MÚSICA PROFESIONAL TÉCNICO"]
[null,"SPT2151061","MÚSICA Y TECNOLOGÍA DE SONIDO PROFESIONAL TÉCNICO"]
[null,"SPT2151062","MUSICOLOGÍA PROFESIONAL TÉCNICO"]
[null,"SPT4160035","NEGOCIOS INTERNACIONALES PROFESIONAL TÉCNICO"]
[null,"SPT9181322","NUTRICIÓN Y DIETÉTICA PROFESIONAL TÉCNICO"]
[null,"SPT9181323","NUTRICIÓN Y TECNOLOGÍA DE LOS ALIMENTOS PROFESIONAL TÉCNICO"]
[null,"SPT9141337","OBSTETRICIA PROFESIONAL TÉCNICO"]
[null,"SPT8111224","OLIVICULTURA Y ELAIOTECNIA PROFESIONAL TÉCNICO"]
[null,"SPT7131260","OPERACIÓN DE MÁQUINAS, HERRAMIENTAS Y CONTROL NUMÉRICO PROFESIONAL TÉCNICO"]
[null,"SPT7240058","OPERACIÓN DE PLANTAS DE PROCESAMIENTO DE MINERALES PROFESIONAL TÉCNICO"]
[null,"SPT7246583","OPERACIÓN DE PLANTAS Y PROCESAMIENTO DE MINERALES PROFESIONAL TÉCNICO"]
[null,"SPT4111177","OPERACIONES BANCARIAS Y FINANCIERAS PROFESIONAL TÉCNICO"]
[null,"SPT3211085","OPERACIONES DE COMUNICACIONES PROFESIONAL TÉCNICO"]
[null,"SPT0141344","OPERACIONES DE VIAJES PROFESIONAL TÉCNICO"]
[null,"SPT0311358","OPERACIONES ESPECIALES PROFESIONAL TÉCNICO"]
[null,"SPT0141345","OPERACIONES HOTELERAS PROFESIONAL TÉCNICO"]
[null,"SPT7240126","OPERACIONES MINERAS PROFESIONAL TÉCNICO"]
[null,"SPT7136074","OPERACIONES QUÍMICAS Y METALÚRGICAS PROFESIONAL TÉCNICO"]
[null,"SPT9191332","ÓPTICA PROFESIONAL TÉCNICO"]
[null,"SPT9151333","OPTOMETRÍA PROFESIONAL TÉCNICO"]
[null,"SPT4181120","ORGANIZACIÓN Y ADMINISTRACIÓN DE EMPRESAS PROFESIONAL TÉCNICO"]
[null,"SPT9161334","ORTOPEDIA PROFESIONAL TÉCNICO"]
[null,"SPT1991023","OTRAS CARRERAS DE EDUCACIÓN PROFESIONAL TÉCNICO"]
[null,"SPT4170996","OTROS PROGRAMAS EN ADMINISTRACIÓN PÚBLICA PROFESIONAL TÉCNICO"]
[null,"SPT4190996","OTROS PROGRAMAS EN ADMINISTRACIÓN Y COMERCIO PROFESIONAL TÉCNICO"]
[null,"SPT3150996","OTROS PROGRAMAS EN ANTROPOLOGÍA PROFESIONAL TÉCNICO"]
[null,"SPT7310996","OTROS PROGRAMAS EN ARQUITECTURA Y URBANISMO PROFESIONAL TÉCNICO"]
[null,"SPT2130996","OTROS PROGRAMAS EN ARTE PROFESIONAL TÉCNICO"]
[null,"SPT2140996","OTROS PROGRAMAS EN ARTESANÍA Y MANUALIDADES PROFESIONAL TÉCNICO"]
[null,"SPT9210996","OTROS PROGRAMAS EN ASISTENCIA A ADULTOS MAYORES Y DISCAPACITADOS PROFESIONAL TÉCNICO"]
[null,"SPT9220996","OTROS PROGRAMAS EN ASISTENCIA A LA INFANCIA Y SERVICIOS PARA JÓVENES PROFESIONAL TÉCNICO"]
[null,"SPT3230996","OTROS PROGRAMAS EN BIBLIOTECOLOGÍA Y ARCHIVO PROFESIONAL TÉCNICO"]
[null,"SPT5110996","OTROS PROGRAMAS EN BIOLOGÍA PROFESIONAL TÉCNICO"]
[null,"SPT6110996","OTROS PROGRAMAS EN CIENCIAS DE LA COMPUTACIÓN PROFESIONAL TÉCNICO"]
[null,"SPT3220996","OTROS PROGRAMAS EN CIENCIAS DE LA COMUNICACIÓN PROFESIONAL TÉCNICO"]
[null,"SPT5320996","OTROS PROGRAMAS EN CIENCIAS DE LA TIERRA PROFESIONAL TÉCNICO"]
[null,"SPT3120996","OTROS PROGRAMAS EN CIENCIAS POLÍTICAS PROFESIONAL TÉCNICO"]
[null,"SPT4180996","OTROS PROGRAMAS EN COMPETENCIAS LABORALES PROFESIONAL TÉCNICO"]
[null,"SPT7320996","OTROS PROGRAMAS EN CONSTRUCCIÓN E INGENIERÍA CIVIL PROFESIONAL TÉCNICO"]
[null,"SPT4110996","OTROS PROGRAMAS EN CONTABILIDAD E IMPUESTOS PROFESIONAL TÉCNICO"]
[null,"SPT0130996","OTROS PROGRAMAS EN DEPORTE PROFESIONAL TÉCNICO"]
[null,"SPT4220996","OTROS PROGRAMAS EN DERECHO PRIVADO PROFESIONAL TÉCNICO"]
[null,"SPT4210996","OTROS PROGRAMAS EN DERECHO PÚBLICO PROFESIONAL TÉCNICO"]
[null,"SPT2120996","OTROS PROGRAMAS EN DISEÑO INDUSTRIAL, DE MODAS E INTERIORES PROFESIONAL TÉCNICO"]
[null,"SPT5210996","OTROS PROGRAMAS EN ECOLOGÍA Y MEDIO AMBIENTE PROFESIONAL TÉCNICO"]
[null,"SPT3110996","OTROS PROGRAMAS EN ECONOMÍA PROFESIONAL TÉCNICO"]
[null,"SPT1990996","OTROS PROGRAMAS EN EDUCACIÓN PROFESIONAL TÉCNICO"]
[null,"SPT1610996","OTROS PROGRAMAS EN EDUCACIÓN ARTÍSTICA PROFESIONAL TÉCNICO"]
[null,"SPT1410996","OTROS PROGRAMAS EN EDUCACIÓN ESPECIAL PROFESIONAL TÉCNICO"]
[null,"SPT1510996","OTROS PROGRAMAS EN EDUCACIÓN FÍSICA PROFESIONAL TÉCNICO"]
[null,"SPT1110996","OTROS PROGRAMAS EN EDUCACIÓN INICIAL PROFESIONAL TÉCNICO"]
[null,"SPT0310996","OTROS PROGRAMAS EN EDUCACIÓN MILITAR Y DE DEFENSA PROFESIONAL TÉCNICO"]
[null,"SPT1120996","OTROS PROGRAMAS EN EDUCACIÓN PRIMARIA PROFESIONAL TÉCNICO"]
[null,"SPT1210996","OTROS PROGRAMAS EN EDUCACIÓN SECUNDARIA PROFESIONAL TÉCNICO"]
[null,"SPT1310996","OTROS PROGRAMAS EN EDUCACIÓN SUPERIOR Y TECNOLÓGICA PROFESIONAL TÉCNICO"]
[null,"SPT7110996","OTROS PROGRAMAS EN ELECTRICIDAD Y ENERGÍA PROFESIONAL TÉCNICO"]
[null,"SPT7120996","OTROS PROGRAMAS EN ELECTRÓNICA Y AUTOMATIZACIÓN PROFESIONAL TÉCNICO"]
[null,"SPT9130996","OTROS PROGRAMAS EN ENFERMERÍA PROFESIONAL TÉCNICO"]
[null,"SPT5420996","OTROS PROGRAMAS EN ESTADÍSTICA PROFESIONAL TÉCNICO"]
[null,"SPT9170996","OTROS PROGRAMAS EN FARMACIA PROFESIONAL TÉCNICO"]
[null,"SPT2230996","OTROS PROGRAMAS EN FILOSOFÍA Y ETICA PROFESIONAL TÉCNICO"]
[null,"SPT5330996","OTROS PROGRAMAS EN FÍSICA PROFESIONAL TÉCNICO"]
[null,"SPT4120996","OTROS PROGRAMAS EN GESTIÓN FINANCIERA, ADMINISTRACIÓN BANCARIA Y SEGUROS PROFESIONAL TÉCNICO"]
[null,"SPT4130996","OTROS PROGRAMAS EN GESTIÓN Y ADMINISTRACIÓN PROFESIONAL TÉCNICO"]
[null,"SPT1910996","OTROS PROGRAMAS EN GESTIÓN Y CALIDAD EDUCATIVA PROFESIONAL TÉCNICO"]
[null,"SPT2220996","OTROS PROGRAMAS EN HISTORIA Y ARQUEOLOGÍA PROFESIONAL TÉCNICO"]
[null,"SPT8120996","OTROS PROGRAMAS EN HORTICULTURA PROFESIONAL TÉCNICO"]
[null,"SPT0120996","OTROS PROGRAMAS EN HOTELERÍA, RESTAURANTES Y GASTRONOMÍA PROFESIONAL TÉCNICO"]
[null,"SPT2310996","OTROS PROGRAMAS EN IDIOMAS PROFESIONAL TÉCNICO"]
[null,"SPT7220996","OTROS PROGRAMAS EN INDUSTRIA Y PRODUCTOS TRANSFORMADOS (EXCEPTO ALIMENTOS, TEXTIL, AGRO, MINAS Y PETRÓLEO) PROFESIONAL TÉCNICO"]
[null,"SPT7210996","OTROS PROGRAMAS EN INDUSTRIAS ALIMENTARIAS PROFESIONAL TÉCNICO"]
[null,"SPT7330996","OTROS PROGRAMAS EN INGENIERÍA SANITARIA PROFESIONAL TÉCNICO"]
[null,"SPT5430996","OTROS PROGRAMAS EN INVESTIGACIÓN OPERATIVA PROFESIONAL TÉCNICO"]
[null,"SPT2320996","OTROS PROGRAMAS EN LINGÜÍSTICA Y LITERATURA PROFESIONAL TÉCNICO"]
[null,"SPT4140996","OTROS PROGRAMAS EN MARKETING Y PUBLICIDAD PROFESIONAL TÉCNICO"]
[null,"SPT5410996","OTROS PROGRAMAS EN MATEMÁTICA PROFESIONAL TÉCNICO"]
[null,"SPT7130996","OTROS PROGRAMAS EN MECÁNICA Y METALÚRGICA PROFESIONAL TÉCNICO"]
[null,"SPT9120996","OTROS PROGRAMAS EN MEDICINA PROFESIONAL TÉCNICO"]
[null,"SPT7240996","OTROS PROGRAMAS EN MINERÍA Y EXTRACCIÓN PROFESIONAL TÉCNICO"]
[null,"SPT2150996","OTROS PROGRAMAS EN MÚSICA Y ARTES ESCÉNICAS PROFESIONAL TÉCNICO"]
[null,"SPT4160996","OTROS PROGRAMAS EN NEGOCIOS INTERNACIONALES PROFESIONAL TÉCNICO"]
[null,"SPT9180996","OTROS PROGRAMAS EN NUTRICIÓN PROFESIONAL TÉCNICO"]
[null,"SPT9140996","OTROS PROGRAMAS EN OBSTETRICIA PROFESIONAL TÉCNICO"]
[null,"SPT9110996","OTROS PROGRAMAS EN ODONTOLOGÍA PROFESIONAL TÉCNICO"]
[null,"SPT0110996","OTROS PROGRAMAS EN PELUQUERÍA Y TRATAMIENTOS DE BELLEZA PROFESIONAL TÉCNICO"]
[null,"SPT3210996","OTROS PROGRAMAS EN PERIODISMO Y LOCUCIÓN PROFESIONAL TÉCNICO"]
[null,"SPT8310996","OTROS PROGRAMAS EN PESCA PROFESIONAL TÉCNICO"]
[null,"SPT8110996","OTROS PROGRAMAS EN PRODUCCIÓN AGRÍCOLA Y GANADERA PROFESIONAL TÉCNICO"]
[null,"SPT7230996","OTROS PROGRAMAS EN PRODUCCIÓN TEXTIL Y CONFECCIONES PROFESIONAL TÉCNICO"]
[null,"SPT0320995","OTROS PROGRAMAS EN PROTECCIÓN DE LAS PERSONAS Y DE LA PROPIEDAD PROFESIONAL TÉCNICO"]
[null,"SPT3130996","OTROS PROGRAMAS EN PSICOLOGÍA PROFESIONAL TÉCNICO"]
[null,"SPT5310996","OTROS PROGRAMAS EN QUÍMICA PROFESIONAL TÉCNICO"]
[null,"SPT5220996","OTROS PROGRAMAS EN RECURSOS HÍDRICOS PROFESIONAL TÉCNICO"]
[null,"SPT2210996","OTROS PROGRAMAS EN RELIGIÓN Y TEOLOGÍA PROFESIONAL TÉCNICO"]
[null,"SPT9190996","OTROS PROGRAMAS EN SALUD PROFESIONAL TÉCNICO"]
[null,"SPT0220996","OTROS PROGRAMAS EN SALUD Y PROTECCIÓN LABORAL PROFESIONAL TÉCNICO"]
[null,"SPT0210996","OTROS PROGRAMAS EN SANEAMIENTO DE LA COMUNIDAD PROFESIONAL TÉCNICO"]
[null,"SPT4150996","OTROS PROGRAMAS EN SECRETARIADO Y TRABAJO DE OFICINA PROFESIONAL TÉCNICO"]
[null,"SPT0410996","OTROS PROGRAMAS EN SERVICIOS DE TRANSPORTE PROFESIONAL TÉCNICO"]
[null,"SPT8210996","OTROS PROGRAMAS EN SILVICULTURA PROFESIONAL TÉCNICO"]
[null,"SPT6120996","OTROS PROGRAMAS EN SISTEMAS Y CÓMPUTO PROFESIONAL TÉCNICO"]
[null,"SPT3140996","OTROS PROGRAMAS EN SOCIOLOGÍA Y ESTUDIOS CULTURALES PROFESIONAL TÉCNICO"]
[null,"SPT2110996","OTROS PROGRAMAS EN TÉCNICAS AUDIOVISUALES Y DE PRODUCCIÓN PARA MEDIOS DE COMUNICACIÓN PROFESIONAL TÉCNICO"]
[null,"SPT9150996","OTROS PROGRAMAS EN TECNOLOGÍA DE DIAGNÓSTICO Y TRATAMIENTO MÉDICO PROFESIONAL TÉCNICO"]
[null,"SPT6130996","OTROS PROGRAMAS EN TELECOMUNICACIONES PROFESIONAL TÉCNICO"]
[null,"SPT9160996","OTROS PROGRAMAS EN TERAPIA Y REHABILITACIÓN PROFESIONAL TÉCNICO"]
[null,"SPT9230996","OTROS PROGRAMAS EN TRABAJO SOCIAL PROFESIONAL TÉCNICO"]
[null,"SPT7140996","OTROS PROGRAMAS EN VEHÍCULOS, BARCOS Y AERONAVES MOTORIZADAS PROFESIONAL TÉCNICO"]
[null,"SPT8410996","OTROS PROGRAMAS EN VETERINARIA PROFESIONAL TÉCNICO"]
[null,"SPT0140996","OTROS PROGRAMAS EN VIAJES, TURISMO Y ACTIVIDADES RECREATIVAS PROFESIONAL TÉCNICO"]
[null,"SPT9121321","PARAMÉDICO PROFESIONAL TÉCNICO"]
[null,"SPT0121135","PASTELERÍA PROFESIONAL TÉCNICO"]
[null,"SPT1611021","PEDAGOGÍA DE LA INTERPRETACIÓN MUSICAL PROFESIONAL TÉCNICO"]
[null,"SPT3211086","PERIODISMO PROFESIONAL TÉCNICO"]
[null,"SPT3211087","PERIODISMO AUDIOVISUAL PROFESIONAL TÉCNICO"]
[null,"SPT3211088","PERIODISMO DEPORTIVO PROFESIONAL TÉCNICO"]
[null,"SPT3211089","PERIODISMO RADIAL Y TELEVISIVO PROFESIONAL TÉCNICO"]
[null,"SPT3210198","PERIODISMO Y MEDIOS DIGITALES PROFESIONAL TÉCNICO"]
[null,"SPT3216599","PERIODISMO Y NUEVOS MEDIOS PROFESIONAL TÉCNICO"]
[null,"SPT8310061","PESCA Y NAVEGACIÓN PROFESIONAL TÉCNICO"]
[null,"SPT4181164","PLANIFICACIÓN EMPRESARIAL PROFESIONAL TÉCNICO"]
[null,"SPT4181165","PLANIFICACIÓN Y GESTIÓN DE DESARROLLO PROFESIONAL TÉCNICO"]
[null,"SPT0311359","POLICÍA NAVAL PROFESIONAL TÉCNICO"]
[null,"SPT0310102","PRACTICAJE FLUVIAL PROFESIONAL TÉCNICO"]
[null,"SPT1510224","PREPARACIÓN FISICA DE ALTO RENDIMIENTO PROFESIONAL TÉCNICO"]
[null,"SPT0226111","PREVENCIÓN, SEGURIDAD Y SALUD EN EL TRABAJO PROFESIONAL TÉCNICO"]
[null,"SPT7210055","PROCESADOR INDUSTRIAL DE ALIMENTOS PROFESIONAL TÉCNICO"]
[null,"SPT7210065","PROCESADOR INDUSTRIAL DE ALIMENTOS Y BEBIDAS PROFESIONAL TÉCNICO"]
[null,"SPT6121198","PROCESAMIENTO DE DATOS PROFESIONAL TÉCNICO"]
[null,"SPT7220025","PROCESOS DE PRODUCCIÓN INDUSTRIAL PROFESIONAL TÉCNICO"]
[null,"SPT7230095","PROCESOS DE PRODUCCIÓN TEXTIL PROFESIONAL TÉCNICO"]
[null,"SPT7221217","PROCESOS INDUSTRIALES Y DE SISTEMAS PROFESIONAL TÉCNICO"]
[null,"SPT5310035","PROCESOS QUÍMICOS PROFESIONAL TÉCNICO"]
[null,"SPT7130168","PROCESOS QUÍMICOS METALÚRGICOS PROFESIONAL TÉCNICO"]
[null,"SPT7131270","PROCESOS QUÍMICOS Y METALÚRGICOS PROFESIONAL TÉCNICO"]
[null,"SPT8111309","PRODUCCIÓN AGRARIA PROFESIONAL TÉCNICO"]
[null,"SPT8111310","PRODUCCIÓN AGRÍCOLA PROFESIONAL TÉCNICO"]
[null,"SPT8111311","PRODUCCIÓN AGROPECUARIA PROFESIONAL TÉCNICO"]
[null,"SPT7230025","PRODUCCIÓN DE CONFECCIONES PROFESIONAL TÉCNICO"]
[null,"SPT3221081","PRODUCCIÓN DE ESPECTÁCULOS PROFESIONAL TÉCNICO"]
[null,"SPT2111053","PRODUCCIÓN DE IMPRESOS PROFESIONAL TÉCNICO"]
[null,"SPT3221082","PRODUCCIÓN DE PROGRAMAS DE TELEVISIÓN PROFESIONAL TÉCNICO"]
[null,"SPT3221083","PRODUCCIÓN DE RADIO Y TELEVISIÓN PROFESIONAL TÉCNICO"]
[null,"SPT8311296","PRODUCCIÓN EN PESQUERÍA PROFESIONAL TÉCNICO"]
[null,"SPT2110375","PRODUCCIÓN GRÁFICA PROFESIONAL TÉCNICO"]
[null,"SPT2151063","PRODUCCIÓN MUSICAL PROFESIONAL TÉCNICO"]
[null,"SPT8111312","PRODUCCIÓN PECUARIA PROFESIONAL TÉCNICO"]
[null,"SPT7231280","PRODUCCIÓN TEXTIL PROFESIONAL TÉCNICO"]
[null,"SPT7210140","PRODUCCIÓN Y GESTIÓN INDUSTRIAL PROFESIONAL TÉCNICO"]
[null,"SPT8111313","PRODUCCIÓN Y GESTIÓN PECUARIA PROFESIONAL TÉCNICO"]
[null,"SPT3226119","PRODUCCIÓN Y REALIZACIÓN DE TELEVISIÓN, RADIO Y MEDIOS DIGITALES PROFESIONAL TÉCNICO"]
[null,"SPT6121199","PROGRAMACIÓN PROFESIONAL TÉCNICO"]
[null,"SPT0211067","PROMOCIÓN COMUNAL PROFESIONAL TÉCNICO"]
[null,"SPT0140155","PROMOCIÓN DE TURISMO PROFESIONAL TÉCNICO"]
[null,"SPT0141346","PROMOCIÓN DE TURISMO 1/ INCLUYE LA CARRERA DE PROMOCIÓN TURÍSTICA PROFESIONAL TÉCNICO"]
[null,"SPT0140165","PROMOCIÓN TURÍSTICA PROFESIONAL TÉCNICO"]
[null,"SPT9111324","PRÓTESIS DENTAL PROFESIONAL TÉCNICO"]
[null,"SPT4141054","PUBLICIDAD PROFESIONAL TÉCNICO"]
[null,"SPT4146114","PUBLICIDAD Y BRANDING PROFESIONAL TÉCNICO"]
[null,"SPT4140227","PUBLICIDAD Y MEDIOS DIGITALES PROFESIONAL TÉCNICO"]
[null,"SPT5311183","QUÍMICA INDUSTRIAL PROFESIONAL TÉCNICO"]
[null,"SPT5310055","QUÍMICA TEXTIL PROFESIONAL TÉCNICO"]
[null,"SPT9151335","RADIOLOGÍA PROFESIONAL TÉCNICO"]
[null,"SPT8110065","RECURSOS HÍDRICOS PROFESIONAL TÉCNICO"]
[null,"SPT6120255","REDES DE COMPUTADORAS Y COMUNICACIÓN DE DATOS PROFESIONAL TÉCNICO"]
[null,"SPT6121200","REDES Y COMUNICACIÓN DE DATOS PROFESIONAL TÉCNICO"]
[null,"SPT6121201","REDES Y COMUNICACIONES PROFESIONAL TÉCNICO"]
[null,"SPT6110176","REDES Y COMUNICACIONES DE DATOS PROFESIONAL TÉCNICO"]
[null,"SPT6121202","REDES Y SEGURIDAD INFORMÁTICA PROFESIONAL TÉCNICO"]
[null,"SPT4141068","RELACIONES INSTITUCIONALES PROFESIONAL TÉCNICO"]
[null,"SPT3141069","RELACIONES PÚBLICAS PROFESIONAL TÉCNICO"]
[null,"SPT2211028","RELIGIÓN Y EDUCACIÓN PARA EL TRABAJO PROFESIONAL TÉCNICO"]
[null,"SPT6121203","REPARACIÓN DE COMPUTADORAS PROFESIONAL TÉCNICO"]
[null,"SPT6121204","REPARACIÓN DE COMPUTADORAS Y REDES PROFESIONAL TÉCNICO"]
[null,"SPT3211090","REPORTERISMO PROFESIONAL TÉCNICO"]
[null,"SPT7311294","RESTAURACIÓN DE MONUMENTOS HISTÓRICOS Y BIENES INMUEBLES PROFESIONAL TÉCNICO"]
[null,"SPT2131034","RESTAURACIÓN Y CONSERVACIÓN DE OBRAS DE ARTE PROFESIONAL TÉCNICO"]
[null,"SPT8111314","RIEGO DRENAJE PROFESIONAL TÉCNICO"]
[null,"SPT8110066","RIEGO Y DRENAJE PROFESIONAL TÉCNICO"]
[null,"SPT0210025","SALUD PÚBLICA PROFESIONAL TÉCNICO"]
[null,"SPT0221218","SALUD Y SEGURIDAD OCUPACIONAL PROFESIONAL TÉCNICO"]
[null,"SPT4151153","SECRETARIADO EJECUTIVO PROFESIONAL TÉCNICO"]
[null,"SPT4151154","SECRETARIADO EJECUTIVO BILINGÜE PROFESIONAL TÉCNICO"]
[null,"SPT4151155","SECRETARIADO EJECUTIVO COMPUTARIZADO PROFESIONAL TÉCNICO"]
[null,"SPT4150063","SECRETARIADO EJECUTIVO Y GERENCIA PROFESIONAL TÉCNICO"]
[null,"SPT4151156","SECRETARIADO EJECUTIVO Y GERENCIAL PROFESIONAL TÉCNICO"]
[null,"SPT4151157","SECRETARIADO INTERNACIONAL EJECUTIVO PROFESIONAL TÉCNICO"]
[null,"SPT6126590","SEGURIDAD DE LA INFORMACIÓN PROFESIONAL TÉCNICO"]
[null,"SPT0311360","SEGURIDAD E INSTRUCCIÓN MILITAR PROFESIONAL TÉCNICO"]
[null,"SPT0220045","SEGURIDAD INDUSTRIAL Y PREVENCIÓN DE RIESGOS PROFESIONAL TÉCNICO"]
[null,"SPT6121205","SEGURIDAD INFORMÁTICA PROFESIONAL TÉCNICO"]
[null,"SPT0226174","SEGURIDAD INTEGRAL PROFESIONAL TÉCNICO"]
[null,"SPT0226086","SEGURIDAD Y PREVENCIÓN DE RIESGOS PROFESIONAL TÉCNICO"]
[null,"SPT7240127","SEGURIDAD Y PREVENCIÓN EN LA INDUSTRIA Y MINERÍA PROFESIONAL TÉCNICO"]
[null,"SPT0220075","SEGURIDAD, SALUD OCUPACIONAL Y MEDIO AMBIENTE PROFESIONAL TÉCNICO"]
[null,"SPT0311361","SENSORES PROFESIONAL TÉCNICO"]
[null,"SPT0316158","SENSORES DE AVIACIÓN PROFESIONAL TÉCNICO"]
[null,"SPT0316154","SEÑALES PROFESIONAL TÉCNICO"]
[null,"SPT0310103","SERVICIOS PROFESIONAL TÉCNICO"]
[null,"SPT0121136","SERVICIOS HOTELEROS Y COCINA PROFESIONAL TÉCNICO"]
[null,"SPT6136640","SISTEMA DE TELECOMUNICACIONES PROFESIONAL TÉCNICO"]
[null,"SPT7121238","SISTEMAS AUTOMÁTICOS PROGRAMABLES PROFESIONAL TÉCNICO"]
[null,"SPT6121206","SISTEMAS DE INFORMACIÓN PROFESIONAL TÉCNICO"]
[null,"SPT6131211","SISTEMAS DE TELECOMUNICACIONES PROFESIONAL TÉCNICO"]
[null,"SPT6121207","SISTEMAS INFORMÁTICOS PARA LA PRODUCTIVIDAD PROFESIONAL TÉCNICO"]
[null,"SPT4130129","SISTEMAS INTEGRADOS DE GESTIÓN PROFESIONAL TÉCNICO"]
[null,"SPT6116081","SISTEMAS Y ADMINISTRACIÓN DE REDES CON MENCIÓN EN SERVICIO NAVAL PROFESIONAL TÉCNICO"]
[null,"SPT6110118","SISTEMAS Y COMPUTACIÓN PROFESIONAL TÉCNICO"]
[null,"SPT6121208","SOFTWARE Y SISTEMAS PROFESIONAL TÉCNICO"]
[null,"SPT7130375","SOLDADOR UNIVERSAL PROFESIONAL TÉCNICO"]
[null,"SPT7130050","SOLDADURA INDUSTRIAL PROFESIONAL TÉCNICO"]
[null,"SPT0316157","SONAR PROFESIONAL TÉCNICO"]
[null,"SPT6121209","SOPORTE DE SISTEMAS Y REDES PROFESIONAL TÉCNICO"]
[null,"SPT6120375","SOPORTE Y MANTENIMIENTO DE EQUIPOS DE COMPUTACIÓN PROFESIONAL TÉCNICO"]
[null,"SPT7321288","SUELOS, CONCRETO Y ASFALTO PROFESIONAL TÉCNICO"]
[null,"SPT7246139","SUPERVISIÓN DE EQUIPOS EN MINERÍA SUBTERRÁNEA PROFESIONAL TÉCNICO"]
[null,"SPT4181166","SUPERVISIÓN DE OPERACIONES PROFESIONAL TÉCNICO"]
[null,"SPT2151066","TEATRO Y TELEVISIÓN PROFESIONAL TÉCNICO"]
[null,"SPT9170040","TÉCNICA EN FARMACIA PROFESIONAL TÉCNICO"]
[null,"SPT9160049","TÉCNICA EN FISIOTERAPIA Y REHABILITACIÓN PROFESIONAL TÉCNICO"]
[null,"SPT6131212","TÉCNICA EN INGENIERÍA DE SONIDOS PROFESIONAL TÉCNICO"]
[null,"SPT6131213","TÉCNICA EN INGENIERÍA DE TELECOMUNICACIONES PROFESIONAL TÉCNICO"]
[null,"SPT6131214","TÉCNICA EN INGENIERÍA DE TELEMÁTICA PROFESIONAL TÉCNICO"]
[null,"SPT7131261","TÉCNICA EN INGENIERÍA MECÁNICA DE MANTENIMIENTO PROFESIONAL TÉCNICO"]
[null,"SPT7131262","TÉCNICA EN INGENIERÍA MECÁNICA DE PRODUCCIÓN PROFESIONAL TÉCNICO"]
[null,"SPT9150043","TÉCNICA EN LABORATORIO CLÍNICO PROFESIONAL TÉCNICO"]
[null,"SPT4140178","TÉCNICA EN MERCADOTECNIA PROFESIONAL TÉCNICO"]
[null,"SPT9140144","TÉCNICA EN OBSTETRICIA PROFESIONAL TÉCNICO"]
[null,"SPT9110087","TÉCNICA EN PRÓTESIS DENTAL PROFESIONAL TÉCNICO"]
[null,"SPT9176101","TÉCNICAS DE FARMACIA PROFESIONAL TÉCNICO"]
[null,"SPT6110081","TÉCNICAS DE INGENIERÍA DE SOFTWARE PROFESIONAL TÉCNICO"]
[null,"SPT6136075","TÉCNICAS DE INGENIERÍA DE TELECOMUNICACIONES PROFESIONAL TÉCNICO"]
[null,"SPT7111229","TÉCNICAS DE INGENIERÍA ELÉCTRICA PROFESIONAL TÉCNICO"]
[null,"SPT7121239","TÉCNICAS DE INGENIERÍA ELECTRÓNICA PROFESIONAL TÉCNICO"]
[null,"SPT7130395","TÉCNICAS DE INGENIERÍA MECÁNICA DE PRODUCCIÓN PROFESIONAL TÉCNICO"]
[null,"SPT7240108","TÉCNICAS EN EXPLOTACIÓN MINERA PROFESIONAL TÉCNICO"]
[null,"SPT6136063","TÉCNICAS EN INGENIERÍA DE SONIDO PROFESIONAL TÉCNICO"]
[null,"SPT7120185","TÉCNICAS EN INGENIERÍA ELECTRÓNICA PROFESIONAL TÉCNICO"]
[null,"SPT7130405","TÉCNICAS EN INGENIERÍA MECÁNICA DE MANTENIMIENTO PROFESIONAL TÉCNICO"]
[null,"SPT6110228","TÉCNICO EN INGENIERÍA DE REDES Y COMUNICACIÓN PROFESIONAL TÉCNICO"]
[null,"SPT4160187","TÉCNICO EN MERCADOTECNIA PROFESIONAL TÉCNICO"]
[null,"SPT8111315","TECNOLOGÍA AGRÍCOLA PROFESIONAL TÉCNICO"]
[null,"SPT5311184","TECNOLOGÍA DE ANÁLISIS QUÍMICO PROFESIONAL TÉCNICO"]
[null,"SPT7221219","TECNOLOGÍA DE LA PRODUCCIÓN PROFESIONAL TÉCNICO"]
[null,"SPT7230115","TECNOLOGÍA DE PROCESOS DE PRODUCCIÓN DE PRENDAS DE VESTIR PROFESIONAL TÉCNICO"]
[null,"SPT7230125","TECNOLOGÍA DEL DISEÑO Y DESARROLLO DE PRENDAS DE VESTIR PROFESIONAL TÉCNICO"]
[null,"SPT7240125","TECNOLOGÍA EN PETRÓLEO Y REFINACIÓN PROFESIONAL TÉCNICO"]
[null,"SPT7131263","TECNOLOGÍA MECÁNICA ELÉCTRICA PROFESIONAL TÉCNICO"]
[null,"SPT3141070","TECNOLOGÍA PENITENCIARIA PROFESIONAL TÉCNICO"]
[null,"SPT8311297","TECNOLOGÍA PESQUERA PROFESIONAL TÉCNICO"]
[null,"SPT8316104","TECNOLOGÍA PESQUERA Y ACUÍCOLA PROFESIONAL TÉCNICO"]
[null,"SPT5210045","TECNOLOGÍAS AMBIENTALES PROFESIONAL TÉCNICO"]
[null,"SPT6120385","TECNOLOGÍAS DE LA INFORMACIÓN Y COMUNICACIÓN PROFESIONAL TÉCNICO"]
[null,"SPT6131215","TELECOMUNICACIONES PROFESIONAL TÉCNICO"]
[null,"SPT6110073","TELECOMUNICACIONES E INFORMÁTICA PROFESIONAL TÉCNICO"]
[null,"SPT0310092","TELECOMUNICACIONES MILITARES PROFESIONAL TÉCNICO"]
[null,"SPT6131216","TELEMÁTICA PROFESIONAL TÉCNICO"]
[null,"SPT6136080","TELEMÁTICA CON MENCIÓN EN SERVICIO NAVAL PROFESIONAL TÉCNICO"]
[null,"SPT2210035","TEOLOGÍA PROFESIONAL TÉCNICO"]
[null,"SPT2211029","TEOLOGÍA - CATÓLICA PROFESIONAL TÉCNICO"]
[null,"SPT2211031","TEOLOGÍA - FORMACIÓN RELIGIOSA PROFESIONAL TÉCNICO"]
[null,"SPT2211030","TEOLOGÍA EVANGÉLICA PROFESIONAL TÉCNICO"]
[null,"SPT2210173","TEOLOGÍA INVESTIGACIÓN SOCIO RELIGIOSA PROFESIONAL TÉCNICO"]
[null,"SPT9166120","TERAPIA FÍSICA PROFESIONAL TÉCNICO"]
[null,"SPT3131071","TERAPIA PSICOANALÍTICA PROFESIONAL TÉCNICO"]
[null,"SPT7321289","TOPOGRAFÍA PROFESIONAL TÉCNICO"]
[null,"SPT7240181","TOPOGRAFÍA SUPERFICIAL MINERA PROFESIONAL TÉCNICO"]
[null,"SPT7321290","TOPOGRAFÍA SUPERFICIAL Y MINERA PROFESIONAL TÉCNICO"]
[null,"SPT2310111","TRADUCCIÓN PROFESIONAL TÉCNICO"]
[null,"SPT2311025","TRADUCCIÓN DE IDIOMAS PROFESIONAL TÉCNICO"]
[null,"SPT2311026","TRADUCCIÓN E INTERPRETACIÓN PROFESIONAL TÉCNICO"]
[null,"SPT2316584","TRADUCCIÓN E INTERPRETACIÓN DE IDIOMAS PROFESIONAL TÉCNICO"]
[null,"SPT2310107","TRADUCCIÓN E INTERPRETACIÓN DE IDIOMAS(INGLÉS,FRANCÉS Y CASTELLANO) PROFESIONAL TÉCNICO"]
[null,"SPT2310185","TRADUCCIÓN E INTERPRETACIÓN DE INGLÉS PROFESIONAL TÉCNICO"]
[null,"SPT5220025","TRATAMIENTO DE AGUA PROFESIONAL TÉCNICO"]
[null,"SPT0141347","TURISMO PROFESIONAL TÉCNICO"]
[null,"SPT0141137","TURISMO Y HOTELERÍA PROFESIONAL TÉCNICO"]
[null,"SPT4141145","VENTAS PROFESIONAL TÉCNICO"]
[null,"SPT0141348","VIAJES Y TURISMO PROFESIONAL TÉCNICO"]
[null,"SPT8111225","VITICULTURA Y ENOLOGÍA PROFESIONAL TÉCNICO"]
[null,"SPT8111179","ZOOTECNIA PROFESIONAL TÉCNICO"]
[null,"SPT8110114","ZOOTECNISTA PROFESIONAL TÉCNICO"]

{"sheet":"Prompt","index":3,"n_rows":39,"n_cols":4,"rows_kept":39,"cut":false,"hidden":false,"merged":[[1,3,2,5],[4,1,6,8],[9,1,10,8],[38,1,39,8]]}
[]
[null,null,null,"¡ATENCIÓN!"]
[]
[]
[null,"Para hacer uso de las funcionalidades de esta Cédula Electrónica debe habilitar macros"]
[]
[]
[]
[]
[null,"Si utiliza Excel 2000, 2002, 2003 siga el siguiente procedimiento:"]
[]
[]
[]
[]
[]
[]
[]
[]
[]
[]
[]
[]
[]
[]
[]
[]
[]
[]
[]
[]
[]
[]
[]
[]
[]
[]
[]
[]
[null,"Si utiliza Excel 2007 siga el siguiente procedimiento:"]